Workbook

Sheet README
B6: Landscape Monetisation Workbook
B8: TAG and VfM references
B9: TAG Unit A3 - Environmental Impact Appraisal
B10: Supplementary VfM Guidance on Landscape Monetisation
B12: Notes
B13: This tool should be used to derive indicative monetary estimates of a scheme's landscape impacts, in accordance with supplementary VfM guidance.
B14: The Landscape Values worksheet provides present value and annual per-hectare values for a range of broad land types to be used for landscape monetisation. Users are advised to check that the selected appraisal year is correct before applying the values in an appraisal.
B15: The Ecosystem Services worksheets - Inputs (ESS), Calculations (ESS) and Outputs (ESS) - should be used to derive indicative monetary estimates of impacts associated with (i) air quality regulation by vegetation and (ii) carbon sequestration.
B16: Users should refer to the supplementary landscape VfM guidance for further details on the scheme information required for the valuation of these services.
B18: Version Control
B19: Date | C19: Description
B20: 2026-05-01 | C20: Updated GDP Deflator, GDP per capita growth, and population growth in line with latest TAG Data book (v2.03 May 2026)
B21: 2025-12-01 | C21: Updated GDP Deflator, GDP per capita growth, and population growth in line with latest TAG Data book (v2.02 December 2025)
B22: 2025-05-01 | C22: Updated GDP Deflator, GDP per capita growth, population growth, and carbon values (appraisal) in line with latest TAG Data book (v2.01 May 2025)
B23: 2024-11-01 | C23: Forthcoming Change version. Updated default price and discounting base years (2023); updated economic and demographic assumptions in line with TAG Data Book v2.0 FC, Nov 2024.
B24: 2024-11-01 | C24: Updated economic and demographic assumptions in line with TAG Data Book v1.24, Nov 2024; corrected discounting; minor corrections to ESS calculations.
B25: 2024-05-01 | C25: Updated GDP Deflator, GDP per capita and population in line with latest TAG Data book (v1.23, May 2024)
B26: 2023-11-01 | C26: Updated carbon values (incl. market price adjustment), GDP deflator, GDP per capita and population in line with TAG Data Book v1.22.
B27: 2023-05-01 | C27: Updated GDP Deflator, GDP per capita and population in line with latest TAG Data book (v1.21, May 2023)
B28: 2022-11-01 | C28: Updated GDP Deflator, GDP per capita and population in line with latest TAG Data book (v1.20.1, November 2022)
B29: 2022-05-01 | C29: Updated GDP Deflator, GDP per capita and population in line with latest TAG Data book (v1.18, May 2022)
B30: 2021-11-01 | C30: Updated GDP Deflator, GDP per capita and population in line with latest TAG Data book (v1.17, November 2021)
B31: 2021-07-01 | C31: Initial release
B33: Contact
B34: Transport Appraisal and Strategic Modelling (TASM) Division
B35: Department for Transport
B36: Zone 2/25 Great Minster House
B37: 33 Horseferry Road
B38: London
B39: SW1P 4DR
B40: tasm@dft.gov.uk

Sheet Inputs (values)
B3: Appraisal assumptions
C5: Year values
C6: Source: NA
C8: Appraisal year | H8: 2025 | I8: user input
C10: Values base year for published landscape values | H10: 2010
C11: Price base year for published landscape values | H11: 2010
C12: Default price base year | H12: 2023
C13: Default discount base year | H13: 2023
C15: Discount rates
C16: Source: TAG Data Book v2.02 (December 2025)
C19: Year | H19: STPR
C20: =$H$13-$H$8 -> -2 | H20: 0.035
C21: 31 | H21: 0.03
C22: 76 | H22: 0.025
C23: 126 | H23: 0.02
C24: 201 | H24: 0.015
C25: 301 | H25: 0.01
B28: Published landscape value per land type
C30: Land type £/ha/year (2010 prices)
C31: Source: | E31: DfT supplementary VfM guidance on landscape monetisation (May 2017)
C34: Urban Core (City Park) | H34: 75153
C35: Urban Fringe (Greenbelt) | H35: 1237
C36: Urban Fringe (forested Land) | H36: 3758
C37: Rural (forested amenity land) | H37: 9222
C38: Agricultural land (extensive) | H38: 4384
C39: Agricultural land (intensive) | H39: 143
C40: Natural and semi-natural land (wetlands) | H40: 9208
C43: Land type perpetual present value (2010 prices)
C44: Source: | E44: DfT supplementary VfM guidance on landscape monetisation (May 2017)
C47: Urban Core (City Park) | H47: 15031000
C48: Urban Fringe (Greenbelt) | H48: 247000
C49: Urban Fringe (forested Land) | H49: 752000
C50: Rural (forested amenity land) | H50: 1844000
C51: Agricultural land (extensive) | H51: 877000
C52: Agricultural land (intensive) | H52: 29000
C53: Natural and semi-natural land (wetlands) | H53: 1842000
B56: Key Parameters
C58: Annual parameters
C59: Source: TAG Data Book v2.03 (May 2026)
H60: Year | DD60: .
H61: 2000 | I61: 2001 | J61: 2002 | K61: 2003 | L61: 2004 | M61: 2005 | N61: 2006 | O61: 2007 | P61: 2008 | Q61: 2009 | R61: 2010 | S61: 2011 | T61: 2012 | U61: 2013 | V61: 2014 | W61: 2015 | X61: 2016 | Y61: 2017 | Z61: 2018 | AA61: 2019 | AB61: 2020 | AC61: 2021 | AD61: 2022 | AE61: 2023 | AF61: 2024 | AG61: 2025 | AH61: 2026 | AI61: 2027 | AJ61: 2028 | AK61: 2029 | AL61: 2030 | AM61: 2031 | AN61: 2032 | AO61: 2033 | AP61: 2034 | AQ61: 2035 | AR61: 2036 | AS61: 2037 | AT61: 2038 | AU61: 2039 | AV61: 2040 | AW61: 2041 | AX61: 2042 | AY61: 2043 | AZ61: 2044 | BA61: 2045 | BB61: 2046 | BC61: 2047 | BD61: 2048 | BE61: 2049 | BF61: 2050 | BG61: 2051 | BH61: 2052 | BI61: 2053 | BJ61: 2054 | BK61: 2055 | BL61: 2056 | BM61: 2057 | BN61: 2058 | BO61: 2059 | BP61: 2060 | BQ61: 2061 | BR61: 2062 | BS61: 2063 | BT61: 2064 | BU61: 2065 | BV61: 2066 | BW61: 2067 | BX61: 2068 | BY61: 2069 | BZ61: 2070 | CA61: 2071 | CB61: 2072 | CC61: 2073 | CD61: 2074 | CE61: 2075 | CF61: 2076 | CG61: 2077 | CH61: 2078 | CI61: 2079 | CJ61: 2080 | CK61: 2081 | CL61: 2082 | CM61: 2083 | CN61: 2084 | CO61: 2085 | CP61: 2086 | CQ61: 2087 | CR61: 2088 | CS61: 2089 | CT61: 2090 | CU61: 2091 | CV61: 2092 | CW61: 2093 | CX61: 2094 | CY61: 2095 | CZ61: 2096 | DA61: 2097 | DB61: 2098 | DC61: 2099 | DD61: 2100 | DE61: 2101 | DF61: 2102 | DG61: 2103 | DH61: 2104 | DI61: 2105 | DJ61: 2106 | DK61: 2107 | DL61: 2108 | DM61: 2109 | DN61: 2110 | DO61: 2111 | DP61: 2112 | DQ61: 2113 | DR61: 2114 | DS61: 2115 | DT61: 2116 | DU61: 2117 | DV61: 2118 | DW61: 2119 | DX61: 2120 | DY61: 2121 | DZ61: 2122 | EA61: 2123 | EB61: 2124 | EC61: 2125 | ED61: 2126 | EE61: 2127 | EF61: 2128 | EG61: 2129 | EH61: 2130 | EI61: 2131 | EJ61: 2132 | EK61: 2133 | EL61: 2134 | EM61: 2135 | EN61: 2136 | EO61: 2137 | EP61: 2138 | EQ61: 2139 | ER61: 2140 | ES61: 2141 | ET61: 2142 | EU61: 2143 | EV61: 2144 | EW61: 2145 | EX61: 2146 | EY61: 2147 | EZ61: 2148 | FA61: 2149 | FB61: 2150 | FC61: 2151 | FD61: 2152 | FE61: 2153 | FF61: 2154 | FG61: 2155 | FH61: 2156 | FI61: 2157 | FJ61: 2158 | FK61: 2159 | FL61: 2160 | FM61: 2161 | FN61: 2162 | FO61: 2163 | FP61: 2164 | FQ61: 2165 | FR61: 2166 | FS61: 2167 | FT61: 2168 | FU61: 2169 | FV61: 2170 | FW61: 2171 | FX61: 2172 | FY61: 2173 | FZ61: 2174 | GA61: 2175 | GB61: 2176 | GC61: 2177 | GD61: 2178 | GE61: 2179 | GF61: 2180 | GG61: 2181 | GH61: 2182 | GI61: 2183 | GJ61: 2184 | GK61: 2185 | GL61: 2186 | GM61: 2187 | GN61: 2188 | GO61: 2189 | GP61: 2190 | GQ61: 2191 | GR61: 2192 | GS61: 2193 | GT61: 2194 | GU61: 2195 | GV61: 2196 | GW61: 2197 | GX61: 2198 | GY61: 2199 | GZ61: 2200 | HA61: 2201 | HB61: 2202 | HC61: 2203 | HD61: 2204 | HE61: 2205 | HF61: 2206 | HG61: 2207 | HH61: 2208 | HI61: 2209 | HJ61: 2210 | HK61: 2211 | HL61: 2212 | HM61: 2213 | HN61: 2214 | HO61: 2215 | HP61: 2216 | HQ61: 2217 | HR61: 2218 | HS61: 2219 | HT61: 2220 | HU61: 2221 | HV61: 2222 | HW61: 2223 | HX61: 2224 | HY61: 2225 | HZ61: 2226 | IA61: 2227 | IB61: 2228 | IC61: 2229 | ID61: 2230 | IE61: 2231 | IF61: 2232 | IG61: 2233 | IH61: 2234 | II61: 2235 | IJ61: 2236 | IK61: 2237 | IL61: 2238 | IM61: 2239 | IN61: 2240 | IO61: 2241 | IP61: 2242 | IQ61: 2243 | IR61: 2244 | IS61: 2245 | IT61: 2246 | IU61: 2247 | IV61: 2248 | IW61: 2249 | IX61: 2250 | IY61: 2251 | IZ61: 2252 | JA61: 2253 | JB61: 2254 | JC61: 2255 | JD61: 2256 | JE61: 2257 | JF61: 2258 | JG61: 2259 | JH61: 2260 | JI61: 2261 | JJ61: 2262 | JK61: 2263 | JL61: 2264 | JM61: 2265 | JN61: 2266 | JO61: 2267 | JP61: 2268 | JQ61: 2269 | JR61: 2270 | JS61: 2271 | JT61: 2272 | JU61: 2273 | JV61: 2274 | JW61: 2275 | JX61: 2276 | JY61: 2277 | JZ61: 2278 | KA61: 2279 | KB61: 2280 | KC61: 2281 | KD61: 2282 | KE61: 2283 | KF61: 2284 | KG61: 2285 | KH61: 2286 | KI61: 2287 | KJ61: 2288 | KK61: 2289 | KL61: 2290 | KM61: 2291 | KN61: 2292 | KO61: 2293 | KP61: 2294 | KQ61: 2295 | KR61: 2296 | KS61: 2297 | KT61: 2298 | KU61: 2299 | KV61: 2300
C62: GDP Deflator | H62: 56.94524961 | I62: 57.91946381 | J62: 59.12793767 | K62: 60.53565079 | L62: 62.19001541 | M62: 63.97013028 | N62: 65.94043296 | O62: 67.25364482 | P62: 69.4955982 | Q62: 70.87432518 | R62: 71.81427325 | S62: 73.59320281 | T62: 74.73131257 | U62: 76.34171309 | V62: 77.56031594 | W62: 78.08120427 | X62: 79.433639 | Y62: 80.66097001 | Z62: 82.24421624 | AA62: 84.26796548 | AB62: 88.53302156 | AC62: 88.97158497 | AD62: 94.02573193 | AE62: 100 | AF62: 103.8953482 | AG62: 107.7551372 | AH62: 110.1075268 | AI62: 112.2484716 | AJ62: 114.3672045 | AK62: 116.4759744 | AL62: 118.7821845 | AM62: 121.3483177 | AN62: 124.139329 | AO62: 126.9945336 | AP62: 129.9154078 | AQ62: 132.9034622 | AR62: 135.9602418 | AS62: 139.0873274 | AT62: 142.2863359 | AU62: 145.5589217 | AV62: 148.9067769 | AW62: 152.3316327 | AX62: 155.8352603 | AY62: 159.4194713 | AZ62: 163.0861191 | BA62: 166.8370998 | BB62: 170.6743531 | BC62: 174.5998633 | BD62: 178.6156601 | BE62: 182.7238203 | BF62: 186.9264682 | BG62: 191.2257769 | BH62: 195.6239698 | BI62: 200.1233211 | BJ62: 204.7261575 | BK62: 209.4348591 | BL62: 214.2518609 | BM62: 219.1796537 | BN62: 224.2207857 | BO62: 229.3778638 | BP62: 234.6535547 | BQ62: 240.0505864 | BR62: 245.5717499 | BS62: 251.2199001 | BT62: 256.9979578 | BU62: 262.9089109 | BV62: 268.9558158 | BW62: 275.1417996 | BX62: 281.470061 | BY62: 287.9438724 | BZ62: 294.5665814 | CA62: 301.3416128 | CB62: 308.2724699 | CC62: 315.3627367 | CD62: 322.6160797 | CE62: 330.0362495 | CF62: 337.6270832 | CG62: 345.3925062 | CH62: 353.3365338 | CI62: 361.4632741 | CJ62: 369.7769294 | CK62: 378.2817988 | CL62: 386.9822801 | CM62: 395.8828726 | CN62: 404.9881786 | CO62: 414.3029067 | CP62: 423.8318736 | CQ62: 433.5800067 | CR62: 443.5523468 | CS62: 453.7540508 | CT62: 464.190394 | CU62: 474.8667731 | CV62: 485.7887088 | CW62: 496.9618491 | CX62: 508.3919717 | CY62: 520.084987 | CZ62: 532.0469417 | DA62: 544.2840214 | DB62: 556.8025539 | DC62: 569.6090126 | DD62: 582.7100199 | DE62: =DD62*($DD62/$DC62) -> 596.1123504 | DF62: 609.8229344 | DG62: 623.8488619 | DH62: 638.1973857 | DI62: 652.8759256 | DJ62: 667.8920719 | DK62: 683.2535895 | DL62: 698.9684221 | DM62: 715.0446958 | DN62: 731.4907238 | DO62: 748.3150105 | DP62: 765.5262557 | DQ62: 783.1333596 | DR62: 801.1454269 | DS62: 819.5717717 | DT62: 838.4219224 | DU62: 857.7056266 | DV62: 877.4328561 | DW62: 897.6138117 | DX62: 918.2589294 | DY62: 939.3788848 | DZ62: 960.9845991 | EA62: 983.0872449 | EB62: 1005.698252 | EC62: 1028.829311 | ED62: 1052.492385 | EE62: 1076.69971 | EF62: 1101.463804 | EG62: 1126.797471 | EH62: 1152.713813 | EI62: 1179.226231 | EJ62: 1206.348434 | EK62: =EJ62*($DD62/$DC62) -> 1234.094448 | EL62: 1262.47862 | EM62: 1291.515629 | EN62: 1321.220488 | EO62: 1351.608559 | EP62: 1382.695556 | EQ62: 1414.497554 | ER62: 1447.030998 | ES62: 1480.312711 | ET62: 1514.359903 | EU62: 1549.190181 | EV62: 1584.821555 | EW62: 1621.272451 | EX62: 1658.561717 | EY62: 1696.708636 | EZ62: 1735.732935 | FA62: 1775.654793 | FB62: 1816.494853 | FC62: 1858.274234 | FD62: 1901.014542 | FE62: 1944.737876 | FF62: 1989.466848 | FG62: 2035.224585 | FH62: 2082.03475 | FI62: 2129.92155 | FJ62: 2178.909745 | FK62: 2229.024669 | FL62: 2280.292237 | FM62: 2332.738958 | FN62: 2386.391954 | FO62: 2441.278969 | FP62: 2497.428386 | FQ62: =FP62*($DD62/$DC62) -> 2554.869238 | FR62: 2613.631231 | FS62: 2673.744749 | FT62: 2735.240879 | FU62: 2798.151419 | FV62: 2862.508901 | FW62: 2928.346606 | FX62: 2995.698578 | FY62: 3064.599645 | FZ62: 3135.085437 | GA62: 3207.192402 | GB62: 3280.957827 | GC62: 3356.419858 | GD62: 3433.617514 | GE62: 3512.590717 | GF62: 3593.380304 | GG62: 3676.028051 | GH62: 3760.576696 | GI62: 3847.06996 | GJ62: 3935.552569 | GK62: 4026.070278 | GL62: 4118.669894 | GM62: 4213.399302 | GN62: 4310.307486 | GO62: 4409.444558 | GP62: 4510.861783 | GQ62: 4614.611604 | GR62: 4720.747671 | GS62: 4829.324867 | GT62: 4940.399339 | GU62: 5054.028524 | GV62: 5170.27118 | GW62: =GV62*($DD62/$DC62) -> 5289.187417 | GX62: 5410.838728 | GY62: 5535.288018 | GZ62: 5662.599643 | HA62: 5792.839435 | HB62: 5926.074742 | HC62: 6062.374461 | HD62: 6201.809073 | HE62: 6344.450682 | HF62: 6490.373048 | HG62: 6639.651628 | HH62: 6792.363615 | HI62: 6948.587978 | HJ62: 7108.405502 | HK62: 7271.898828 | HL62: 7439.152501 | HM62: 7610.253009 | HN62: 7785.288828 | HO62: 7964.350471 | HP62: 8147.530532 | HQ62: 8334.923734 | HR62: 8526.62698 | HS62: 8722.739401 | HT62: 8923.362407 | HU62: 9128.599742 | HV62: 9338.557536 | HW62: 9553.34436 | HX62: 9773.07128 | HY62: 9997.851919 | HZ62: 10227.80251 | IA62: 10463.04197 | IB62: 10703.69194 | IC62: =IB62*($DD62/$DC62) -> 10949.87685 | ID62: 11201.72402 | IE62: 11459.36367 | IF62: 11722.92904 | IG62: 11992.5564 | IH62: 12268.3852 | II62: 12550.55806 | IJ62: 12839.2209 | IK62: 13134.52298 | IL62: 13436.617 | IM62: 13745.6592 | IN62: 14061.80936 | IO62: 14385.23097 | IP62: 14716.09128 | IQ62: 15054.56138 | IR62: 15400.8163 | IS62: 15755.03507 | IT62: 16117.40088 | IU62: 16488.1011 | IV62: 16867.32742 | IW62: 17255.27595 | IX62: 17652.1473 | IY62: 18058.14669 | IZ62: 18473.48406 | JA62: 18898.3742 | JB62: 19333.0368 | JC62: 19777.69665 | JD62: 20232.58367 | JE62: 20697.9331 | JF62: 21173.98556 | JG62: 21660.98723 | JH62: 22159.18993 | JI62: =JH62*($DD62/$DC62) -> 22668.8513 | JJ62: 23190.23488 | JK62: 23723.61028 | JL62: 24269.25332 | JM62: 24827.44614 | JN62: 25398.47741 | JO62: 25982.64239 | JP62: 26580.24316 | JQ62: 27191.58875 | JR62: 27816.9953 | JS62: 28456.78619 | JT62: 29111.29227 | JU62: 29780.85199 | JV62: 30465.81159 | JW62: 31166.52525 | JX62: 31883.35534 | JY62: 32616.67251 | JZ62: 33366.85598 | KA62: 34134.29366 | KB62: 34919.38242 | KC62: 35722.52821 | KD62: 36544.14636 | KE62: 37384.66173 | KF62: 38244.50895 | KG62: 39124.13265 | KH62: 40023.9877 | KI62: 40944.53942 | KJ62: 41886.26383 | KK62: 42849.6479 | KL62: 43835.1898 | KM62: 44843.39916 | KN62: 45874.79734 | KO62: =KN62*($DD62/$DC62) -> 46929.91768 | KP62: 48009.30579 | KQ62: 49113.51982 | KR62: 50243.13078 | KS62: 51398.72279 | KT62: 52580.89341 | KU62: 53790.25396 | KV62: 55027.4298
C63: GDP per capita growth (index) | H63: 124.4516407 | I63: 126.9381888 | J63: 128.5580291 | K63: 132.0926967 | L63: 134.4579239 | M63: 137.1511835 | N63: 139.2013224 | O63: 142.1313249 | P63: 140.9013765 | Q63: 133.494699 | R63: 135.4269978 | S63: 135.4457396 | T63: 136.5975 | U63: 138.0183447 | V63: 141.3212367 | W63: 143.3075164 | X63: 145.3113678 | Y63: 148.8908458 | Z63: 150.4652379 | AA63: 151.5762319 | AB63: 136.1163816 | AC63: 147.219738 | AD63: 153.294902 | AE63: 151.7147417 | AF63: 151.6938311 | AG63: 153.2465468 | AH63: 154.4328337 | AI63: 156.4246557 | AJ63: 158.3879448 | AK63: 160.2775829 | AL63: 162.120728 | AM63: 164.6227227 | AN63: 167.2343917 | AO63: 169.9693845 | AP63: 172.8070619 | AQ63: 175.7205034 | AR63: 178.7311411 | AS63: 181.9232418 | AT63: 185.0660684 | AU63: 188.1708404 | AV63: 191.2101226 | AW63: 194.2140041 | AX63: 197.1820671 | AY63: 200.1439612 | AZ63: 203.1178953 | BA63: 206.0858784 | BB63: 209.0857397 | BC63: 212.1110224 | BD63: 215.1682823 | BE63: 218.2556728 | BF63: 221.3857489 | BG63: 224.5739631 | BH63: 227.8154792 | BI63: 231.0933685 | BJ63: 234.4079743 | BK63: 237.7547481 | BL63: 241.1174265 | BM63: 244.4998098 | BN63: 247.9008569 | BO63: 251.3391517 | BP63: 254.7861639 | BQ63: 258.3110457 | BR63: 261.8279049 | BS63: 265.3519639 | BT63: 268.8913769 | BU63: 272.4831622 | BV63: 276.1156157 | BW63: 279.7908725 | BX63: 283.5731142 | BY63: 287.5589686 | BZ63: 291.7088037 | CA63: 295.9399842 | CB63: 300.2278658 | CC63: 304.5930964 | CD63: 308.3145659 | CE63: 311.9946935 | CF63: 315.5244341 | CG63: 319.1360217 | CH63: 322.7614256 | CI63: 326.3782458 | CJ63: 330.0582448 | CK63: 333.9307471 | CL63: 337.9924951 | CM63: 342.1500098 | CN63: 346.3379203 | CO63: 350.7474141 | CP63: 355.3518032 | CQ63: 360.0953042 | CR63: 365.0161077 | CS63: 370.1726298 | CT63: 375.3745463 | CU63: 380.9261794 | CV63: 386.5811442 | CW63: 392.3095597 | CX63: 398.1359992 | CY63: 404.0678146 | CZ63: 410.0998116 | DA63: 416.2213153 | DB63: 422.4275256 | DC63: 428.7149251 | DD63: 435.0815457 | DE63: =DD63*($DD63/$DC63) -> 441.5427136 | DF63: =DE63*($DD63/$DC63) -> 448.0998329 | DG63: 454.7543286 | DH63: 461.5076467 | DI63: 468.3612548 | DJ63: 475.3166423 | DK63: 482.3753205 | DL63: 489.5388235 | DM63: 496.8087079 | DN63: 504.1865536 | DO63: 511.6739637 | DP63: 519.2725655 | DQ63: 526.9840101 | DR63: 534.8099734 | DS63: 542.7521559 | DT63: 550.8122836 | DU63: 558.992108 | DV63: 567.2934068 | DW63: 575.7179837 | DX63: 584.2676697 | DY63: 592.9443225 | DZ63: 601.7498278 | EA63: 610.686099 | EB63: 619.755078 | EC63: 628.9587358 | ED63: 638.2990722 | EE63: 647.7781171 | EF63: 657.3979303 | EG63: 667.1606023 | EH63: 677.0682546 | EI63: 687.1230403 | EJ63: 697.3271443 | EK63: 707.6827841 | EL63: =EK63*($DD63/$DC63) -> 718.1922101 | EM63: 728.8577061 | EN63: 739.6815897 | EO63: 750.6662132 | EP63: 761.8139636 | EQ63: 773.1272633 | ER63: 784.608571 | ES63: 796.2603815 | ET63: 808.085227 | EU63: 820.085677 | EV63: 832.2643394 | EW63: 844.6238608 | EX63: 857.1669269 | EY63: 869.8962636 | EZ63: 882.8146369 | FA63: 895.9248542 | FB63: 909.2297645 | FC63: 922.732259 | FD63: 936.435272 | FE63: 950.3417813 | FF63: 964.4548088 | FG63: 978.7774216 | FH63: 993.3127319 | FI63: 1008.063898 | FJ63: 1023.034127 | FK63: 1038.22667 | FL63: 1053.64483 | FM63: 1069.291957 | FN63: 1085.171452 | FO63: 1101.286764 | FP63: 1117.641396 | FQ63: 1134.238903 | FR63: =FQ63*($DD63/$DC63) -> 1151.08289 | FS63: 1168.177018 | FT63: 1185.525003 | FU63: 1203.130613 | FV63: 1220.997675 | FW63: 1239.130071 | FX63: 1257.531742 | FY63: 1276.206687 | FZ63: 1295.158963 | GA63: 1314.39269 | GB63: 1333.912047 | GC63: 1353.721275 | GD63: 1373.82468 | GE63: 1394.22663 | GF63: 1414.931559 | GG63: 1435.943966 | GH63: 1457.268417 | GI63: 1478.909546 | GJ63: 1500.872056 | GK63: 1523.16072 | GL63: 1545.780381 | GM63: 1568.735956 | GN63: 1592.032431 | GO63: 1615.67487 | GP63: 1639.66841 | GQ63: 1664.018266 | GR63: 1688.729729 | GS63: 1713.808169 | GT63: 1739.259035 | GU63: 1765.087859 | GV63: 1791.300254 | GW63: 1817.901915 | GX63: =GW63*($DD63/$DC63) -> 1844.898623 | GY63: 1872.296245 | GZ63: 1900.100735 | HA63: 1928.318135 | HB63: 1956.954576 | HC63: 1986.016283 | HD63: 2015.509569 | HE63: 2045.440845 | HF63: 2075.816615 | HG63: 2106.643479 | HH63: 2137.928137 | HI63: 2169.677387 | HJ63: 2201.898128 | HK63: 2234.597363 | HL63: 2267.782197 | HM63: 2301.459841 | HN63: 2335.637615 | HO63: 2370.322944 | HP63: 2405.523368 | HQ63: 2441.246534 | HR63: 2477.500206 | HS63: 2514.292263 | HT63: 2551.630699 | HU63: 2589.523629 | HV63: 2627.979287 | HW63: 2667.006029 | HX63: 2706.612337 | HY63: 2746.806818 | HZ63: 2787.598206 | IA63: 2828.995366 | IB63: 2871.007292 | IC63: 2913.643117 | ID63: =IC63*($DD63/$DC63) -> 2956.912103 | IE63: 3000.823654 | IF63: 3045.387313 | IG63: 3090.612763 | IH63: 3136.509833 | II63: 3183.088496 | IJ63: 3230.358875 | IK63: 3278.331241 | IL63: 3327.016019 | IM63: 3376.42379 | IN63: 3426.565289 | IO63: 3477.451414 | IP63: 3529.093222 | IQ63: 3581.501935 | IR63: 3634.688942 | IS63: 3688.665802 | IT63: 3743.444244 | IU63: 3799.036172 | IV63: 3855.453666 | IW63: 3912.708987 | IX63: 3970.814577 | IY63: 4029.783063 | IZ63: 4089.627258 | JA63: 4150.360168 | JB63: 4211.994991 | JC63: 4274.54512 | JD63: 4338.024149 | JE63: 4402.445871 | JF63: 4467.824287 | JG63: 4534.173603 | JH63: 4601.508238 | JI63: 4669.842824 | JJ63: =JI63*($DD63/$DC63) -> 4739.192211 | JK63: 4809.57147 | JL63: 4880.995895 | JM63: 4953.481006 | JN63: 5027.042555 | JO63: 5101.696528 | JP63: 5177.459149 | JQ63: 5254.34688 | JR63: 5332.376431 | JS63: 5411.564757 | JT63: 5491.929068 | JU63: 5573.486828 | JV63: 5656.255759 | JW63: 5740.253847 | JX63: 5825.499348 | JY63: 5912.010784 | JZ63: 5999.806957 | KA63: 6088.906944 | KB63: 6179.330109 | KC63: 6271.096101 | KD63: 6364.224861 | KE63: 6458.736628 | KF63: 6554.651939 | KG63: 6651.991639 | KH63: 6750.776879 | KI63: 6851.029127 | KJ63: 6952.770169 | KK63: 7056.022113 | KL63: 7160.807398 | KM63: 7267.148794 | KN63: 7375.069411 | KO63: 7484.5927 | KP63: =KO63*($DD63/$DC63) -> 7595.742462 | KQ63: 7708.542851 | KR63: 7823.01838 | KS63: 7939.193924 | KT63: 8057.094731 | KU63: 8176.74642 | KV63: 8298.174994
C64: GDP per capita % change | I64: =(I63-H63)/H63 -> 0.01998003456 | J64: 0.01276085935 | K64: 0.02749472392 | L64: 0.01790581389 | M64: 0.02003050117 | N64: 0.01494802151 | O64: 0.02104866895 | P64: -0.0086536056 | Q64: -0.05256639552 | R64: 0.01447472306 | S64: 0.0001383906598 | T64: 0.008503481958 | U64: 0.01040168866 | V64: 0.02393081871 | W64: 0.01405506907 | X64: 0.01398287671 | Y64: 0.02463315909 | Z64: 0.01057413644 | AA64: 0.007383725297 | AB64: -0.1019938947 | AC64: 0.08157252085 | AD64: 0.04126596122 | AE64: -0.01030797734 | AF64: -0.0001378277711 | AG64: 0.01023585229 | AH64: 0.007741035289 | AI64: 0.01289765869 | AJ64: 0.01255102067 | AK64: 0.01193044131 | AL64: 0.01149970611 | AM64: 0.01543291056 | AN64: 0.01586457199 | AO64: =(AO63-AN63)/AN63 -> 0.01635424834 | AP64: 0.01669522704 | AQ64: 0.01685950454 | AR64: 0.01713310462 | AS64: 0.01785978989 | AT64: 0.01727556404 | AU64: 0.0167765602 | AV64: 0.0161517171 | AW64: 0.01570984533 | AX64: 0.01528243587 | AY64: 0.01502111304 | AZ64: 0.01485897454 | BA64: 0.01461212052 | BB64: 0.01455636486 | BC64: 0.01446910111 | BD64: 0.01441348918 | BE64: 0.01434872503 | BF64: 0.01434132755 | BG64: 0.0144011718 | BH64: 0.01443406907 | BI64: 0.01438835193 | BJ64: 0.01434314541 | BK64: 0.01427755949 | BL64: 0.01414347543 | BM64: 0.01402795041 | BN64: 0.01391022371 | BO64: 0.01386963687 | BP64: 0.01371458507 | BQ64: 0.01383466715 | BR64: 0.01361482316 | BS64: 0.01345944789 | BT64: 0.01333855937 | BU64: =(BU63-BT63)/BT63 -> 0.01335775591 | BV64: 0.01333092808 | BW64: 0.01331057227 | BX64: 0.01351810228 | BY64: 0.01405582612 | BZ64: 0.01443124923 | CA64: 0.01450480913 | CB64: 0.01448902415 | CC64: 0.01453972505 | CD64: 0.01221783916 | CE64: 0.0119362755 | CF64: 0.0113134635 | CG64: 0.0114463011 | CH64: 0.01136005846 | CI64: 0.01120586272 | CJ64: 0.01127525806 | CK64: 0.0117327846 | CL64: 0.01216344435 | CM64: 0.0123006125 | CN64: 0.01223998357 | CO64: 0.0127317673 | CP64: 0.01312736411 | CQ64: 0.01334874635 | CR64: 0.01366528094 | CS64: 0.01412683417 | CT64: 0.01405267748 | CU64: 0.01478958316 | CV64: 0.01484530355 | CW64: 0.01481814519 | CX64: 0.01485163776 | CY64: 0.01489896783 | CZ64: 0.01492817984 | DA64: =(DA63-CZ63)/CZ63 -> 0.01492686297 | DB64: 0.01491084207 | DC64: 0.01488397204 | DD64: 0.01485047571 | DE64: 0.01485047571 | DF64: =(DF63-DE63)/DE63 -> 0.01485047571 | DG64: =(DG63-DF63)/DF63 -> 0.01485047571 | DH64: =(DH63-DG63)/DG63 -> 0.01485047571 | DI64: =(DI63-DH63)/DH63 -> 0.01485047571 | DJ64: =(DJ63-DI63)/DI63 -> 0.01485047571 | DK64: =(DK63-DJ63)/DJ63 -> 0.01485047571 | DL64: =(DL63-DK63)/DK63 -> 0.01485047571 | DM64: =(DM63-DL63)/DL63 -> 0.01485047571 | DN64: =(DN63-DM63)/DM63 -> 0.01485047571 | DO64: =(DO63-DN63)/DN63 -> 0.01485047571 | DP64: =(DP63-DO63)/DO63 -> 0.01485047571 | DQ64: =(DQ63-DP63)/DP63 -> 0.01485047571 | DR64: =(DR63-DQ63)/DQ63 -> 0.01485047571 | DS64: =(DS63-DR63)/DR63 -> 0.01485047571 | DT64: =(DT63-DS63)/DS63 -> 0.01485047571 | DU64: =(DU63-DT63)/DT63 -> 0.01485047571 | DV64: =(DV63-DU63)/DU63 -> 0.01485047571 | DW64: =(DW63-DV63)/DV63 -> 0.01485047571 | DX64: =(DX63-DW63)/DW63 -> 0.01485047571 | DY64: =(DY63-DX63)/DX63 -> 0.01485047571 | DZ64: =(DZ63-DY63)/DY63 -> 0.01485047571 | EA64: =(EA63-DZ63)/DZ63 -> 0.01485047571 | EB64: =(EB63-EA63)/EA63 -> 0.01485047571 | EC64: =(EC63-EB63)/EB63 -> 0.01485047571 | ED64: =(ED63-EC63)/EC63 -> 0.01485047571 | EE64: =(EE63-ED63)/ED63 -> 0.01485047571 | EF64: =(EF63-EE63)/EE63 -> 0.01485047571 | EG64: =(EG63-EF63)/EF63 -> 0.01485047571 | EH64: =(EH63-EG63)/EG63 -> 0.01485047571 | EI64: =(EI63-EH63)/EH63 -> 0.01485047571 | EJ64: =(EJ63-EI63)/EI63 -> 0.01485047571 | EK64: =(EK63-EJ63)/EJ63 -> 0.01485047571 | EL64: =(EL63-EK63)/EK63 -> 0.01485047571 | EM64: =(EM63-EL63)/EL63 -> 0.01485047571 | EN64: =(EN63-EM63)/EM63 -> 0.01485047571 | EO64: =(EO63-EN63)/EN63 -> 0.01485047571 | EP64: =(EP63-EO63)/EO63 -> 0.01485047571 | EQ64: =(EQ63-EP63)/EP63 -> 0.01485047571 | ER64: =(ER63-EQ63)/EQ63 -> 0.01485047571 | ES64: =(ES63-ER63)/ER63 -> 0.01485047571 | ET64: =(ET63-ES63)/ES63 -> 0.01485047571 | EU64: =(EU63-ET63)/ET63 -> 0.01485047571 | EV64: =(EV63-EU63)/EU63 -> 0.01485047571 | EW64: =(EW63-EV63)/EV63 -> 0.01485047571 | EX64: =(EX63-EW63)/EW63 -> 0.01485047571 | EY64: =(EY63-EX63)/EX63 -> 0.01485047571 | EZ64: =(EZ63-EY63)/EY63 -> 0.01485047571 | FA64: =(FA63-EZ63)/EZ63 -> 0.01485047571 | FB64: =(FB63-FA63)/FA63 -> 0.01485047571 | FC64: =(FC63-FB63)/FB63 -> 0.01485047571 | FD64: =(FD63-FC63)/FC63 -> 0.01485047571 | FE64: =(FE63-FD63)/FD63 -> 0.01485047571 | FF64: =(FF63-FE63)/FE63 -> 0.01485047571 | FG64: =(FG63-FF63)/FF63 -> 0.01485047571 | FH64: =(FH63-FG63)/FG63 -> 0.01485047571 | FI64: =(FI63-FH63)/FH63 -> 0.01485047571 | FJ64: =(FJ63-FI63)/FI63 -> 0.01485047571 | FK64: =(FK63-FJ63)/FJ63 -> 0.01485047571 | FL64: =(FL63-FK63)/FK63 -> 0.01485047571 | FM64: =(FM63-FL63)/FL63 -> 0.01485047571 | FN64: =(FN63-FM63)/FM63 -> 0.01485047571 | FO64: =(FO63-FN63)/FN63 -> 0.01485047571 | FP64: =(FP63-FO63)/FO63 -> 0.01485047571 | FQ64: =(FQ63-FP63)/FP63 -> 0.01485047571 | FR64: =(FR63-FQ63)/FQ63 -> 0.01485047571 | FS64: =(FS63-FR63)/FR63 -> 0.01485047571 | FT64: =(FT63-FS63)/FS63 -> 0.01485047571 | FU64: =(FU63-FT63)/FT63 -> 0.01485047571 | FV64: =(FV63-FU63)/FU63 -> 0.01485047571 | FW64: =(FW63-FV63)/FV63 -> 0.01485047571 | FX64: =(FX63-FW63)/FW63 -> 0.01485047571 | FY64: =(FY63-FX63)/FX63 -> 0.01485047571 | FZ64: =(FZ63-FY63)/FY63 -> 0.01485047571 | GA64: =(GA63-FZ63)/FZ63 -> 0.01485047571 | GB64: =(GB63-GA63)/GA63 -> 0.01485047571 | GC64: =(GC63-GB63)/GB63 -> 0.01485047571 | GD64: =(GD63-GC63)/GC63 -> 0.01485047571 | GE64: =(GE63-GD63)/GD63 -> 0.01485047571 | GF64: =(GF63-GE63)/GE63 -> 0.01485047571 | GG64: =(GG63-GF63)/GF63 -> 0.01485047571 | GH64: =(GH63-GG63)/GG63 -> 0.01485047571 | GI64: =(GI63-GH63)/GH63 -> 0.01485047571 | GJ64: =(GJ63-GI63)/GI63 -> 0.01485047571 | GK64: =(GK63-GJ63)/GJ63 -> 0.01485047571 | GL64: =(GL63-GK63)/GK63 -> 0.01485047571 | GM64: =(GM63-GL63)/GL63 -> 0.01485047571 | GN64: =(GN63-GM63)/GM63 -> 0.01485047571 | GO64: =(GO63-GN63)/GN63 -> 0.01485047571 | GP64: =(GP63-GO63)/GO63 -> 0.01485047571 | GQ64: =(GQ63-GP63)/GP63 -> 0.01485047571 | GR64: =(GR63-GQ63)/GQ63 -> 0.01485047571 | GS64: =(GS63-GR63)/GR63 -> 0.01485047571 | GT64: =(GT63-GS63)/GS63 -> 0.01485047571 | GU64: =(GU63-GT63)/GT63 -> 0.01485047571 | GV64: =(GV63-GU63)/GU63 -> 0.01485047571 | GW64: =(GW63-GV63)/GV63 -> 0.01485047571 | GX64: =(GX63-GW63)/GW63 -> 0.01485047571 | GY64: =(GY63-GX63)/GX63 -> 0.01485047571 | GZ64: =(GZ63-GY63)/GY63 -> 0.01485047571 | HA64: =(HA63-GZ63)/GZ63 -> 0.01485047571 | HB64: =(HB63-HA63)/HA63 -> 0.01485047571 | HC64: =(HC63-HB63)/HB63 -> 0.01485047571 | HD64: =(HD63-HC63)/HC63 -> 0.01485047571 | HE64: =(HE63-HD63)/HD63 -> 0.01485047571 | HF64: =(HF63-HE63)/HE63 -> 0.01485047571 | HG64: =(HG63-HF63)/HF63 -> 0.01485047571 | HH64: =(HH63-HG63)/HG63 -> 0.01485047571 | HI64: =(HI63-HH63)/HH63 -> 0.01485047571 | HJ64: =(HJ63-HI63)/HI63 -> 0.01485047571 | HK64: =(HK63-HJ63)/HJ63 -> 0.01485047571 | HL64: =(HL63-HK63)/HK63 -> 0.01485047571 | HM64: =(HM63-HL63)/HL63 -> 0.01485047571 | HN64: =(HN63-HM63)/HM63 -> 0.01485047571 | HO64: =(HO63-HN63)/HN63 -> 0.01485047571 | HP64: =(HP63-HO63)/HO63 -> 0.01485047571 | HQ64: =(HQ63-HP63)/HP63 -> 0.01485047571 | HR64: =(HR63-HQ63)/HQ63 -> 0.01485047571 | HS64: =(HS63-HR63)/HR63 -> 0.01485047571 | HT64: =(HT63-HS63)/HS63 -> 0.01485047571 | HU64: =(HU63-HT63)/HT63 -> 0.01485047571 | HV64: =(HV63-HU63)/HU63 -> 0.01485047571 | HW64: =(HW63-HV63)/HV63 -> 0.01485047571 | HX64: =(HX63-HW63)/HW63 -> 0.01485047571 | HY64: =(HY63-HX63)/HX63 -> 0.01485047571 | HZ64: =(HZ63-HY63)/HY63 -> 0.01485047571 | IA64: =(IA63-HZ63)/HZ63 -> 0.01485047571 | IB64: =(IB63-IA63)/IA63 -> 0.01485047571 | IC64: =(IC63-IB63)/IB63 -> 0.01485047571 | ID64: =(ID63-IC63)/IC63 -> 0.01485047571 | IE64: =(IE63-ID63)/ID63 -> 0.01485047571 | IF64: =(IF63-IE63)/IE63 -> 0.01485047571 | IG64: =(IG63-IF63)/IF63 -> 0.01485047571 | IH64: =(IH63-IG63)/IG63 -> 0.01485047571 | II64: =(II63-IH63)/IH63 -> 0.01485047571 | IJ64: =(IJ63-II63)/II63 -> 0.01485047571 | IK64: =(IK63-IJ63)/IJ63 -> 0.01485047571 | IL64: =(IL63-IK63)/IK63 -> 0.01485047571 | IM64: =(IM63-IL63)/IL63 -> 0.01485047571 | IN64: =(IN63-IM63)/IM63 -> 0.01485047571 | IO64: =(IO63-IN63)/IN63 -> 0.01485047571 | IP64: =(IP63-IO63)/IO63 -> 0.01485047571 | IQ64: =(IQ63-IP63)/IP63 -> 0.01485047571 | IR64: =(IR63-IQ63)/IQ63 -> 0.01485047571 | IS64: =(IS63-IR63)/IR63 -> 0.01485047571 | IT64: =(IT63-IS63)/IS63 -> 0.01485047571 | IU64: =(IU63-IT63)/IT63 -> 0.01485047571 | IV64: =(IV63-IU63)/IU63 -> 0.01485047571 | IW64: =(IW63-IV63)/IV63 -> 0.01485047571 | IX64: =(IX63-IW63)/IW63 -> 0.01485047571 | IY64: =(IY63-IX63)/IX63 -> 0.01485047571 | IZ64: =(IZ63-IY63)/IY63 -> 0.01485047571 | JA64: =(JA63-IZ63)/IZ63 -> 0.01485047571 | JB64: =(JB63-JA63)/JA63 -> 0.01485047571 | JC64: =(JC63-JB63)/JB63 -> 0.01485047571 | JD64: =(JD63-JC63)/JC63 -> 0.01485047571 | JE64: =(JE63-JD63)/JD63 -> 0.01485047571 | JF64: =(JF63-JE63)/JE63 -> 0.01485047571 | JG64: =(JG63-JF63)/JF63 -> 0.01485047571 | JH64: =(JH63-JG63)/JG63 -> 0.01485047571 | JI64: =(JI63-JH63)/JH63 -> 0.01485047571 | JJ64: =(JJ63-JI63)/JI63 -> 0.01485047571 | JK64: =(JK63-JJ63)/JJ63 -> 0.01485047571 | JL64: =(JL63-JK63)/JK63 -> 0.01485047571 | JM64: =(JM63-JL63)/JL63 -> 0.01485047571 | JN64: =(JN63-JM63)/JM63 -> 0.01485047571 | JO64: =(JO63-JN63)/JN63 -> 0.01485047571 | JP64: =(JP63-JO63)/JO63 -> 0.01485047571 | JQ64: =(JQ63-JP63)/JP63 -> 0.01485047571 | JR64: =(JR63-JQ63)/JQ63 -> 0.01485047571 | JS64: =(JS63-JR63)/JR63 -> 0.01485047571 | JT64: =(JT63-JS63)/JS63 -> 0.01485047571 | JU64: =(JU63-JT63)/JT63 -> 0.01485047571 | JV64: =(JV63-JU63)/JU63 -> 0.01485047571 | JW64: =(JW63-JV63)/JV63 -> 0.01485047571 | JX64: =(JX63-JW63)/JW63 -> 0.01485047571 | JY64: =(JY63-JX63)/JX63 -> 0.01485047571 | JZ64: =(JZ63-JY63)/JY63 -> 0.01485047571 | KA64: =(KA63-JZ63)/JZ63 -> 0.01485047571 | KB64: =(KB63-KA63)/KA63 -> 0.01485047571 | KC64: =(KC63-KB63)/KB63 -> 0.01485047571 | KD64: =(KD63-KC63)/KC63 -> 0.01485047571 | KE64: =(KE63-KD63)/KD63 -> 0.01485047571 | KF64: =(KF63-KE63)/KE63 -> 0.01485047571 | KG64: =(KG63-KF63)/KF63 -> 0.01485047571 | KH64: =(KH63-KG63)/KG63 -> 0.01485047571 | KI64: =(KI63-KH63)/KH63 -> 0.01485047571 | KJ64: =(KJ63-KI63)/KI63 -> 0.01485047571 | KK64: =(KK63-KJ63)/KJ63 -> 0.01485047571 | KL64: =(KL63-KK63)/KK63 -> 0.01485047571 | KM64: =(KM63-KL63)/KL63 -> 0.01485047571 | KN64: =(KN63-KM63)/KM63 -> 0.01485047571 | KO64: =(KO63-KN63)/KN63 -> 0.01485047571 | KP64: =(KP63-KO63)/KO63 -> 0.01485047571 | KQ64: =(KQ63-KP63)/KP63 -> 0.01485047571 | KR64: =(KR63-KQ63)/KQ63 -> 0.01485047571 | KS64: =(KS63-KR63)/KR63 -> 0.01485047571 | KT64: =(KT63-KS63)/KS63 -> 0.01485047571 | KU64: =(KU63-KT63)/KT63 -> 0.01485047571 | KV64: =(KV63-KU63)/KU63 -> 0.01485047571
C65: Population growth (index) | H65: 102.8802795 | I65: 103.276698 | J65: 103.7181917 | K65: 104.1916576 | L65: 104.7397248 | M65: 105.5484604 | N65: 106.2712383 | O65: 107.1309893 | P65: 108.0127539 | Q65: 108.7757152 | R65: 109.6475213 | S65: 110.5658004 | T65: 111.3090194 | U65: 112.0562568 | V65: 112.8957414 | W65: 113.7139113 | X65: 114.6203101 | Y65: 115.2466477 | Z65: 115.8099148 | AA65: 116.4053287 | AB65: 116.6017034 | AC65: 117.0176895 | AD65: 118.1674601 | AE65: 119.7225595 | AF65: 121.0419742 | AG65: 121.4011793 | AH65: 121.7915303 | AI65: 122.1509547 | AJ65: 122.5453773 | AK65: 122.9636698 | AL65: 123.408643 | AM65: 123.9422983 | AN65: 124.4620542 | AO65: 124.9686596 | AP65: 125.4632633 | AQ65: 125.9466508 | AR65: 126.4198249 | AS65: 126.8839273 | AT65: 127.3402389 | AU65: 127.7896337 | AV65: 128.2328088 | AW65: 128.6701411 | AX65: 129.1018462 | AY65: 129.5274879 | AZ65: 129.9460652 | BA65: 130.3567856 | BB65: 130.7589695 | BC65: 131.1517326 | BD65: 131.5324626 | BE65: 131.8982122 | BF65: 132.2478205 | BG65: 132.5804533 | BH65: 132.8958152 | BI65: 133.1938958 | BJ65: 133.4749349 | BK65: 133.7401437 | BL65: 133.9914166 | BM65: 134.2308094 | BN65: 134.4601973 | BO65: 134.6815198 | BP65: 134.8968727 | BQ65: 135.108166 | BR65: 135.3171357 | BS65: 135.5249029 | BT65: 135.7323051 | BU65: 135.940173 | BV65: 136.1490072 | BW65: 136.3586529 | BX65: 136.5688044 | BY65: 136.7785597 | BZ65: 136.9868586 | CA65: 137.1923317 | CB65: 137.3933942 | CC65: 137.5884401 | CD65: 137.7759194 | CE65: 137.9545443 | CF65: 138.12306 | CG65: 138.2806132 | CH65: 138.4266148 | CI65: 138.5607173 | CJ65: 138.682745 | CK65: 138.7927572 | CL65: 138.8910022 | CM65: 138.9777478 | CN65: 139.0535345 | CO65: 139.1189929 | CP65: 139.1748271 | CQ65: 139.2218694 | CR65: 139.2609679 | CS65: 139.2928682 | CT65: 139.3183575 | CU65: 139.3381744 | CV65: 139.3530835 | CW65: 139.3636584 | CX65: 139.3704048 | CY65: 139.3737381 | CZ65: 139.3739918 | DA65: 139.3714545 | DB65: 139.3663782 | DC65: 139.3589349 | DD65: 139.3492011 | DE65: =DD65*($DD65/$DC65) -> 139.339468 | DF65: 139.3297356 | DG65: 139.3200038 | DH65: 139.3102728 | DI65: 139.3005424 | DJ65: 139.2908127 | DK65: 139.2810836 | DL65: 139.2713553 | DM65: 139.2616276 | DN65: 139.2519006 | DO65: 139.2421743 | DP65: 139.2324487 | DQ65: 139.2227237 | DR65: 139.2129994 | DS65: 139.2032759 | DT65: 139.1935529 | DU65: 139.1838307 | DV65: 139.1741091 | DW65: 139.1643883 | DX65: 139.1546681 | DY65: 139.1449485 | DZ65: 139.1352297 | EA65: 139.1255115 | EB65: 139.115794 | EC65: 139.1060772 | ED65: 139.0963611 | EE65: 139.0866457 | EF65: 139.0769309 | EG65: 139.0672168 | EH65: 139.0575034 | EI65: 139.0477906 | EJ65: 139.0380786 | EK65: 139.0283672 | EL65: 139.0186565 | EM65: 139.0089465 | EN65: 138.9992371 | EO65: 138.9895285 | EP65: 138.9798205 | EQ65: 138.9701132 | ER65: 138.9604066 | ES65: 138.9507006 | ET65: 138.9409953 | EU65: 138.9312907 | EV65: 138.9215868 | EW65: 138.9118836 | EX65: 138.902181 | EY65: 138.8924791 | EZ65: 138.8827779 | FA65: 138.8730774 | FB65: 138.8633775 | FC65: 138.8536783 | FD65: 138.8439798 | FE65: 138.834282 | FF65: 138.8245849 | FG65: 138.8148884 | FH65: 138.8051926 | FI65: 138.7954975 | FJ65: 138.7858031 | FK65: 138.7761093 | FL65: 138.7664162 | FM65: 138.7567238 | FN65: 138.7470321 | FO65: 138.7373411 | FP65: 138.7276507 | FQ65: =FP65*($DD65/$DC65) -> 138.717961 | FR65: 138.708272 | FS65: 138.6985836 | FT65: 138.688896 | FU65: 138.679209 | FV65: 138.6695227 | FW65: 138.659837 | FX65: 138.6501521 | FY65: 138.6404678 | FZ65: 138.6307842 | GA65: 138.6211012 | GB65: 138.611419 | GC65: 138.6017374 | GD65: 138.5920565 | GE65: 138.5823763 | GF65: 138.5726967 | GG65: 138.5630179 | GH65: 138.5533397 | GI65: 138.5436621 | GJ65: 138.5339853 | GK65: 138.5243091 | GL65: 138.5146336 | GM65: 138.5049588 | GN65: 138.4952847 | GO65: 138.4856112 | GP65: 138.4759384 | GQ65: 138.4662663 | GR65: 138.4565949 | GS65: 138.4469241 | GT65: 138.437254 | GU65: 138.4275846 | GV65: 138.4179159 | GW65: 138.4082478 | GX65: 138.3985804 | GY65: 138.3889137 | GZ65: 138.3792477 | HA65: 138.3695823 | HB65: 138.3599176 | HC65: 138.3502536 | HD65: 138.3405903 | HE65: 138.3309276 | HF65: 138.3212656 | HG65: 138.3116043 | HH65: 138.3019437 | HI65: 138.2922837 | HJ65: 138.2826244 | HK65: 138.2729658 | HL65: 138.2633079 | HM65: 138.2536506 | HN65: 138.243994 | HO65: 138.2343381 | HP65: 138.2246829 | HQ65: 138.2150283 | HR65: 138.2053744 | HS65: 138.1957212 | HT65: 138.1860687 | HU65: 138.1764168 | HV65: 138.1667656 | HW65: 138.1571151 | HX65: 138.1474652 | HY65: 138.1378161 | HZ65: 138.1281676 | IA65: 138.1185197 | IB65: 138.1088726 | IC65: =IB65*($DD65/$DC65) -> 138.0992261 | ID65: 138.0895803 | IE65: 138.0799352 | IF65: 138.0702907 | IG65: 138.0606469 | IH65: 138.0510038 | II65: 138.0413614 | IJ65: 138.0317196 | IK65: 138.0220786 | IL65: 138.0124381 | IM65: 138.0027984 | IN65: 137.9931593 | IO65: 137.9835209 | IP65: 137.9738832 | IQ65: 137.9642462 | IR65: 137.9546098 | IS65: 137.9449741 | IT65: 137.9353391 | IU65: 137.9257047 | IV65: 137.916071 | IW65: 137.906438 | IX65: 137.8968057 | IY65: 137.887174 | IZ65: 137.877543 | JA65: 137.8679127 | JB65: 137.8582831 | JC65: 137.8486541 | JD65: 137.8390258 | JE65: 137.8293982 | JF65: 137.8197712 | JG65: 137.8101449 | JH65: 137.8005193 | JI65: 137.7908944 | JJ65: 137.7812701 | JK65: 137.7716465 | JL65: 137.7620236 | JM65: 137.7524013 | JN65: 137.7427798 | JO65: 137.7331588 | JP65: 137.7235386 | JQ65: 137.713919 | JR65: 137.7043002 | JS65: =JR65*($DD65/$DC65) -> 137.6946819 | JT65: =JS65*($DD65/$DC65) -> 137.6850644 | JU65: =JT65*($DD65/$DC65) -> 137.6754475 | JV65: =JU65*($DD65/$DC65) -> 137.6658313 | JW65: =JV65*($DD65/$DC65) -> 137.6562158 | JX65: =JW65*($DD65/$DC65) -> 137.6466009 | JY65: =JX65*($DD65/$DC65) -> 137.6369867 | JZ65: =JY65*($DD65/$DC65) -> 137.6273732 | KA65: =JZ65*($DD65/$DC65) -> 137.6177604 | KB65: =KA65*($DD65/$DC65) -> 137.6081482 | KC65: =KB65*($DD65/$DC65) -> 137.5985367 | KD65: =KC65*($DD65/$DC65) -> 137.5889259 | KE65: =KD65*($DD65/$DC65) -> 137.5793157 | KF65: =KE65*($DD65/$DC65) -> 137.5697062 | KG65: =KF65*($DD65/$DC65) -> 137.5600974 | KH65: =KG65*($DD65/$DC65) -> 137.5504893 | KI65: =KH65*($DD65/$DC65) -> 137.5408818 | KJ65: =KI65*($DD65/$DC65) -> 137.531275 | KK65: =KJ65*($DD65/$DC65) -> 137.5216688 | KL65: =KK65*($DD65/$DC65) -> 137.5120634 | KM65: =KL65*($DD65/$DC65) -> 137.5024586 | KN65: =KM65*($DD65/$DC65) -> 137.4928545 | KO65: =KN65*($DD65/$DC65) -> 137.483251 | KP65: =KO65*($DD65/$DC65) -> 137.4736482 | KQ65: =KP65*($DD65/$DC65) -> 137.4640461 | KR65: =KQ65*($DD65/$DC65) -> 137.4544447 | KS65: =KR65*($DD65/$DC65) -> 137.4448439 | KT65: =KS65*($DD65/$DC65) -> 137.4352438 | KU65: =KT65*($DD65/$DC65) -> 137.4256444 | KV65: =KU65*($DD65/$DC65) -> 137.4160457
C68: Key assumptions
C69: Sources: Temple, eftec and TRL (2019); Simetrica (2019)
C70: Link to Temple, eftec and TRL (2019)
C71: Link to Simetrica (2019)
H72: Landscape values
H73: Central | I73: Low sensitivity | J73: High sensitivity
C74: Appraisal period | H74: 100 yrs | I74: 60 yrs | J74: 250 yrs
C75: Income elasticity of willingness-to-pay for landscape | H75: 1 | I75: 0.8 | J75: 1.2
C76: Long-term income growth rate (pa) | H76: =$JR$63/$JQ$63-1 -> 0.01485047571 | I76: =$JR$63/$JQ$63-1 -> 0.01485047571 | J76: 0.01485047571 | K76: =C59 -> Source: TAG Data Book v2.03 (May 2026)
C77: Long term population growth rate (pa) | H77: =$JR$65/$JQ$65-1 -> -6.984689824e-05 | I77: =$JR$65/$JQ$65-1 -> -6.984689824e-05 | J77: -6.984689824e-05 | K77: =C59 -> Source: TAG Data Book v2.03 (May 2026)
C80: Combined growth factors
H82: Year
H83: 2000 | I83: 2001 | J83: 2002 | K83: 2003 | L83: 2004 | M83: 2005 | N83: 2006 | O83: 2007 | P83: 2008 | Q83: 2009 | R83: 2010 | S83: 2011 | T83: 2012 | U83: 2013 | V83: 2014 | W83: 2015 | X83: 2016 | Y83: 2017 | Z83: 2018 | AA83: 2019 | AB83: 2020 | AC83: 2021 | AD83: 2022 | AE83: 2023 | AF83: 2024 | AG83: 2025 | AH83: 2026 | AI83: 2027 | AJ83: 2028 | AK83: 2029 | AL83: 2030 | AM83: 2031 | AN83: 2032 | AO83: 2033 | AP83: 2034 | AQ83: 2035 | AR83: 2036 | AS83: 2037 | AT83: 2038 | AU83: 2039 | AV83: 2040 | AW83: 2041 | AX83: 2042 | AY83: 2043 | AZ83: 2044 | BA83: 2045 | BB83: 2046 | BC83: 2047 | BD83: 2048 | BE83: 2049 | BF83: 2050 | BG83: 2051 | BH83: 2052 | BI83: 2053 | BJ83: 2054 | BK83: 2055 | BL83: 2056 | BM83: 2057 | BN83: 2058 | BO83: 2059 | BP83: 2060 | BQ83: 2061 | BR83: 2062 | BS83: 2063 | BT83: 2064 | BU83: 2065 | BV83: 2066 | BW83: 2067 | BX83: 2068 | BY83: 2069 | BZ83: 2070 | CA83: 2071 | CB83: 2072 | CC83: 2073 | CD83: 2074 | CE83: 2075 | CF83: 2076 | CG83: 2077 | CH83: 2078 | CI83: 2079 | CJ83: 2080 | CK83: 2081 | CL83: 2082 | CM83: 2083 | CN83: 2084 | CO83: 2085 | CP83: 2086 | CQ83: 2087 | CR83: 2088 | CS83: 2089 | CT83: 2090 | CU83: 2091 | CV83: 2092 | CW83: 2093 | CX83: 2094 | CY83: 2095 | CZ83: 2096 | DA83: 2097 | DB83: 2098 | DC83: 2099 | DD83: 2100 | DE83: 2101 | DF83: 2102 | DG83: 2103 | DH83: 2104 | DI83: 2105 | DJ83: 2106 | DK83: 2107 | DL83: 2108 | DM83: 2109 | DN83: 2110 | DO83: 2111 | DP83: 2112 | DQ83: 2113 | DR83: 2114 | DS83: 2115 | DT83: 2116 | DU83: 2117 | DV83: 2118 | DW83: 2119 | DX83: 2120 | DY83: 2121 | DZ83: 2122 | EA83: 2123 | EB83: 2124 | EC83: 2125 | ED83: 2126 | EE83: 2127 | EF83: 2128 | EG83: 2129 | EH83: 2130 | EI83: 2131 | EJ83: 2132 | EK83: 2133 | EL83: 2134 | EM83: 2135 | EN83: 2136 | EO83: 2137 | EP83: 2138 | EQ83: 2139 | ER83: 2140 | ES83: 2141 | ET83: 2142 | EU83: 2143 | EV83: 2144 | EW83: 2145 | EX83: 2146 | EY83: 2147 | EZ83: 2148 | FA83: 2149 | FB83: 2150 | FC83: 2151 | FD83: 2152 | FE83: 2153 | FF83: 2154 | FG83: 2155 | FH83: 2156 | FI83: 2157 | FJ83: 2158 | FK83: 2159 | FL83: 2160 | FM83: 2161 | FN83: 2162 | FO83: 2163 | FP83: 2164 | FQ83: 2165 | FR83: 2166 | FS83: 2167 | FT83: 2168 | FU83: 2169 | FV83: 2170 | FW83: 2171 | FX83: 2172 | FY83: 2173 | FZ83: 2174 | GA83: 2175 | GB83: 2176 | GC83: 2177 | GD83: 2178 | GE83: 2179 | GF83: 2180 | GG83: 2181 | GH83: 2182 | GI83: 2183 | GJ83: 2184 | GK83: 2185 | GL83: 2186 | GM83: 2187 | GN83: 2188 | GO83: 2189 | GP83: 2190 | GQ83: 2191 | GR83: 2192 | GS83: 2193 | GT83: 2194 | GU83: 2195 | GV83: 2196 | GW83: 2197 | GX83: 2198 | GY83: 2199 | GZ83: 2200 | HA83: 2201 | HB83: 2202 | HC83: 2203 | HD83: 2204 | HE83: 2205 | HF83: 2206 | HG83: 2207 | HH83: 2208 | HI83: 2209 | HJ83: 2210 | HK83: 2211 | HL83: 2212 | HM83: 2213 | HN83: 2214 | HO83: 2215 | HP83: 2216 | HQ83: 2217 | HR83: 2218 | HS83: 2219 | HT83: 2220 | HU83: 2221 | HV83: 2222 | HW83: 2223 | HX83: 2224 | HY83: 2225 | HZ83: 2226 | IA83: 2227 | IB83: 2228 | IC83: 2229 | ID83: 2230 | IE83: 2231 | IF83: 2232 | IG83: 2233 | IH83: 2234 | II83: 2235 | IJ83: 2236 | IK83: 2237 | IL83: 2238 | IM83: 2239 | IN83: 2240 | IO83: 2241 | IP83: 2242 | IQ83: 2243 | IR83: 2244 | IS83: 2245 | IT83: 2246 | IU83: 2247 | IV83: 2248 | IW83: 2249 | IX83: 2250 | IY83: 2251 | IZ83: 2252 | JA83: 2253 | JB83: 2254 | JC83: 2255 | JD83: 2256 | JE83: 2257 | JF83: 2258 | JG83: 2259 | JH83: 2260 | JI83: 2261 | JJ83: 2262 | JK83: 2263 | JL83: 2264 | JM83: 2265 | JN83: 2266 | JO83: 2267 | JP83: 2268 | JQ83: 2269 | JR83: 2270 | JS83: 2271 | JT83: 2272 | JU83: 2273 | JV83: 2274 | JW83: 2275 | JX83: 2276 | JY83: 2277 | JZ83: 2278 | KA83: 2279 | KB83: 2280 | KC83: 2281 | KD83: 2282 | KE83: 2283 | KF83: 2284 | KG83: 2285 | KH83: 2286 | KI83: 2287 | KJ83: 2288 | KK83: 2289 | KL83: 2290 | KM83: 2291 | KN83: 2292 | KO83: 2293 | KP83: 2294 | KQ83: 2295 | KR83: 2296 | KS83: 2297 | KT83: 2298 | KU83: 2299 | KV83: 2300
C84: Central values | H84: =(H$63/$H$63)^$H$75*(H$65/$H$65) -> 1 | I84: 1.023910223 | J84: 1.041409129 | K84: 1.074927049 | L84: 1.099930052 | M84: 1.130625302 | N84: 1.155383975 | O84: 1.189247255 | P84: 1.188659629 | Q84: 1.134130959 | R84: 1.159768496 | S84: 1.169643202 | T84: 1.187518396 | U84: 1.207925538 | V84: 1.246098081 | W84: 1.272769634 | X84: 1.300853554 | Y84: 1.340181247 | Z84: 1.360971893 | AA84: 1.37806977 | AB84: 1.239602744 | AC84: 1.345503393 | AD84: 1.414792833 | AE84: 1.418636118 | AF84: 1.434072661 | AG84: 1.453050943 | AH84: 1.46900734 | AI84: 1.492345262 | AJ84: 1.515954948 | AK84: 1.539277206 | AL84: 1.562612737 | AM84: 1.593589881 | AN84: 1.62566029 | AO84: 1.658971981 | AP84: 1.693344431 | AQ84: 1.728527526 | AR84: 1.764747806 | AS84: 1.80286014 | AT84: 1.840601184 | AU84: 1.878084757 | AV84: 1.915037457 | AW84: 1.951756153 | AX84: 1.988232214 | AY84: 2.024751232 | AZ84: 2.06147731 | BA84: 2.098210782 | BB84: 2.135320851 | BC84: 2.172723728 | BD84: 2.210438529 | BE84: 2.248390219 | BF84: 2.286680152 | BG84: 2.325445366 | BH84: 2.364622257 | BI84: 2.40402535 | BJ84: 2.443651883 | BK84: 2.48346602 | BL84: 2.523322825 | BM84: 2.563291353 | BN84: 2.603388668 | BO84: 2.643841355 | BP84: 2.684385966 | BQ84: 2.725786362 | BR84: 2.767170792 | BS84: 2.808721308 | BT84: =(BT$63/$H$63)^$H$75*(BT$65/$H$65) -> 2.850541298 | BU84: 2.893041922 | BV84: 2.936112456 | BW84: 2.979775073 | BX84: 3.024710389 | BY84: 3.071936126 | BZ84: 3.12101374 | CA84: 3.171032709 | CB84: 3.221692526 | CC84: 3.273175116 | CD84: 3.317680794 | CE84: 3.361634222 | CF84: 3.403818744 | CG84: 3.446706964 | CH84: 3.489542254 | CI84: 3.532064003 | CJ84: 3.57503463 | CK84: 3.619848965 | CL84: 3.666472289 | CM84: 3.713890239 | CN84: 3.761398222 | CO84: 3.811080664 | CP84: 3.86265973 | CQ84: 3.915544436 | CR84: 3.970166103 | CS84: 4.027174268 | CT84: 4.08451414 | CU84: 4.145511983 | CV84: 4.207503521 | CW84: 4.27017494 | CX84: 4.333803814 | CY84: 4.398478211 | CZ84: 4.464147611 | DA84: 4.530700849 | DB84: 4.598089932 | DC84: 4.666278544 | DD84: 4.735244235 | DE84: 4.80522921 | DF84: 4.876248536 | DG84: 4.948317497 | DH84: 5.021451609 | DI84: 5.095666613 | DJ84: 5.170978484 | DK84: 5.247403434 | DL84: 5.324957913 | DM84: 5.403658616 | DN84: 5.483522483 | DO84: 5.564566706 | DP84: 5.646808729 | DQ84: 5.730266256 | DR84: 5.81495725 | DS84: 5.900899943 | DT84: 5.988112834 | DU84: 6.076614696 | DV84: 6.16642458 | DW84: 6.257561816 | DX84: 6.350046024 | DY84: 6.443897111 | DZ84: 6.539135278 | EA84: 6.635781026 | EB84: 6.73385516 | EC84: 6.833378788 | ED84: 6.934373336 | EE84: 7.036860542 | EF84: =(EF$63/$H$63)^$H$75*(EF$65/$H$65) -> 7.140862466 | EG84: 7.246401497 | EH84: 7.353500351 | EI84: 7.462182083 | EJ84: 7.572470086 | EK84: 7.684388101 | EL84: 7.797960219 | EM84: 7.913210885 | EN84: 8.03016491 | EO84: 8.148847468 | EP84: 8.269284105 | EQ84: 8.391500747 | ER84: 8.5155237 | ES84: 8.641379662 | ET84: 8.769095724 | EU84: 8.898699377 | EV84: 9.030218519 | EW84: 9.163681461 | EX84: 9.29911693 | EY84: 9.43655408 | EZ84: 9.576022495 | FA84: 9.717552196 | FB84: 9.861173648 | FC84: 10.00691777 | FD84: 10.15481592 | FE84: 10.30489996 | FF84: 10.45720217 | FG84: 10.61175535 | FH84: 10.76859276 | FI84: 10.92774816 | FJ84: 11.08925581 | FK84: 11.25315048 | FL84: 11.41946745 | FM84: 11.58824252 | FN84: 11.75951201 | FO84: 11.93331279 | FP84: 12.10968228 | FQ84: 12.28865844 | FR84: 12.47027979 | FS84: 12.65458543 | FT84: 12.84161504 | FU84: 13.03140886 | FV84: 13.22400776 | FW84: 13.4194532 | FX84: 13.61778723 | FY84: 13.81905257 | FZ84: 14.02329252 | GA84: 14.23055105 | GB84: 14.44087279 | GC84: 14.65430299 | GD84: 14.8708876 | GE84: 15.09067325 | GF84: 15.31370723 | GG84: 15.54003757 | GH84: 15.76971298 | GI84: 16.0027829 | GJ84: 16.23929749 | GK84: 16.47930767 | GL84: 16.72286511 | GM84: 16.97002223 | GN84: 17.22083222 | GO84: 17.47534909 | GP84: 17.73362761 | GQ84: 17.99572339 | GR84: =(GR$63/$H$63)^$H$75*(GR$65/$H$65) -> 18.26169283 | GS84: 18.53159319 | GT84: 18.80548257 | GU84: 19.08341992 | GV84: 19.36546507 | GW84: 19.65167873 | GX84: 19.94212252 | GY84: 20.23685894 | GZ84: 20.53595145 | HA84: 20.83946443 | HB84: 21.1474632 | HC84: 21.46001407 | HD84: 21.77718431 | HE84: 22.0990422 | HF84: 22.42565702 | HG84: 22.75709907 | HH84: 23.0934397 | HI84: 23.43475131 | HJ84: 23.78110736 | HK84: 24.13258241 | HL84: 24.48925212 | HM84: 24.85119327 | HN84: 25.21848375 | HO84: 25.59120264 | HP84: 25.96943016 | HQ84: 26.35324773 | HR84: 26.74273797 | HS84: 27.13798472 | HT84: 27.53907305 | HU84: 27.9460893 | HV84: 28.35912108 | HW84: 28.77825731 | HX84: 29.2035882 | HY84: 29.6352053 | HZ84: 30.07320153 | IA84: 30.51767117 | IB84: 30.96870988 | IC84: 31.42641477 | ID84: 31.89088434 | IE84: 32.36221859 | IF84: 32.84051896 | IG84: 33.32588842 | IH84: 33.81843143 | II84: 34.31825404 | IJ84: 34.82546382 | IK84: 35.34016995 | IL84: 35.86248322 | IM84: 36.39251608 | IN84: 36.9303826 | IO84: 37.47619857 | IP84: 38.03008148 | IQ84: 38.59215055 | IR84: 39.16252677 | IS84: 39.74133292 | IT84: 40.32869359 | IU84: 40.92473521 | IV84: 41.52958608 | IW84: 42.1433764 | IX84: 42.76623829 | IY84: 43.39830583 | IZ84: 44.03971506 | JA84: 44.69060406 | JB84: 45.35111294 | JC84: 46.02138386 | JD84: =(JD$63/$H$63)^$H$75*(JD$65/$H$65) -> 46.70156112 | JE84: 47.39179112 | JF84: 48.09222243 | JG84: 48.80300584 | JH84: 49.52429433 | JI84: 50.25624317 | JJ84: 50.99900992 | JK84: 51.75275446 | JL84: 52.51763903 | JM84: 53.29382828 | JN84: 54.0814893 | JO84: 54.88079162 | JP84: 55.6919073 | JQ84: 56.51501095 | JR84: 57.35027972 | JS84: 58.19789343 | JT84: 59.05803453 | JU84: 59.93088816 | JV84: 60.81664221 | JW84: 61.71548734 | JX84: 62.62761703 | JY84: 63.55322763 | JZ84: 64.49251838 | KA84: 65.44569146 | KB84: 66.41295205 | KC84: 67.39450835 | KD84: 68.39057166 | KE84: 69.40135637 | KF84: 70.42708008 | KG84: 71.46796355 | KH84: 72.52423086 | KI84: 73.59610937 | KJ84: 74.68382981 | KK84: 75.78762631 | KL84: 76.90773647 | KM84: 78.0444014 | KN84: 79.19786578 | KO84: 80.36837789 | KP84: 81.55618969 | KQ84: 82.76155686 | KR84: 83.98473887 | KS84: 85.225999 | KT84: 86.48560446 | KU84: 87.76382637 | KV84: 89.06093988
C85: Low sensitivity | H85: =(H$63/$H$63)^$I$75*(H$65/$H$65) -> 1 | I85: 1.019867013 | J85: 1.034669541 | K85: 1.062192806 | L85: 1.083048519 | M85: 1.108865607 | N85: 1.129790173 | O85: 1.158068696 | P85: 1.159510246 | Q85: 1.118331421 | R85: 1.14032956 | S85: 1.150006928 | T85: 1.165606394 | U85: 1.183185737 | V85: 1.214817017 | W85: 1.237360183 | X85: 1.261155432 | Y85: 1.292974805 | Z85: 1.310273768 | AA85: 1.324784108 | AB85: 1.217588605 | AC85: 1.301043191 | AD85: 1.357023705 | AE85: 1.363532776 | AF85: 1.378407723 | AG85: 1.393807594 | AH85: 1.406941899 | AI85: 1.425635151 | AJ85: 1.444581323 | AK85: 1.46333044 | AL85: 1.482121394 | AM85: 1.506880221 | AN85: 1.532374102 | AO85: 1.558708975 | AP85: 1.5857442 | AQ85: 1.613288126 | AR85: 1.641506967 | AS85: 1.671031069 | AT85: 1.700178275 | AU85: 1.729039235 | AV85: 1.757418615 | AW85: 1.78553996 | AX85: 1.813400572 | AY85: 1.841209889 | AZ85: 1.869084977 | BA85: 1.896878845 | BB85: 1.924856613 | BC85: 1.95295387 | BD85: 1.981175354 | BE85: 2.009456941 | BF85: 2.037865962 | BG85: 2.066495126 | BH85: 2.095295366 | BI85: 2.124132831 | BJ85: 2.153004741 | BK85: 2.181888271 | BL85: 2.210686818 | BM85: 2.239455271 | BN85: 2.268211405 | BO85: 2.297118967 | BP85: 2.326001107 | BQ85: 2.355392805 | BR85: 2.384695346 | BS85: 2.414039172 | BT85: =(BT$63/$H$63)^$I$75*(BT$65/$H$65) -> 2.443498562 | BU85: 2.473357637 | BV85: 2.503540475 | BW85: 2.534060035 | BX85: 2.565375323 | BY85: 2.598166167 | BZ85: 2.632121294 | CA85: 2.666613772 | CB85: 2.701431845 | CC85: 2.736688423 | CD85: 2.767170476 | CE85: 2.797184674 | CF85: 2.825920575 | CG85: 2.855021095 | CH85: 2.883980116 | CI85: 2.912624171 | CJ85: 2.941455356 | CK85: 2.971387512 | CL85: 3.00239011 | CM85: 3.033792534 | CN85: 3.065133758 | CO85: 3.097771435 | CP85: 3.131517712 | CQ85: 3.165984546 | CR85: 3.20144759 | CS85: 3.238319446 | CT85: 3.275273453 | CU85: 3.314439805 | CV85: 3.354103655 | CW85: 3.3940639 | CX85: 3.43449654 | CY85: 3.47545539 | CZ85: 3.516905978 | DA85: 3.558775971 | DB85: 3.601033359 | DC85: 3.64365345 | DD85: 3.686620016 | DE85: 3.730093252 | DF85: 3.774079131 | DG85: 3.818583699 | DH85: 3.863613073 | DI85: 3.90917344 | DJ85: 3.955271062 | DK85: 4.001912276 | DL85: 4.04910349 | DM85: 4.096851191 | DN85: 4.145161941 | DO85: 4.194042379 | DP85: 4.243499223 | DQ85: 4.293539271 | DR85: 4.344169399 | DS85: 4.395396566 | DT85: 4.447227813 | DU85: 4.499670262 | DV85: 4.552731121 | DW85: 4.606417683 | DX85: 4.660737325 | DY85: 4.715697514 | DZ85: 4.771305803 | EA85: 4.827569833 | EB85: 4.884497339 | EC85: 4.942096143 | ED85: 5.000374161 | EE85: 5.059339404 | EF85: =(EF$63/$H$63)^$I$75*(EF$65/$H$65) -> 5.118999975 | EG85: 5.179364073 | EH85: 5.240439994 | EI85: 5.302236133 | EJ85: 5.364760982 | EK85: 5.428023135 | EL85: 5.492031285 | EM85: 5.556794231 | EN85: 5.622320871 | EO85: 5.688620213 | EP85: 5.755701367 | EQ85: 5.823573554 | ER85: 5.892246101 | ES85: 5.961728446 | ET85: 6.032030138 | EU85: 6.103160839 | EV85: 6.175130326 | EW85: 6.247948488 | EX85: 6.321625335 | EY85: 6.396170991 | EZ85: 6.471595701 | FA85: 6.547909833 | FB85: 6.625123873 | FC85: 6.703248435 | FD85: 6.782294254 | FE85: 6.862272194 | FF85: 6.943193248 | FG85: 7.025068536 | FH85: 7.107909311 | FI85: 7.191726958 | FJ85: 7.276532997 | FK85: 7.362339083 | FL85: 7.449157009 | FM85: 7.536998705 | FN85: 7.625876246 | FO85: 7.715801846 | FP85: 7.806787863 | FQ85: 7.898846802 | FR85: 7.991991316 | FS85: 8.086234205 | FT85: 8.181588422 | FU85: 8.278067071 | FV85: 8.375683413 | FW85: 8.474450864 | FX85: 8.574382996 | FY85: 8.675493545 | FZ85: 8.777796406 | GA85: 8.881305639 | GB85: 8.98603547 | GC85: 9.092000293 | GD85: 9.199214671 | GE85: 9.307693338 | GF85: 9.417451204 | GG85: 9.528503353 | GH85: 9.640865048 | GI85: 9.75455173 | GJ85: 9.869579024 | GK85: 9.98596274 | GL85: 10.10371887 | GM85: 10.2228636 | GN85: 10.34341331 | GO85: 10.46538456 | GP85: 10.58879411 | GQ85: 10.71365893 | GR85: =(GR$63/$H$63)^$I$75*(GR$65/$H$65) -> 10.83999617 | GS85: 10.96782321 | GT85: 11.0971576 | GU85: 11.22801713 | GV85: 11.36041977 | GW85: 11.49438373 | GX85: 11.62992741 | GY85: 11.76706945 | GZ85: 11.90582868 | HA85: 12.04622419 | HB85: 12.18827527 | HC85: 12.33200144 | HD85: 12.47742245 | HE85: 12.62455828 | HF85: 12.77342917 | HG85: 12.92405557 | HH85: 13.07645818 | HI85: 13.23065795 | HJ85: 13.38667607 | HK85: 13.54453397 | HL85: 13.70425337 | HM85: 13.8658562 | HN85: 14.02936468 | HO85: 14.19480128 | HP85: 14.36218873 | HQ85: 14.53155005 | HR85: 14.7029085 | HS85: 14.87628764 | HT85: 15.05171129 | HU85: 15.22920357 | HV85: 15.40878887 | HW85: 15.59049187 | HX85: 15.77433754 | HY85: 15.96035115 | HZ85: 16.14855826 | IA85: 16.33898474 | IB85: 16.53165677 | IC85: 16.72660081 | ID85: 16.92384366 | IE85: 17.12341244 | IF85: 17.32533456 | IG85: 17.52963779 | IH85: 17.73635019 | II85: 17.94550017 | IJ85: 18.15711649 | IK85: 18.37122823 | IL85: 18.5878648 | IM85: 18.80705599 | IN85: 19.02883192 | IO85: 19.25322307 | IP85: 19.48026027 | IQ85: 19.70997474 | IR85: 19.94239803 | IS85: 20.1775621 | IT85: 20.41549927 | IU85: 20.65624223 | IV85: 20.89982407 | IW85: 21.14627826 | IX85: 21.39563869 | IY85: 21.64793961 | IZ85: 21.90321571 | JA85: 22.16150207 | JB85: 22.42283419 | JC85: 22.68724797 | JD85: =(JD$63/$H$63)^$I$75*(JD$65/$H$65) -> 22.95477977 | JE85: 23.22546634 | JF85: 23.4993449 | JG85: 23.77645308 | JH85: 24.05682896 | JI85: 24.34051109 | JJ85: 24.62753844 | JK85: 24.91795046 | JL85: 25.21178707 | JM85: 25.50908865 | JN85: 25.80989606 | JO85: 26.11425065 | JP85: 26.42219423 | JQ85: 26.73376913 | JR85: 27.04901818 | JS85: 27.36798469 | JT85: 27.69071252 | JU85: 28.017246 | JV85: 28.34763002 | JW85: 28.68190998 | JX85: 29.02013182 | JY85: 29.36234204 | JZ85: 29.70858765 | KA85: 30.05891626 | KB85: 30.41337599 | KC85: 30.77201557 | KD85: 31.13488429 | KE85: 31.50203202 | KF85: 31.87350921 | KG85: 32.24936693 | KH85: 32.62965682 | KI85: 33.01443115 | KJ85: 33.40374281 | KK85: 33.79764529 | KL85: 34.19619274 | KM85: 34.59943993 | KN85: 35.00744227 | KO85: 35.42025584 | KP85: 35.83793738 | KQ85: 36.26054429 | KR85: 36.68813466 | KS85: 37.12076723 | KT85: 37.55850149 | KU85: 38.00139758 | KV85: 38.44951637
C86: High sensitivity | H86: =(H$63/$H$63)^$J$75*(H$65/$H$65) -> 1 | I86: 1.027969462 | J86: 1.048192617 | K86: 1.087813959 | L86: 1.117074718 | M86: 1.152811995 | N86: 1.181557569 | O86: 1.221265232 | P86: 1.218541808 | Q86: 1.15015371 | R86: 1.179538803 | S86: 1.189614765 | T86: 1.209842317 | U86: 1.233182636 | V86: 1.278184621 | W86: 1.309192395 | X86: 1.341801276 | Y86: 1.389111193 | Z86: 1.41363167 | AA86: 1.433498695 | AB86: 1.262014901 | AC86: 1.39148292 | AD86: 1.47502122 | AE86: 1.475966308 | AF86: 1.491985544 | AG86: 1.514812411 | AH86: 1.53381072 | AI86: 1.562176957 | AJ86: 1.590854989 | AK86: 1.619165605 | AL86: 1.64747542 | AM86: 1.685289031 | AN86: 1.724625451 | AO86: 1.765684344 | AP86: 1.808245844 | AQ86: 1.851998635 | AR86: 1.897241304 | AS86: 1.945089318 | AT86: 1.992622048 | AU86: 2.039978206 | AV86: 2.086792771 | AW86: 2.133445438 | AX86: 2.179919537 | AY86: 2.226588926 | AZ86: 2.27367335 | BA86: 2.320911796 | BB86: 2.368797294 | BC86: 2.417224734 | BD86: 2.46623222 | BE86: 2.515733716 | BF86: 2.565873428 | BG86: 2.616844377 | BH86: 2.668568121 | BI86: 2.720798717 | BJ86: 2.773535241 | BK86: 2.826727452 | BL86: 2.880171913 | BM86: 2.933955702 | BN86: 2.988095617 | BO86: 3.042897303 | BP86: 3.097989935 | BQ86: 3.15442557 | BR86: 3.210990538 | BS86: 3.267931804 | BT86: =(BT$63/$H$63)^$J$75*(BT$65/$H$65) -> 3.325390005 | BU86: 3.383939079 | BV86: 3.443425997 | BW86: 3.503886793 | BX86: 3.566290225 | BY86: 3.632097008 | BZ86: 3.700713485 | CA86: 3.770867962 | CB86: 3.842148656 | CC86: 3.914831974 | CD86: 3.97771151 | CE86: 4.039985185 | CF86: 4.099896558 | CG86: 4.161016153 | CH86: 4.222256969 | CI86: 4.283242668 | CJ86: 4.345084682 | CK86: 4.409827555 | CL86: 4.477439158 | CM86: 4.546448233 | CN86: 4.61582355 | CO86: 4.688640249 | CP86: 4.76450768 | CQ86: 4.842565719 | CR86: 4.923466166 | CS86: 5.008194176 | CT86: 5.093698588 | CU86: 5.184969592 | CV86: 5.2780378 | CW86: 5.372436863 | CX86: 5.468590602 | CY86: 5.566640454 | CZ86: 5.666518816 | DA86: 5.768064736 | DB86: 5.871212208 | DC86: 5.975912844 | DD86: 6.082139701 | DE86: 6.190254829 | DF86: 6.300291794 | DG86: 6.412284758 | DH86: 6.526268492 | DI86: 6.642278381 | DJ86: 6.760350443 | DK86: 6.880521336 | DL86: 7.002828366 | DM86: 7.127309507 | DN86: 7.254003404 | DO86: 7.382949391 | DP86: 7.514187501 | DQ86: 7.647758478 | DR86: 7.783703791 | DS86: 7.922065647 | DT86: 8.062887 | DU86: 8.20621157 | DV86: 8.352083855 | DW86: 8.500549142 | DX86: 8.651653524 | DY86: 8.805443913 | DZ86: 8.961968055 | EA86: 9.121274544 | EB86: 9.28341284 | EC86: 9.44843328 | ED86: 9.616387097 | EE86: 9.787326433 | EF86: =(EF$63/$H$63)^$J$75*(EF$65/$H$65) -> 9.961304359 | EG86: 10.13837489 | EH86: 10.31859299 | EI86: 10.50201463 | EJ86: 10.68869674 | EK86: 10.87869727 | EL86: 11.07207523 | EM86: 11.26889064 | EN86: 11.46920462 | EO86: 11.67307934 | EP86: 11.8805781 | EQ86: 12.09176533 | ER86: 12.30670658 | ES86: 12.5254686 | ET86: 12.7481193 | EU86: 12.9747278 | EV86: 13.20536446 | EW86: 13.44010087 | EX86: 13.67900992 | EY86: 13.92216578 | EZ86: 14.16964394 | FA86: 14.42152123 | FB86: 14.67787585 | FC86: 14.93878739 | FD86: 15.20433685 | FE86: 15.47460668 | FF86: 15.74968077 | FG86: 16.02964454 | FH86: 16.3145849 | FI86: 16.60459031 | FJ86: 16.89975082 | FK86: 17.20015804 | FL86: 17.50590526 | FM86: 17.81708739 | FN86: 18.13380105 | FO86: 18.45614455 | FP86: 18.78421798 | FQ86: 19.11812319 | FR86: 19.45796385 | FS86: 19.80384545 | FT86: 20.15587539 | FU86: 20.51416296 | FV86: 20.8788194 | FW86: 21.2499579 | FX86: 21.6276937 | FY86: 22.01214408 | FZ86: 22.40342838 | GA86: 22.80166808 | GB86: 23.20698683 | GC86: 23.61951046 | GD86: 24.03936705 | GE86: 24.46668694 | GF86: 24.90160279 | GG86: 25.34424964 | GH86: 25.79476491 | GI86: 26.25328846 | GJ86: 26.71996266 | GK86: 27.19493238 | GL86: 27.67834508 | GM86: 28.17035085 | GN86: 28.67110244 | GO86: 29.1807553 | GP86: 29.69946767 | GQ86: 30.22740059 | GR86: =(GR$63/$H$63)^$J$75*(GR$65/$H$65) -> 30.76471795 | GS86: 31.31158659 | GT86: 31.86817627 | GU86: 32.4346598 | GV86: 33.01121304 | GW86: 33.59801501 | GX86: 34.19524787 | GY86: 34.80309705 | GZ86: 35.42175125 | HA86: 36.05140255 | HB86: 36.69224643 | HC86: 37.34448185 | HD86: 38.0083113 | HE86: 38.68394087 | HF86: 39.37158032 | HG86: 40.07144315 | HH86: 40.78374661 | HI86: 41.50871187 | HJ86: 42.246564 | HK86: 42.99753206 | HL86: 43.76184922 | HM86: 44.53975274 | HN86: 45.33148416 | HO86: 46.13728926 | HP86: 46.95741823 | HQ86: 47.79212568 | HR86: 48.64167074 | HS86: 49.50631719 | HT86: 50.38633345 | HU86: 51.28199273 | HV86: 52.19357311 | HW86: 53.1213576 | HX86: 54.06563423 | HY86: 55.02669617 | HZ86: 56.00484179 | IA86: 57.00037476 | IB86: 58.01360417 | IC86: 59.04484458 | ID86: 60.09441616 | IE86: 61.16264475 | IF86: 62.24986199 | IG86: 63.35640544 | IH86: 64.48261862 | II86: 65.62885118 | IJ86: 66.79545898 | IK86: 67.98280422 | IL86: 69.19125552 | IM86: 70.42118804 | IN86: 71.67298365 | IO86: 72.94703098 | IP86: 74.24372556 | IQ86: 75.56346997 | IR86: 76.90667395 | IS86: 78.27375451 | IT86: 79.66513606 | IU86: 81.08125059 | IV86: 82.52253774 | IW86: 83.98944498 | IX86: 85.48242772 | IY86: 87.00194948 | IZ86: 88.54848201 | JA86: 90.12250546 | JB86: 91.72450848 | JC86: 93.35498846 | JD86: =(JD$63/$H$63)^$J$75*(JD$65/$H$65) -> 95.01445158 | JE86: 96.70341305 | JF86: 98.42239723 | JG86: 100.1719378 | JH86: 101.9525779 | JI86: 103.7648704 | JJ86: 105.6093779 | JK86: 107.486673 | JL86: 109.3973387 | JM86: 111.341968 | JN86: 113.3211648 | JO86: 115.3355434 | JP86: 117.3857293 | JQ86: 119.472359 | JR86: 121.5960802 | JS86: 123.7575524 | JT86: 125.9574466 | JU86: 128.1964457 | JV86: 130.4752449 | JW86: 132.7945517 | JX86: 135.1550861 | JY86: 137.557581 | JZ86: 140.0027822 | KA86: 142.4914489 | KB86: 145.0243538 | KC86: 147.6022832 | KD86: 150.2260374 | KE86: 152.8964311 | KF86: 155.6142932 | KG86: 158.3804676 | KH86: 161.1958131 | KI86: 164.0612037 | KJ86: 166.977529 | KK86: 169.9456945 | KL86: 172.9666216 | KM86: 176.0412482 | KN86: 179.1705288 | KO86: 182.3554351 | KP86: 185.5969557 | KQ86: 188.896097 | KR86: 192.2538834 | KS86: 195.6713572 | KT86: 199.1495795 | KU86: 202.6896301 | KV86: 206.2926081
B89: END

Sheet Calculations (values)
B2: Uprating indices
C4: Discount rates
H6: Year
H7: ='Inputs (values)'!$H$13 -> 2023 | I7: =H7+1 -> 2024 | J7: =I7+1 -> 2025 | K7: 2026 | L7: 2027 | M7: 2028 | N7: 2029 | O7: 2030 | P7: 2031 | Q7: 2032 | R7: 2033 | S7: 2034 | T7: 2035 | U7: 2036 | V7: 2037 | W7: 2038 | X7: 2039 | Y7: 2040 | Z7: 2041 | AA7: 2042 | AB7: 2043 | AC7: 2044 | AD7: 2045 | AE7: 2046 | AF7: 2047 | AG7: 2048 | AH7: 2049 | AI7: 2050 | AJ7: 2051 | AK7: 2052 | AL7: 2053 | AM7: 2054 | AN7: 2055 | AO7: 2056 | AP7: 2057 | AQ7: 2058 | AR7: 2059 | AS7: 2060 | AT7: 2061 | AU7: 2062 | AV7: 2063 | AW7: 2064 | AX7: 2065 | AY7: 2066 | AZ7: 2067 | BA7: 2068 | BB7: 2069 | BC7: 2070 | BD7: 2071 | BE7: 2072 | BF7: 2073 | BG7: 2074 | BH7: 2075 | BI7: 2076 | BJ7: 2077 | BK7: 2078 | BL7: 2079 | BM7: 2080 | BN7: 2081 | BO7: 2082 | BP7: 2083 | BQ7: 2084 | BR7: 2085 | BS7: 2086 | BT7: 2087 | BU7: 2088 | BV7: =BU7+1 -> 2089 | BW7: 2090 | BX7: 2091 | BY7: 2092 | BZ7: 2093 | CA7: 2094 | CB7: 2095 | CC7: 2096 | CD7: 2097 | CE7: 2098 | CF7: 2099 | CG7: 2100 | CH7: 2101 | CI7: 2102 | CJ7: 2103 | CK7: 2104 | CL7: 2105 | CM7: 2106 | CN7: 2107 | CO7: 2108 | CP7: 2109 | CQ7: 2110 | CR7: 2111 | CS7: 2112 | CT7: 2113 | CU7: 2114 | CV7: 2115 | CW7: 2116 | CX7: 2117 | CY7: 2118 | CZ7: 2119 | DA7: 2120 | DB7: 2121 | DC7: 2122 | DD7: 2123 | DE7: 2124 | DF7: 2125 | DG7: 2126 | DH7: 2127 | DI7: 2128 | DJ7: 2129 | DK7: 2130 | DL7: 2131 | DM7: 2132 | DN7: 2133 | DO7: 2134 | DP7: 2135 | DQ7: 2136 | DR7: 2137 | DS7: 2138 | DT7: 2139 | DU7: 2140 | DV7: 2141 | DW7: 2142 | DX7: 2143 | DY7: 2144 | DZ7: 2145 | EA7: 2146 | EB7: 2147 | EC7: 2148 | ED7: 2149 | EE7: 2150 | EF7: 2151 | EG7: 2152 | EH7: =EG7+1 -> 2153 | EI7: 2154 | EJ7: 2155 | EK7: 2156 | EL7: 2157 | EM7: 2158 | EN7: 2159 | EO7: 2160 | EP7: 2161 | EQ7: 2162 | ER7: 2163 | ES7: 2164 | ET7: 2165 | EU7: 2166 | EV7: 2167 | EW7: 2168 | EX7: 2169 | EY7: 2170 | EZ7: 2171 | FA7: 2172 | FB7: 2173 | FC7: 2174 | FD7: 2175 | FE7: 2176 | FF7: 2177 | FG7: 2178 | FH7: 2179 | FI7: 2180 | FJ7: 2181 | FK7: 2182 | FL7: 2183 | FM7: 2184 | FN7: 2185 | FO7: 2186 | FP7: 2187 | FQ7: 2188 | FR7: 2189 | FS7: 2190 | FT7: 2191 | FU7: 2192 | FV7: 2193 | FW7: 2194 | FX7: 2195 | FY7: 2196 | FZ7: 2197 | GA7: 2198 | GB7: 2199 | GC7: 2200 | GD7: 2201 | GE7: 2202 | GF7: 2203 | GG7: 2204 | GH7: 2205 | GI7: 2206 | GJ7: 2207 | GK7: 2208 | GL7: 2209 | GM7: 2210 | GN7: 2211 | GO7: 2212 | GP7: 2213 | GQ7: 2214 | GR7: 2215 | GS7: 2216 | GT7: =GS7+1 -> 2217 | GU7: 2218 | GV7: 2219 | GW7: 2220 | GX7: 2221 | GY7: 2222 | GZ7: 2223 | HA7: 2224 | HB7: 2225 | HC7: 2226 | HD7: 2227 | HE7: 2228 | HF7: 2229 | HG7: 2230 | HH7: 2231 | HI7: 2232 | HJ7: 2233 | HK7: 2234 | HL7: 2235 | HM7: 2236 | HN7: 2237 | HO7: 2238 | HP7: 2239 | HQ7: 2240 | HR7: 2241 | HS7: 2242 | HT7: 2243 | HU7: 2244 | HV7: 2245 | HW7: 2246 | HX7: 2247 | HY7: 2248 | HZ7: 2249 | IA7: 2250 | IB7: 2251 | IC7: 2252 | ID7: 2253 | IE7: 2254 | IF7: 2255 | IG7: 2256 | IH7: 2257 | II7: 2258 | IJ7: 2259 | IK7: 2260 | IL7: 2261 | IM7: 2262 | IN7: 2263 | IO7: 2264 | IP7: 2265 | IQ7: 2266 | IR7: 2267 | IS7: 2268 | IT7: 2269 | IU7: 2270 | IV7: 2271 | IW7: 2272 | IX7: 2273 | IY7: 2274 | IZ7: 2275 | JA7: 2276 | JB7: 2277 | JC7: 2278 | JD7: 2279 | JE7: 2280 | JF7: =JE7+1 -> 2281 | JG7: 2282 | JH7: 2283 | JI7: 2284 | JJ7: 2285 | JK7: 2286 | JL7: 2287 | JM7: 2288 | JN7: 2289 | JO7: 2290 | JP7: 2291 | JQ7: 2292 | JR7: 2293 | JS7: 2294 | JT7: 2295 | JU7: 2296 | JV7: 2297 | JW7: 2298 | JX7: 2299 | JY7: 2300 | JZ7: 2301 | KA7: 2302
C8: Discount rates | H8: =LOOKUP(H7-'Inputs (values)'!$H$8,'Inputs (values)'!$C$20:$C$25,'Inputs (values)'!$H$20:$H$25) -> 0.035 | I8: =LOOKUP(I7-'Inputs (values)'!$H$8,'Inputs (values)'!$C$20:$C$25,'Inputs (values)'!$H$20:$H$25) -> 0.035 | J8: =LOOKUP(J7-'Inputs (values)'!$H$8,'Inputs (values)'!$C$20:$C$25,'Inputs (values)'!$H$20:$H$25) -> 0.035 | K8: =LOOKUP(K7-'Inputs (values)'!$H$8,'Inputs (values)'!$C$20:$C$25,'Inputs (values)'!$H$20:$H$25) -> 0.035 | L8: =LOOKUP(L7-'Inputs (values)'!$H$8,'Inputs (values)'!$C$20:$C$25,'Inputs (values)'!$H$20:$H$25) -> 0.035 | M8: =LOOKUP(M7-'Inputs (values)'!$H$8,'Inputs (values)'!$C$20:$C$25,'Inputs (values)'!$H$20:$H$25) -> 0.035 | N8: =LOOKUP(N7-'Inputs (values)'!$H$8,'Inputs (values)'!$C$20:$C$25,'Inputs (values)'!$H$20:$H$25) -> 0.035 | O8: =LOOKUP(O7-'Inputs (values)'!$H$8,'Inputs (values)'!$C$20:$C$25,'Inputs (values)'!$H$20:$H$25) -> 0.035 | P8: =LOOKUP(P7-'Inputs (values)'!$H$8,'Inputs (values)'!$C$20:$C$25,'Inputs (values)'!$H$20:$H$25) -> 0.035 | Q8: =LOOKUP(Q7-'Inputs (values)'!$H$8,'Inputs (values)'!$C$20:$C$25,'Inputs (values)'!$H$20:$H$25) -> 0.035 | R8: =LOOKUP(R7-'Inputs (values)'!$H$8,'Inputs (values)'!$C$20:$C$25,'Inputs (values)'!$H$20:$H$25) -> 0.035 | S8: =LOOKUP(S7-'Inputs (values)'!$H$8,'Inputs (values)'!$C$20:$C$25,'Inputs (values)'!$H$20:$H$25) -> 0.035 | T8: =LOOKUP(T7-'Inputs (values)'!$H$8,'Inputs (values)'!$C$20:$C$25,'Inputs (values)'!$H$20:$H$25) -> 0.035 | U8: =LOOKUP(U7-'Inputs (values)'!$H$8,'Inputs (values)'!$C$20:$C$25,'Inputs (values)'!$H$20:$H$25) -> 0.035 | V8: =LOOKUP(V7-'Inputs (values)'!$H$8,'Inputs (values)'!$C$20:$C$25,'Inputs (values)'!$H$20:$H$25) -> 0.035 | W8: =LOOKUP(W7-'Inputs (values)'!$H$8,'Inputs (values)'!$C$20:$C$25,'Inputs (values)'!$H$20:$H$25) -> 0.035 | X8: =LOOKUP(X7-'Inputs (values)'!$H$8,'Inputs (values)'!$C$20:$C$25,'Inputs (values)'!$H$20:$H$25) -> 0.035 | Y8: =LOOKUP(Y7-'Inputs (values)'!$H$8,'Inputs (values)'!$C$20:$C$25,'Inputs (values)'!$H$20:$H$25) -> 0.035 | Z8: =LOOKUP(Z7-'Inputs (values)'!$H$8,'Inputs (values)'!$C$20:$C$25,'Inputs (values)'!$H$20:$H$25) -> 0.035 | AA8: =LOOKUP(AA7-'Inputs (values)'!$H$8,'Inputs (values)'!$C$20:$C$25,'Inputs (values)'!$H$20:$H$25) -> 0.035 | AB8: =LOOKUP(AB7-'Inputs (values)'!$H$8,'Inputs (values)'!$C$20:$C$25,'Inputs (values)'!$H$20:$H$25) -> 0.035 | AC8: =LOOKUP(AC7-'Inputs (values)'!$H$8,'Inputs (values)'!$C$20:$C$25,'Inputs (values)'!$H$20:$H$25) -> 0.035 | AD8: =LOOKUP(AD7-'Inputs (values)'!$H$8,'Inputs (values)'!$C$20:$C$25,'Inputs (values)'!$H$20:$H$25) -> 0.035 | AE8: =LOOKUP(AE7-'Inputs (values)'!$H$8,'Inputs (values)'!$C$20:$C$25,'Inputs (values)'!$H$20:$H$25) -> 0.035 | AF8: =LOOKUP(AF7-'Inputs (values)'!$H$8,'Inputs (values)'!$C$20:$C$25,'Inputs (values)'!$H$20:$H$25) -> 0.035 | AG8: =LOOKUP(AG7-'Inputs (values)'!$H$8,'Inputs (values)'!$C$20:$C$25,'Inputs (values)'!$H$20:$H$25) -> 0.035 | AH8: =LOOKUP(AH7-'Inputs (values)'!$H$8,'Inputs (values)'!$C$20:$C$25,'Inputs (values)'!$H$20:$H$25) -> 0.035 | AI8: =LOOKUP(AI7-'Inputs (values)'!$H$8,'Inputs (values)'!$C$20:$C$25,'Inputs (values)'!$H$20:$H$25) -> 0.035 | AJ8: =LOOKUP(AJ7-'Inputs (values)'!$H$8,'Inputs (values)'!$C$20:$C$25,'Inputs (values)'!$H$20:$H$25) -> 0.035 | AK8: =LOOKUP(AK7-'Inputs (values)'!$H$8,'Inputs (values)'!$C$20:$C$25,'Inputs (values)'!$H$20:$H$25) -> 0.035 | AL8: =LOOKUP(AL7-'Inputs (values)'!$H$8,'Inputs (values)'!$C$20:$C$25,'Inputs (values)'!$H$20:$H$25) -> 0.035 | AM8: =LOOKUP(AM7-'Inputs (values)'!$H$8,'Inputs (values)'!$C$20:$C$25,'Inputs (values)'!$H$20:$H$25) -> 0.035 | AN8: =LOOKUP(AN7-'Inputs (values)'!$H$8,'Inputs (values)'!$C$20:$C$25,'Inputs (values)'!$H$20:$H$25) -> 0.035 | AO8: =LOOKUP(AO7-'Inputs (values)'!$H$8,'Inputs (values)'!$C$20:$C$25,'Inputs (values)'!$H$20:$H$25) -> 0.03 | AP8: =LOOKUP(AP7-'Inputs (values)'!$H$8,'Inputs (values)'!$C$20:$C$25,'Inputs (values)'!$H$20:$H$25) -> 0.03 | AQ8: =LOOKUP(AQ7-'Inputs (values)'!$H$8,'Inputs (values)'!$C$20:$C$25,'Inputs (values)'!$H$20:$H$25) -> 0.03 | AR8: =LOOKUP(AR7-'Inputs (values)'!$H$8,'Inputs (values)'!$C$20:$C$25,'Inputs (values)'!$H$20:$H$25) -> 0.03 | AS8: =LOOKUP(AS7-'Inputs (values)'!$H$8,'Inputs (values)'!$C$20:$C$25,'Inputs (values)'!$H$20:$H$25) -> 0.03 | AT8: =LOOKUP(AT7-'Inputs (values)'!$H$8,'Inputs (values)'!$C$20:$C$25,'Inputs (values)'!$H$20:$H$25) -> 0.03 | AU8: =LOOKUP(AU7-'Inputs (values)'!$H$8,'Inputs (values)'!$C$20:$C$25,'Inputs (values)'!$H$20:$H$25) -> 0.03 | AV8: =LOOKUP(AV7-'Inputs (values)'!$H$8,'Inputs (values)'!$C$20:$C$25,'Inputs (values)'!$H$20:$H$25) -> 0.03 | AW8: =LOOKUP(AW7-'Inputs (values)'!$H$8,'Inputs (values)'!$C$20:$C$25,'Inputs (values)'!$H$20:$H$25) -> 0.03 | AX8: =LOOKUP(AX7-'Inputs (values)'!$H$8,'Inputs (values)'!$C$20:$C$25,'Inputs (values)'!$H$20:$H$25) -> 0.03 | AY8: =LOOKUP(AY7-'Inputs (values)'!$H$8,'Inputs (values)'!$C$20:$C$25,'Inputs (values)'!$H$20:$H$25) -> 0.03 | AZ8: =LOOKUP(AZ7-'Inputs (values)'!$H$8,'Inputs (values)'!$C$20:$C$25,'Inputs (values)'!$H$20:$H$25) -> 0.03 | BA8: =LOOKUP(BA7-'Inputs (values)'!$H$8,'Inputs (values)'!$C$20:$C$25,'Inputs (values)'!$H$20:$H$25) -> 0.03 | BB8: =LOOKUP(BB7-'Inputs (values)'!$H$8,'Inputs (values)'!$C$20:$C$25,'Inputs (values)'!$H$20:$H$25) -> 0.03 | BC8: =LOOKUP(BC7-'Inputs (values)'!$H$8,'Inputs (values)'!$C$20:$C$25,'Inputs (values)'!$H$20:$H$25) -> 0.03 | BD8: =LOOKUP(BD7-'Inputs (values)'!$H$8,'Inputs (values)'!$C$20:$C$25,'Inputs (values)'!$H$20:$H$25) -> 0.03 | BE8: =LOOKUP(BE7-'Inputs (values)'!$H$8,'Inputs (values)'!$C$20:$C$25,'Inputs (values)'!$H$20:$H$25) -> 0.03 | BF8: =LOOKUP(BF7-'Inputs (values)'!$H$8,'Inputs (values)'!$C$20:$C$25,'Inputs (values)'!$H$20:$H$25) -> 0.03 | BG8: =LOOKUP(BG7-'Inputs (values)'!$H$8,'Inputs (values)'!$C$20:$C$25,'Inputs (values)'!$H$20:$H$25) -> 0.03 | BH8: =LOOKUP(BH7-'Inputs (values)'!$H$8,'Inputs (values)'!$C$20:$C$25,'Inputs (values)'!$H$20:$H$25) -> 0.03 | BI8: =LOOKUP(BI7-'Inputs (values)'!$H$8,'Inputs (values)'!$C$20:$C$25,'Inputs (values)'!$H$20:$H$25) -> 0.03 | BJ8: =LOOKUP(BJ7-'Inputs (values)'!$H$8,'Inputs (values)'!$C$20:$C$25,'Inputs (values)'!$H$20:$H$25) -> 0.03 | BK8: =LOOKUP(BK7-'Inputs (values)'!$H$8,'Inputs (values)'!$C$20:$C$25,'Inputs (values)'!$H$20:$H$25) -> 0.03 | BL8: =LOOKUP(BL7-'Inputs (values)'!$H$8,'Inputs (values)'!$C$20:$C$25,'Inputs (values)'!$H$20:$H$25) -> 0.03 | BM8: =LOOKUP(BM7-'Inputs (values)'!$H$8,'Inputs (values)'!$C$20:$C$25,'Inputs (values)'!$H$20:$H$25) -> 0.03 | BN8: =LOOKUP(BN7-'Inputs (values)'!$H$8,'Inputs (values)'!$C$20:$C$25,'Inputs (values)'!$H$20:$H$25) -> 0.03 | BO8: =LOOKUP(BO7-'Inputs (values)'!$H$8,'Inputs (values)'!$C$20:$C$25,'Inputs (values)'!$H$20:$H$25) -> 0.03 | BP8: =LOOKUP(BP7-'Inputs (values)'!$H$8,'Inputs (values)'!$C$20:$C$25,'Inputs (values)'!$H$20:$H$25) -> 0.03 | BQ8: =LOOKUP(BQ7-'Inputs (values)'!$H$8,'Inputs (values)'!$C$20:$C$25,'Inputs (values)'!$H$20:$H$25) -> 0.03 | BR8: =LOOKUP(BR7-'Inputs (values)'!$H$8,'Inputs (values)'!$C$20:$C$25,'Inputs (values)'!$H$20:$H$25) -> 0.03 | BS8: =LOOKUP(BS7-'Inputs (values)'!$H$8,'Inputs (values)'!$C$20:$C$25,'Inputs (values)'!$H$20:$H$25) -> 0.03 | BT8: =LOOKUP(BT7-'Inputs (values)'!$H$8,'Inputs (values)'!$C$20:$C$25,'Inputs (values)'!$H$20:$H$25) -> 0.03 | BU8: =LOOKUP(BU7-'Inputs (values)'!$H$8,'Inputs (values)'!$C$20:$C$25,'Inputs (values)'!$H$20:$H$25) -> 0.03 | BV8: =LOOKUP(BV7-'Inputs (values)'!$H$8,'Inputs (values)'!$C$20:$C$25,'Inputs (values)'!$H$20:$H$25) -> 0.03 | BW8: =LOOKUP(BW7-'Inputs (values)'!$H$8,'Inputs (values)'!$C$20:$C$25,'Inputs (values)'!$H$20:$H$25) -> 0.03 | BX8: =LOOKUP(BX7-'Inputs (values)'!$H$8,'Inputs (values)'!$C$20:$C$25,'Inputs (values)'!$H$20:$H$25) -> 0.03 | BY8: =LOOKUP(BY7-'Inputs (values)'!$H$8,'Inputs (values)'!$C$20:$C$25,'Inputs (values)'!$H$20:$H$25) -> 0.03 | BZ8: =LOOKUP(BZ7-'Inputs (values)'!$H$8,'Inputs (values)'!$C$20:$C$25,'Inputs (values)'!$H$20:$H$25) -> 0.03 | CA8: =LOOKUP(CA7-'Inputs (values)'!$H$8,'Inputs (values)'!$C$20:$C$25,'Inputs (values)'!$H$20:$H$25) -> 0.03 | CB8: =LOOKUP(CB7-'Inputs (values)'!$H$8,'Inputs (values)'!$C$20:$C$25,'Inputs (values)'!$H$20:$H$25) -> 0.03 | CC8: =LOOKUP(CC7-'Inputs (values)'!$H$8,'Inputs (values)'!$C$20:$C$25,'Inputs (values)'!$H$20:$H$25) -> 0.03 | CD8: =LOOKUP(CD7-'Inputs (values)'!$H$8,'Inputs (values)'!$C$20:$C$25,'Inputs (values)'!$H$20:$H$25) -> 0.03 | CE8: =LOOKUP(CE7-'Inputs (values)'!$H$8,'Inputs (values)'!$C$20:$C$25,'Inputs (values)'!$H$20:$H$25) -> 0.03 | CF8: =LOOKUP(CF7-'Inputs (values)'!$H$8,'Inputs (values)'!$C$20:$C$25,'Inputs (values)'!$H$20:$H$25) -> 0.03 | CG8: =LOOKUP(CG7-'Inputs (values)'!$H$8,'Inputs (values)'!$C$20:$C$25,'Inputs (values)'!$H$20:$H$25) -> 0.03 | CH8: =LOOKUP(CH7-'Inputs (values)'!$H$8,'Inputs (values)'!$C$20:$C$25,'Inputs (values)'!$H$20:$H$25) -> 0.025 | CI8: =LOOKUP(CI7-'Inputs (values)'!$H$8,'Inputs (values)'!$C$20:$C$25,'Inputs (values)'!$H$20:$H$25) -> 0.025 | CJ8: =LOOKUP(CJ7-'Inputs (values)'!$H$8,'Inputs (values)'!$C$20:$C$25,'Inputs (values)'!$H$20:$H$25) -> 0.025 | CK8: =LOOKUP(CK7-'Inputs (values)'!$H$8,'Inputs (values)'!$C$20:$C$25,'Inputs (values)'!$H$20:$H$25) -> 0.025 | CL8: =LOOKUP(CL7-'Inputs (values)'!$H$8,'Inputs (values)'!$C$20:$C$25,'Inputs (values)'!$H$20:$H$25) -> 0.025 | CM8: =LOOKUP(CM7-'Inputs (values)'!$H$8,'Inputs (values)'!$C$20:$C$25,'Inputs (values)'!$H$20:$H$25) -> 0.025 | CN8: =LOOKUP(CN7-'Inputs (values)'!$H$8,'Inputs (values)'!$C$20:$C$25,'Inputs (values)'!$H$20:$H$25) -> 0.025 | CO8: =LOOKUP(CO7-'Inputs (values)'!$H$8,'Inputs (values)'!$C$20:$C$25,'Inputs (values)'!$H$20:$H$25) -> 0.025 | CP8: =LOOKUP(CP7-'Inputs (values)'!$H$8,'Inputs (values)'!$C$20:$C$25,'Inputs (values)'!$H$20:$H$25) -> 0.025 | CQ8: =LOOKUP(CQ7-'Inputs (values)'!$H$8,'Inputs (values)'!$C$20:$C$25,'Inputs (values)'!$H$20:$H$25) -> 0.025 | CR8: =LOOKUP(CR7-'Inputs (values)'!$H$8,'Inputs (values)'!$C$20:$C$25,'Inputs (values)'!$H$20:$H$25) -> 0.025 | CS8: =LOOKUP(CS7-'Inputs (values)'!$H$8,'Inputs (values)'!$C$20:$C$25,'Inputs (values)'!$H$20:$H$25) -> 0.025 | CT8: =LOOKUP(CT7-'Inputs (values)'!$H$8,'Inputs (values)'!$C$20:$C$25,'Inputs (values)'!$H$20:$H$25) -> 0.025 | CU8: =LOOKUP(CU7-'Inputs (values)'!$H$8,'Inputs (values)'!$C$20:$C$25,'Inputs (values)'!$H$20:$H$25) -> 0.025 | CV8: =LOOKUP(CV7-'Inputs (values)'!$H$8,'Inputs (values)'!$C$20:$C$25,'Inputs (values)'!$H$20:$H$25) -> 0.025 | CW8: =LOOKUP(CW7-'Inputs (values)'!$H$8,'Inputs (values)'!$C$20:$C$25,'Inputs (values)'!$H$20:$H$25) -> 0.025 | CX8: =LOOKUP(CX7-'Inputs (values)'!$H$8,'Inputs (values)'!$C$20:$C$25,'Inputs (values)'!$H$20:$H$25) -> 0.025 | CY8: =LOOKUP(CY7-'Inputs (values)'!$H$8,'Inputs (values)'!$C$20:$C$25,'Inputs (values)'!$H$20:$H$25) -> 0.025 | CZ8: =LOOKUP(CZ7-'Inputs (values)'!$H$8,'Inputs (values)'!$C$20:$C$25,'Inputs (values)'!$H$20:$H$25) -> 0.025 | DA8: =LOOKUP(DA7-'Inputs (values)'!$H$8,'Inputs (values)'!$C$20:$C$25,'Inputs (values)'!$H$20:$H$25) -> 0.025 | DB8: =LOOKUP(DB7-'Inputs (values)'!$H$8,'Inputs (values)'!$C$20:$C$25,'Inputs (values)'!$H$20:$H$25) -> 0.025 | DC8: =LOOKUP(DC7-'Inputs (values)'!$H$8,'Inputs (values)'!$C$20:$C$25,'Inputs (values)'!$H$20:$H$25) -> 0.025 | DD8: =LOOKUP(DD7-'Inputs (values)'!$H$8,'Inputs (values)'!$C$20:$C$25,'Inputs (values)'!$H$20:$H$25) -> 0.025 | DE8: =LOOKUP(DE7-'Inputs (values)'!$H$8,'Inputs (values)'!$C$20:$C$25,'Inputs (values)'!$H$20:$H$25) -> 0.025 | DF8: =LOOKUP(DF7-'Inputs (values)'!$H$8,'Inputs (values)'!$C$20:$C$25,'Inputs (values)'!$H$20:$H$25) -> 0.025 | DG8: =LOOKUP(DG7-'Inputs (values)'!$H$8,'Inputs (values)'!$C$20:$C$25,'Inputs (values)'!$H$20:$H$25) -> 0.025 | DH8: =LOOKUP(DH7-'Inputs (values)'!$H$8,'Inputs (values)'!$C$20:$C$25,'Inputs (values)'!$H$20:$H$25) -> 0.025 | DI8: =LOOKUP(DI7-'Inputs (values)'!$H$8,'Inputs (values)'!$C$20:$C$25,'Inputs (values)'!$H$20:$H$25) -> 0.025 | DJ8: =LOOKUP(DJ7-'Inputs (values)'!$H$8,'Inputs (values)'!$C$20:$C$25,'Inputs (values)'!$H$20:$H$25) -> 0.025 | DK8: =LOOKUP(DK7-'Inputs (values)'!$H$8,'Inputs (values)'!$C$20:$C$25,'Inputs (values)'!$H$20:$H$25) -> 0.025 | DL8: =LOOKUP(DL7-'Inputs (values)'!$H$8,'Inputs (values)'!$C$20:$C$25,'Inputs (values)'!$H$20:$H$25) -> 0.025 | DM8: =LOOKUP(DM7-'Inputs (values)'!$H$8,'Inputs (values)'!$C$20:$C$25,'Inputs (values)'!$H$20:$H$25) -> 0.025 | DN8: =LOOKUP(DN7-'Inputs (values)'!$H$8,'Inputs (values)'!$C$20:$C$25,'Inputs (values)'!$H$20:$H$25) -> 0.025 | DO8: =LOOKUP(DO7-'Inputs (values)'!$H$8,'Inputs (values)'!$C$20:$C$25,'Inputs (values)'!$H$20:$H$25) -> 0.025 | DP8: =LOOKUP(DP7-'Inputs (values)'!$H$8,'Inputs (values)'!$C$20:$C$25,'Inputs (values)'!$H$20:$H$25) -> 0.025 | DQ8: =LOOKUP(DQ7-'Inputs (values)'!$H$8,'Inputs (values)'!$C$20:$C$25,'Inputs (values)'!$H$20:$H$25) -> 0.025 | DR8: =LOOKUP(DR7-'Inputs (values)'!$H$8,'Inputs (values)'!$C$20:$C$25,'Inputs (values)'!$H$20:$H$25) -> 0.025 | DS8: =LOOKUP(DS7-'Inputs (values)'!$H$8,'Inputs (values)'!$C$20:$C$25,'Inputs (values)'!$H$20:$H$25) -> 0.025 | DT8: =LOOKUP(DT7-'Inputs (values)'!$H$8,'Inputs (values)'!$C$20:$C$25,'Inputs (values)'!$H$20:$H$25) -> 0.025 | DU8: =LOOKUP(DU7-'Inputs (values)'!$H$8,'Inputs (values)'!$C$20:$C$25,'Inputs (values)'!$H$20:$H$25) -> 0.025 | DV8: =LOOKUP(DV7-'Inputs (values)'!$H$8,'Inputs (values)'!$C$20:$C$25,'Inputs (values)'!$H$20:$H$25) -> 0.025 | DW8: =LOOKUP(DW7-'Inputs (values)'!$H$8,'Inputs (values)'!$C$20:$C$25,'Inputs (values)'!$H$20:$H$25) -> 0.025 | DX8: =LOOKUP(DX7-'Inputs (values)'!$H$8,'Inputs (values)'!$C$20:$C$25,'Inputs (values)'!$H$20:$H$25) -> 0.025 | DY8: =LOOKUP(DY7-'Inputs (values)'!$H$8,'Inputs (values)'!$C$20:$C$25,'Inputs (values)'!$H$20:$H$25) -> 0.025 | DZ8: =LOOKUP(DZ7-'Inputs (values)'!$H$8,'Inputs (values)'!$C$20:$C$25,'Inputs (values)'!$H$20:$H$25) -> 0.025 | EA8: =LOOKUP(EA7-'Inputs (values)'!$H$8,'Inputs (values)'!$C$20:$C$25,'Inputs (values)'!$H$20:$H$25) -> 0.025 | EB8: =LOOKUP(EB7-'Inputs (values)'!$H$8,'Inputs (values)'!$C$20:$C$25,'Inputs (values)'!$H$20:$H$25) -> 0.025 | EC8: =LOOKUP(EC7-'Inputs (values)'!$H$8,'Inputs (values)'!$C$20:$C$25,'Inputs (values)'!$H$20:$H$25) -> 0.025 | ED8: =LOOKUP(ED7-'Inputs (values)'!$H$8,'Inputs (values)'!$C$20:$C$25,'Inputs (values)'!$H$20:$H$25) -> 0.025 | EE8: =LOOKUP(EE7-'Inputs (values)'!$H$8,'Inputs (values)'!$C$20:$C$25,'Inputs (values)'!$H$20:$H$25) -> 0.025 | EF8: =LOOKUP(EF7-'Inputs (values)'!$H$8,'Inputs (values)'!$C$20:$C$25,'Inputs (values)'!$H$20:$H$25) -> 0.02 | EG8: =LOOKUP(EG7-'Inputs (values)'!$H$8,'Inputs (values)'!$C$20:$C$25,'Inputs (values)'!$H$20:$H$25) -> 0.02 | EH8: =LOOKUP(EH7-'Inputs (values)'!$H$8,'Inputs (values)'!$C$20:$C$25,'Inputs (values)'!$H$20:$H$25) -> 0.02 | EI8: =LOOKUP(EI7-'Inputs (values)'!$H$8,'Inputs (values)'!$C$20:$C$25,'Inputs (values)'!$H$20:$H$25) -> 0.02 | EJ8: =LOOKUP(EJ7-'Inputs (values)'!$H$8,'Inputs (values)'!$C$20:$C$25,'Inputs (values)'!$H$20:$H$25) -> 0.02 | EK8: =LOOKUP(EK7-'Inputs (values)'!$H$8,'Inputs (values)'!$C$20:$C$25,'Inputs (values)'!$H$20:$H$25) -> 0.02 | EL8: =LOOKUP(EL7-'Inputs (values)'!$H$8,'Inputs (values)'!$C$20:$C$25,'Inputs (values)'!$H$20:$H$25) -> 0.02 | EM8: =LOOKUP(EM7-'Inputs (values)'!$H$8,'Inputs (values)'!$C$20:$C$25,'Inputs (values)'!$H$20:$H$25) -> 0.02 | EN8: =LOOKUP(EN7-'Inputs (values)'!$H$8,'Inputs (values)'!$C$20:$C$25,'Inputs (values)'!$H$20:$H$25) -> 0.02 | EO8: =LOOKUP(EO7-'Inputs (values)'!$H$8,'Inputs (values)'!$C$20:$C$25,'Inputs (values)'!$H$20:$H$25) -> 0.02 | EP8: =LOOKUP(EP7-'Inputs (values)'!$H$8,'Inputs (values)'!$C$20:$C$25,'Inputs (values)'!$H$20:$H$25) -> 0.02 | EQ8: =LOOKUP(EQ7-'Inputs (values)'!$H$8,'Inputs (values)'!$C$20:$C$25,'Inputs (values)'!$H$20:$H$25) -> 0.02 | ER8: =LOOKUP(ER7-'Inputs (values)'!$H$8,'Inputs (values)'!$C$20:$C$25,'Inputs (values)'!$H$20:$H$25) -> 0.02 | ES8: =LOOKUP(ES7-'Inputs (values)'!$H$8,'Inputs (values)'!$C$20:$C$25,'Inputs (values)'!$H$20:$H$25) -> 0.02 | ET8: =LOOKUP(ET7-'Inputs (values)'!$H$8,'Inputs (values)'!$C$20:$C$25,'Inputs (values)'!$H$20:$H$25) -> 0.02 | EU8: =LOOKUP(EU7-'Inputs (values)'!$H$8,'Inputs (values)'!$C$20:$C$25,'Inputs (values)'!$H$20:$H$25) -> 0.02 | EV8: =LOOKUP(EV7-'Inputs (values)'!$H$8,'Inputs (values)'!$C$20:$C$25,'Inputs (values)'!$H$20:$H$25) -> 0.02 | EW8: =LOOKUP(EW7-'Inputs (values)'!$H$8,'Inputs (values)'!$C$20:$C$25,'Inputs (values)'!$H$20:$H$25) -> 0.02 | EX8: =LOOKUP(EX7-'Inputs (values)'!$H$8,'Inputs (values)'!$C$20:$C$25,'Inputs (values)'!$H$20:$H$25) -> 0.02 | EY8: =LOOKUP(EY7-'Inputs (values)'!$H$8,'Inputs (values)'!$C$20:$C$25,'Inputs (values)'!$H$20:$H$25) -> 0.02 | EZ8: =LOOKUP(EZ7-'Inputs (values)'!$H$8,'Inputs (values)'!$C$20:$C$25,'Inputs (values)'!$H$20:$H$25) -> 0.02 | FA8: =LOOKUP(FA7-'Inputs (values)'!$H$8,'Inputs (values)'!$C$20:$C$25,'Inputs (values)'!$H$20:$H$25) -> 0.02 | FB8: =LOOKUP(FB7-'Inputs (values)'!$H$8,'Inputs (values)'!$C$20:$C$25,'Inputs (values)'!$H$20:$H$25) -> 0.02 | FC8: =LOOKUP(FC7-'Inputs (values)'!$H$8,'Inputs (values)'!$C$20:$C$25,'Inputs (values)'!$H$20:$H$25) -> 0.02 | FD8: =LOOKUP(FD7-'Inputs (values)'!$H$8,'Inputs (values)'!$C$20:$C$25,'Inputs (values)'!$H$20:$H$25) -> 0.02 | FE8: =LOOKUP(FE7-'Inputs (values)'!$H$8,'Inputs (values)'!$C$20:$C$25,'Inputs (values)'!$H$20:$H$25) -> 0.02 | FF8: =LOOKUP(FF7-'Inputs (values)'!$H$8,'Inputs (values)'!$C$20:$C$25,'Inputs (values)'!$H$20:$H$25) -> 0.02 | FG8: =LOOKUP(FG7-'Inputs (values)'!$H$8,'Inputs (values)'!$C$20:$C$25,'Inputs (values)'!$H$20:$H$25) -> 0.02 | FH8: =LOOKUP(FH7-'Inputs (values)'!$H$8,'Inputs (values)'!$C$20:$C$25,'Inputs (values)'!$H$20:$H$25) -> 0.02 | FI8: =LOOKUP(FI7-'Inputs (values)'!$H$8,'Inputs (values)'!$C$20:$C$25,'Inputs (values)'!$H$20:$H$25) -> 0.02 | FJ8: =LOOKUP(FJ7-'Inputs (values)'!$H$8,'Inputs (values)'!$C$20:$C$25,'Inputs (values)'!$H$20:$H$25) -> 0.02 | FK8: =LOOKUP(FK7-'Inputs (values)'!$H$8,'Inputs (values)'!$C$20:$C$25,'Inputs (values)'!$H$20:$H$25) -> 0.02 | FL8: =LOOKUP(FL7-'Inputs (values)'!$H$8,'Inputs (values)'!$C$20:$C$25,'Inputs (values)'!$H$20:$H$25) -> 0.02 | FM8: =LOOKUP(FM7-'Inputs (values)'!$H$8,'Inputs (values)'!$C$20:$C$25,'Inputs (values)'!$H$20:$H$25) -> 0.02 | FN8: =LOOKUP(FN7-'Inputs (values)'!$H$8,'Inputs (values)'!$C$20:$C$25,'Inputs (values)'!$H$20:$H$25) -> 0.02 | FO8: =LOOKUP(FO7-'Inputs (values)'!$H$8,'Inputs (values)'!$C$20:$C$25,'Inputs (values)'!$H$20:$H$25) -> 0.02 | FP8: =LOOKUP(FP7-'Inputs (values)'!$H$8,'Inputs (values)'!$C$20:$C$25,'Inputs (values)'!$H$20:$H$25) -> 0.02 | FQ8: =LOOKUP(FQ7-'Inputs (values)'!$H$8,'Inputs (values)'!$C$20:$C$25,'Inputs (values)'!$H$20:$H$25) -> 0.02 | FR8: =LOOKUP(FR7-'Inputs (values)'!$H$8,'Inputs (values)'!$C$20:$C$25,'Inputs (values)'!$H$20:$H$25) -> 0.02 | FS8: =LOOKUP(FS7-'Inputs (values)'!$H$8,'Inputs (values)'!$C$20:$C$25,'Inputs (values)'!$H$20:$H$25) -> 0.02 | FT8: =LOOKUP(FT7-'Inputs (values)'!$H$8,'Inputs (values)'!$C$20:$C$25,'Inputs (values)'!$H$20:$H$25) -> 0.02 | FU8: =LOOKUP(FU7-'Inputs (values)'!$H$8,'Inputs (values)'!$C$20:$C$25,'Inputs (values)'!$H$20:$H$25) -> 0.02 | FV8: =LOOKUP(FV7-'Inputs (values)'!$H$8,'Inputs (values)'!$C$20:$C$25,'Inputs (values)'!$H$20:$H$25) -> 0.02 | FW8: =LOOKUP(FW7-'Inputs (values)'!$H$8,'Inputs (values)'!$C$20:$C$25,'Inputs (values)'!$H$20:$H$25) -> 0.02 | FX8: =LOOKUP(FX7-'Inputs (values)'!$H$8,'Inputs (values)'!$C$20:$C$25,'Inputs (values)'!$H$20:$H$25) -> 0.02 | FY8: =LOOKUP(FY7-'Inputs (values)'!$H$8,'Inputs (values)'!$C$20:$C$25,'Inputs (values)'!$H$20:$H$25) -> 0.02 | FZ8: =LOOKUP(FZ7-'Inputs (values)'!$H$8,'Inputs (values)'!$C$20:$C$25,'Inputs (values)'!$H$20:$H$25) -> 0.02 | GA8: =LOOKUP(GA7-'Inputs (values)'!$H$8,'Inputs (values)'!$C$20:$C$25,'Inputs (values)'!$H$20:$H$25) -> 0.02 | GB8: =LOOKUP(GB7-'Inputs (values)'!$H$8,'Inputs (values)'!$C$20:$C$25,'Inputs (values)'!$H$20:$H$25) -> 0.02 | GC8: =LOOKUP(GC7-'Inputs (values)'!$H$8,'Inputs (values)'!$C$20:$C$25,'Inputs (values)'!$H$20:$H$25) -> 0.02 | GD8: =LOOKUP(GD7-'Inputs (values)'!$H$8,'Inputs (values)'!$C$20:$C$25,'Inputs (values)'!$H$20:$H$25) -> 0.02 | GE8: =LOOKUP(GE7-'Inputs (values)'!$H$8,'Inputs (values)'!$C$20:$C$25,'Inputs (values)'!$H$20:$H$25) -> 0.02 | GF8: =LOOKUP(GF7-'Inputs (values)'!$H$8,'Inputs (values)'!$C$20:$C$25,'Inputs (values)'!$H$20:$H$25) -> 0.02 | GG8: =LOOKUP(GG7-'Inputs (values)'!$H$8,'Inputs (values)'!$C$20:$C$25,'Inputs (values)'!$H$20:$H$25) -> 0.02 | GH8: =LOOKUP(GH7-'Inputs (values)'!$H$8,'Inputs (values)'!$C$20:$C$25,'Inputs (values)'!$H$20:$H$25) -> 0.02 | GI8: =LOOKUP(GI7-'Inputs (values)'!$H$8,'Inputs (values)'!$C$20:$C$25,'Inputs (values)'!$H$20:$H$25) -> 0.02 | GJ8: =LOOKUP(GJ7-'Inputs (values)'!$H$8,'Inputs (values)'!$C$20:$C$25,'Inputs (values)'!$H$20:$H$25) -> 0.02 | GK8: =LOOKUP(GK7-'Inputs (values)'!$H$8,'Inputs (values)'!$C$20:$C$25,'Inputs (values)'!$H$20:$H$25) -> 0.02 | GL8: =LOOKUP(GL7-'Inputs (values)'!$H$8,'Inputs (values)'!$C$20:$C$25,'Inputs (values)'!$H$20:$H$25) -> 0.02 | GM8: =LOOKUP(GM7-'Inputs (values)'!$H$8,'Inputs (values)'!$C$20:$C$25,'Inputs (values)'!$H$20:$H$25) -> 0.02 | GN8: =LOOKUP(GN7-'Inputs (values)'!$H$8,'Inputs (values)'!$C$20:$C$25,'Inputs (values)'!$H$20:$H$25) -> 0.02 | GO8: =LOOKUP(GO7-'Inputs (values)'!$H$8,'Inputs (values)'!$C$20:$C$25,'Inputs (values)'!$H$20:$H$25) -> 0.02 | GP8: =LOOKUP(GP7-'Inputs (values)'!$H$8,'Inputs (values)'!$C$20:$C$25,'Inputs (values)'!$H$20:$H$25) -> 0.02 | GQ8: =LOOKUP(GQ7-'Inputs (values)'!$H$8,'Inputs (values)'!$C$20:$C$25,'Inputs (values)'!$H$20:$H$25) -> 0.02 | GR8: =LOOKUP(GR7-'Inputs (values)'!$H$8,'Inputs (values)'!$C$20:$C$25,'Inputs (values)'!$H$20:$H$25) -> 0.02 | GS8: =LOOKUP(GS7-'Inputs (values)'!$H$8,'Inputs (values)'!$C$20:$C$25,'Inputs (values)'!$H$20:$H$25) -> 0.02 | GT8: =LOOKUP(GT7-'Inputs (values)'!$H$8,'Inputs (values)'!$C$20:$C$25,'Inputs (values)'!$H$20:$H$25) -> 0.02 | GU8: =LOOKUP(GU7-'Inputs (values)'!$H$8,'Inputs (values)'!$C$20:$C$25,'Inputs (values)'!$H$20:$H$25) -> 0.02 | GV8: =LOOKUP(GV7-'Inputs (values)'!$H$8,'Inputs (values)'!$C$20:$C$25,'Inputs (values)'!$H$20:$H$25) -> 0.02 | GW8: =LOOKUP(GW7-'Inputs (values)'!$H$8,'Inputs (values)'!$C$20:$C$25,'Inputs (values)'!$H$20:$H$25) -> 0.02 | GX8: =LOOKUP(GX7-'Inputs (values)'!$H$8,'Inputs (values)'!$C$20:$C$25,'Inputs (values)'!$H$20:$H$25) -> 0.02 | GY8: =LOOKUP(GY7-'Inputs (values)'!$H$8,'Inputs (values)'!$C$20:$C$25,'Inputs (values)'!$H$20:$H$25) -> 0.02 | GZ8: =LOOKUP(GZ7-'Inputs (values)'!$H$8,'Inputs (values)'!$C$20:$C$25,'Inputs (values)'!$H$20:$H$25) -> 0.02 | HA8: =LOOKUP(HA7-'Inputs (values)'!$H$8,'Inputs (values)'!$C$20:$C$25,'Inputs (values)'!$H$20:$H$25) -> 0.02 | HB8: =LOOKUP(HB7-'Inputs (values)'!$H$8,'Inputs (values)'!$C$20:$C$25,'Inputs (values)'!$H$20:$H$25) -> 0.02 | HC8: =LOOKUP(HC7-'Inputs (values)'!$H$8,'Inputs (values)'!$C$20:$C$25,'Inputs (values)'!$H$20:$H$25) -> 0.015 | HD8: =LOOKUP(HD7-'Inputs (values)'!$H$8,'Inputs (values)'!$C$20:$C$25,'Inputs (values)'!$H$20:$H$25) -> 0.015 | HE8: =LOOKUP(HE7-'Inputs (values)'!$H$8,'Inputs (values)'!$C$20:$C$25,'Inputs (values)'!$H$20:$H$25) -> 0.015 | HF8: =LOOKUP(HF7-'Inputs (values)'!$H$8,'Inputs (values)'!$C$20:$C$25,'Inputs (values)'!$H$20:$H$25) -> 0.015 | HG8: =LOOKUP(HG7-'Inputs (values)'!$H$8,'Inputs (values)'!$C$20:$C$25,'Inputs (values)'!$H$20:$H$25) -> 0.015 | HH8: =LOOKUP(HH7-'Inputs (values)'!$H$8,'Inputs (values)'!$C$20:$C$25,'Inputs (values)'!$H$20:$H$25) -> 0.015 | HI8: =LOOKUP(HI7-'Inputs (values)'!$H$8,'Inputs (values)'!$C$20:$C$25,'Inputs (values)'!$H$20:$H$25) -> 0.015 | HJ8: =LOOKUP(HJ7-'Inputs (values)'!$H$8,'Inputs (values)'!$C$20:$C$25,'Inputs (values)'!$H$20:$H$25) -> 0.015 | HK8: =LOOKUP(HK7-'Inputs (values)'!$H$8,'Inputs (values)'!$C$20:$C$25,'Inputs (values)'!$H$20:$H$25) -> 0.015 | HL8: =LOOKUP(HL7-'Inputs (values)'!$H$8,'Inputs (values)'!$C$20:$C$25,'Inputs (values)'!$H$20:$H$25) -> 0.015 | HM8: =LOOKUP(HM7-'Inputs (values)'!$H$8,'Inputs (values)'!$C$20:$C$25,'Inputs (values)'!$H$20:$H$25) -> 0.015 | HN8: =LOOKUP(HN7-'Inputs (values)'!$H$8,'Inputs (values)'!$C$20:$C$25,'Inputs (values)'!$H$20:$H$25) -> 0.015 | HO8: =LOOKUP(HO7-'Inputs (values)'!$H$8,'Inputs (values)'!$C$20:$C$25,'Inputs (values)'!$H$20:$H$25) -> 0.015 | HP8: =LOOKUP(HP7-'Inputs (values)'!$H$8,'Inputs (values)'!$C$20:$C$25,'Inputs (values)'!$H$20:$H$25) -> 0.015 | HQ8: =LOOKUP(HQ7-'Inputs (values)'!$H$8,'Inputs (values)'!$C$20:$C$25,'Inputs (values)'!$H$20:$H$25) -> 0.015 | HR8: =LOOKUP(HR7-'Inputs (values)'!$H$8,'Inputs (values)'!$C$20:$C$25,'Inputs (values)'!$H$20:$H$25) -> 0.015 | HS8: =LOOKUP(HS7-'Inputs (values)'!$H$8,'Inputs (values)'!$C$20:$C$25,'Inputs (values)'!$H$20:$H$25) -> 0.015 | HT8: =LOOKUP(HT7-'Inputs (values)'!$H$8,'Inputs (values)'!$C$20:$C$25,'Inputs (values)'!$H$20:$H$25) -> 0.015 | HU8: =LOOKUP(HU7-'Inputs (values)'!$H$8,'Inputs (values)'!$C$20:$C$25,'Inputs (values)'!$H$20:$H$25) -> 0.015 | HV8: =LOOKUP(HV7-'Inputs (values)'!$H$8,'Inputs (values)'!$C$20:$C$25,'Inputs (values)'!$H$20:$H$25) -> 0.015 | HW8: =LOOKUP(HW7-'Inputs (values)'!$H$8,'Inputs (values)'!$C$20:$C$25,'Inputs (values)'!$H$20:$H$25) -> 0.015 | HX8: =LOOKUP(HX7-'Inputs (values)'!$H$8,'Inputs (values)'!$C$20:$C$25,'Inputs (values)'!$H$20:$H$25) -> 0.015 | HY8: =LOOKUP(HY7-'Inputs (values)'!$H$8,'Inputs (values)'!$C$20:$C$25,'Inputs (values)'!$H$20:$H$25) -> 0.015 | HZ8: =LOOKUP(HZ7-'Inputs (values)'!$H$8,'Inputs (values)'!$C$20:$C$25,'Inputs (values)'!$H$20:$H$25) -> 0.015 | IA8: =LOOKUP(IA7-'Inputs (values)'!$H$8,'Inputs (values)'!$C$20:$C$25,'Inputs (values)'!$H$20:$H$25) -> 0.015 | IB8: =LOOKUP(IB7-'Inputs (values)'!$H$8,'Inputs (values)'!$C$20:$C$25,'Inputs (values)'!$H$20:$H$25) -> 0.015 | IC8: =LOOKUP(IC7-'Inputs (values)'!$H$8,'Inputs (values)'!$C$20:$C$25,'Inputs (values)'!$H$20:$H$25) -> 0.015 | ID8: =LOOKUP(ID7-'Inputs (values)'!$H$8,'Inputs (values)'!$C$20:$C$25,'Inputs (values)'!$H$20:$H$25) -> 0.015 | IE8: =LOOKUP(IE7-'Inputs (values)'!$H$8,'Inputs (values)'!$C$20:$C$25,'Inputs (values)'!$H$20:$H$25) -> 0.015 | IF8: =LOOKUP(IF7-'Inputs (values)'!$H$8,'Inputs (values)'!$C$20:$C$25,'Inputs (values)'!$H$20:$H$25) -> 0.015 | IG8: =LOOKUP(IG7-'Inputs (values)'!$H$8,'Inputs (values)'!$C$20:$C$25,'Inputs (values)'!$H$20:$H$25) -> 0.015 | IH8: =LOOKUP(IH7-'Inputs (values)'!$H$8,'Inputs (values)'!$C$20:$C$25,'Inputs (values)'!$H$20:$H$25) -> 0.015 | II8: =LOOKUP(II7-'Inputs (values)'!$H$8,'Inputs (values)'!$C$20:$C$25,'Inputs (values)'!$H$20:$H$25) -> 0.015 | IJ8: =LOOKUP(IJ7-'Inputs (values)'!$H$8,'Inputs (values)'!$C$20:$C$25,'Inputs (values)'!$H$20:$H$25) -> 0.015 | IK8: =LOOKUP(IK7-'Inputs (values)'!$H$8,'Inputs (values)'!$C$20:$C$25,'Inputs (values)'!$H$20:$H$25) -> 0.015 | IL8: =LOOKUP(IL7-'Inputs (values)'!$H$8,'Inputs (values)'!$C$20:$C$25,'Inputs (values)'!$H$20:$H$25) -> 0.015 | IM8: =LOOKUP(IM7-'Inputs (values)'!$H$8,'Inputs (values)'!$C$20:$C$25,'Inputs (values)'!$H$20:$H$25) -> 0.015 | IN8: =LOOKUP(IN7-'Inputs (values)'!$H$8,'Inputs (values)'!$C$20:$C$25,'Inputs (values)'!$H$20:$H$25) -> 0.015 | IO8: =LOOKUP(IO7-'Inputs (values)'!$H$8,'Inputs (values)'!$C$20:$C$25,'Inputs (values)'!$H$20:$H$25) -> 0.015 | IP8: =LOOKUP(IP7-'Inputs (values)'!$H$8,'Inputs (values)'!$C$20:$C$25,'Inputs (values)'!$H$20:$H$25) -> 0.015 | IQ8: =LOOKUP(IQ7-'Inputs (values)'!$H$8,'Inputs (values)'!$C$20:$C$25,'Inputs (values)'!$H$20:$H$25) -> 0.015 | IR8: =LOOKUP(IR7-'Inputs (values)'!$H$8,'Inputs (values)'!$C$20:$C$25,'Inputs (values)'!$H$20:$H$25) -> 0.015 | IS8: =LOOKUP(IS7-'Inputs (values)'!$H$8,'Inputs (values)'!$C$20:$C$25,'Inputs (values)'!$H$20:$H$25) -> 0.015 | IT8: =LOOKUP(IT7-'Inputs (values)'!$H$8,'Inputs (values)'!$C$20:$C$25,'Inputs (values)'!$H$20:$H$25) -> 0.015 | IU8: =LOOKUP(IU7-'Inputs (values)'!$H$8,'Inputs (values)'!$C$20:$C$25,'Inputs (values)'!$H$20:$H$25) -> 0.015 | IV8: =LOOKUP(IV7-'Inputs (values)'!$H$8,'Inputs (values)'!$C$20:$C$25,'Inputs (values)'!$H$20:$H$25) -> 0.015 | IW8: =LOOKUP(IW7-'Inputs (values)'!$H$8,'Inputs (values)'!$C$20:$C$25,'Inputs (values)'!$H$20:$H$25) -> 0.015 | IX8: =LOOKUP(IX7-'Inputs (values)'!$H$8,'Inputs (values)'!$C$20:$C$25,'Inputs (values)'!$H$20:$H$25) -> 0.015 | IY8: =LOOKUP(IY7-'Inputs (values)'!$H$8,'Inputs (values)'!$C$20:$C$25,'Inputs (values)'!$H$20:$H$25) -> 0.015 | IZ8: =LOOKUP(IZ7-'Inputs (values)'!$H$8,'Inputs (values)'!$C$20:$C$25,'Inputs (values)'!$H$20:$H$25) -> 0.015 | JA8: =LOOKUP(JA7-'Inputs (values)'!$H$8,'Inputs (values)'!$C$20:$C$25,'Inputs (values)'!$H$20:$H$25) -> 0.015 | JB8: =LOOKUP(JB7-'Inputs (values)'!$H$8,'Inputs (values)'!$C$20:$C$25,'Inputs (values)'!$H$20:$H$25) -> 0.015 | JC8: =LOOKUP(JC7-'Inputs (values)'!$H$8,'Inputs (values)'!$C$20:$C$25,'Inputs (values)'!$H$20:$H$25) -> 0.015 | JD8: =LOOKUP(JD7-'Inputs (values)'!$H$8,'Inputs (values)'!$C$20:$C$25,'Inputs (values)'!$H$20:$H$25) -> 0.015 | JE8: =LOOKUP(JE7-'Inputs (values)'!$H$8,'Inputs (values)'!$C$20:$C$25,'Inputs (values)'!$H$20:$H$25) -> 0.015 | JF8: =LOOKUP(JF7-'Inputs (values)'!$H$8,'Inputs (values)'!$C$20:$C$25,'Inputs (values)'!$H$20:$H$25) -> 0.015 | JG8: =LOOKUP(JG7-'Inputs (values)'!$H$8,'Inputs (values)'!$C$20:$C$25,'Inputs (values)'!$H$20:$H$25) -> 0.015 | JH8: =LOOKUP(JH7-'Inputs (values)'!$H$8,'Inputs (values)'!$C$20:$C$25,'Inputs (values)'!$H$20:$H$25) -> 0.015 | JI8: =LOOKUP(JI7-'Inputs (values)'!$H$8,'Inputs (values)'!$C$20:$C$25,'Inputs (values)'!$H$20:$H$25) -> 0.015 | JJ8: =LOOKUP(JJ7-'Inputs (values)'!$H$8,'Inputs (values)'!$C$20:$C$25,'Inputs (values)'!$H$20:$H$25) -> 0.015 | JK8: =LOOKUP(JK7-'Inputs (values)'!$H$8,'Inputs (values)'!$C$20:$C$25,'Inputs (values)'!$H$20:$H$25) -> 0.015 | JL8: =LOOKUP(JL7-'Inputs (values)'!$H$8,'Inputs (values)'!$C$20:$C$25,'Inputs (values)'!$H$20:$H$25) -> 0.015 | JM8: =LOOKUP(JM7-'Inputs (values)'!$H$8,'Inputs (values)'!$C$20:$C$25,'Inputs (values)'!$H$20:$H$25) -> 0.015 | JN8: =LOOKUP(JN7-'Inputs (values)'!$H$8,'Inputs (values)'!$C$20:$C$25,'Inputs (values)'!$H$20:$H$25) -> 0.015 | JO8: =LOOKUP(JO7-'Inputs (values)'!$H$8,'Inputs (values)'!$C$20:$C$25,'Inputs (values)'!$H$20:$H$25) -> 0.015 | JP8: =LOOKUP(JP7-'Inputs (values)'!$H$8,'Inputs (values)'!$C$20:$C$25,'Inputs (values)'!$H$20:$H$25) -> 0.015 | JQ8: =LOOKUP(JQ7-'Inputs (values)'!$H$8,'Inputs (values)'!$C$20:$C$25,'Inputs (values)'!$H$20:$H$25) -> 0.015 | JR8: =LOOKUP(JR7-'Inputs (values)'!$H$8,'Inputs (values)'!$C$20:$C$25,'Inputs (values)'!$H$20:$H$25) -> 0.015 | JS8: =LOOKUP(JS7-'Inputs (values)'!$H$8,'Inputs (values)'!$C$20:$C$25,'Inputs (values)'!$H$20:$H$25) -> 0.015 | JT8: =LOOKUP(JT7-'Inputs (values)'!$H$8,'Inputs (values)'!$C$20:$C$25,'Inputs (values)'!$H$20:$H$25) -> 0.015 | JU8: =LOOKUP(JU7-'Inputs (values)'!$H$8,'Inputs (values)'!$C$20:$C$25,'Inputs (values)'!$H$20:$H$25) -> 0.015 | JV8: =LOOKUP(JV7-'Inputs (values)'!$H$8,'Inputs (values)'!$C$20:$C$25,'Inputs (values)'!$H$20:$H$25) -> 0.015 | JW8: =LOOKUP(JW7-'Inputs (values)'!$H$8,'Inputs (values)'!$C$20:$C$25,'Inputs (values)'!$H$20:$H$25) -> 0.015 | JX8: =LOOKUP(JX7-'Inputs (values)'!$H$8,'Inputs (values)'!$C$20:$C$25,'Inputs (values)'!$H$20:$H$25) -> 0.015 | JY8: =LOOKUP(JY7-'Inputs (values)'!$H$8,'Inputs (values)'!$C$20:$C$25,'Inputs (values)'!$H$20:$H$25) -> 0.015 | JZ8: =LOOKUP(JZ7-'Inputs (values)'!$H$8,'Inputs (values)'!$C$20:$C$25,'Inputs (values)'!$H$20:$H$25) -> 0.015 | KA8: =LOOKUP(KA7-'Inputs (values)'!$H$8,'Inputs (values)'!$C$20:$C$25,'Inputs (values)'!$H$20:$H$25) -> 0.015
C11: Discount factors
H13: Year
H14: ='Inputs (values)'!$H$13 -> 2023 | I14: =H14+1 -> 2024 | J14: =I14+1 -> 2025 | K14: 2026 | L14: 2027 | M14: 2028 | N14: 2029 | O14: 2030 | P14: 2031 | Q14: 2032 | R14: 2033 | S14: 2034 | T14: 2035 | U14: 2036 | V14: 2037 | W14: 2038 | X14: 2039 | Y14: 2040 | Z14: 2041 | AA14: 2042 | AB14: 2043 | AC14: 2044 | AD14: 2045 | AE14: 2046 | AF14: 2047 | AG14: 2048 | AH14: 2049 | AI14: 2050 | AJ14: 2051 | AK14: 2052 | AL14: 2053 | AM14: 2054 | AN14: 2055 | AO14: 2056 | AP14: 2057 | AQ14: 2058 | AR14: 2059 | AS14: 2060 | AT14: 2061 | AU14: 2062 | AV14: 2063 | AW14: 2064 | AX14: 2065 | AY14: 2066 | AZ14: 2067 | BA14: 2068 | BB14: 2069 | BC14: 2070 | BD14: 2071 | BE14: 2072 | BF14: 2073 | BG14: 2074 | BH14: 2075 | BI14: 2076 | BJ14: 2077 | BK14: 2078 | BL14: 2079 | BM14: 2080 | BN14: 2081 | BO14: 2082 | BP14: 2083 | BQ14: 2084 | BR14: 2085 | BS14: 2086 | BT14: 2087 | BU14: 2088 | BV14: =BU14+1 -> 2089 | BW14: 2090 | BX14: 2091 | BY14: 2092 | BZ14: 2093 | CA14: 2094 | CB14: 2095 | CC14: 2096 | CD14: 2097 | CE14: 2098 | CF14: 2099 | CG14: 2100 | CH14: 2101 | CI14: 2102 | CJ14: 2103 | CK14: 2104 | CL14: 2105 | CM14: 2106 | CN14: 2107 | CO14: 2108 | CP14: 2109 | CQ14: 2110 | CR14: 2111 | CS14: 2112 | CT14: 2113 | CU14: 2114 | CV14: 2115 | CW14: 2116 | CX14: 2117 | CY14: 2118 | CZ14: 2119 | DA14: 2120 | DB14: 2121 | DC14: 2122 | DD14: 2123 | DE14: 2124 | DF14: 2125 | DG14: 2126 | DH14: 2127 | DI14: 2128 | DJ14: 2129 | DK14: 2130 | DL14: 2131 | DM14: 2132 | DN14: 2133 | DO14: 2134 | DP14: 2135 | DQ14: 2136 | DR14: 2137 | DS14: 2138 | DT14: 2139 | DU14: 2140 | DV14: 2141 | DW14: 2142 | DX14: 2143 | DY14: 2144 | DZ14: 2145 | EA14: 2146 | EB14: 2147 | EC14: 2148 | ED14: 2149 | EE14: 2150 | EF14: 2151 | EG14: 2152 | EH14: =EG14+1 -> 2153 | EI14: 2154 | EJ14: 2155 | EK14: 2156 | EL14: 2157 | EM14: 2158 | EN14: 2159 | EO14: 2160 | EP14: 2161 | EQ14: 2162 | ER14: 2163 | ES14: 2164 | ET14: 2165 | EU14: 2166 | EV14: 2167 | EW14: 2168 | EX14: 2169 | EY14: 2170 | EZ14: 2171 | FA14: 2172 | FB14: 2173 | FC14: 2174 | FD14: 2175 | FE14: 2176 | FF14: 2177 | FG14: 2178 | FH14: 2179 | FI14: 2180 | FJ14: 2181 | FK14: 2182 | FL14: 2183 | FM14: 2184 | FN14: 2185 | FO14: 2186 | FP14: 2187 | FQ14: 2188 | FR14: 2189 | FS14: 2190 | FT14: 2191 | FU14: 2192 | FV14: 2193 | FW14: 2194 | FX14: 2195 | FY14: 2196 | FZ14: 2197 | GA14: 2198 | GB14: 2199 | GC14: 2200 | GD14: 2201 | GE14: 2202 | GF14: 2203 | GG14: 2204 | GH14: 2205 | GI14: 2206 | GJ14: 2207 | GK14: 2208 | GL14: 2209 | GM14: 2210 | GN14: 2211 | GO14: 2212 | GP14: 2213 | GQ14: 2214 | GR14: 2215 | GS14: 2216 | GT14: =GS14+1 -> 2217 | GU14: 2218 | GV14: 2219 | GW14: 2220 | GX14: 2221 | GY14: 2222 | GZ14: 2223 | HA14: 2224 | HB14: 2225 | HC14: 2226 | HD14: 2227 | HE14: 2228 | HF14: 2229 | HG14: 2230 | HH14: 2231 | HI14: 2232 | HJ14: 2233 | HK14: 2234 | HL14: 2235 | HM14: 2236 | HN14: 2237 | HO14: 2238 | HP14: 2239 | HQ14: 2240 | HR14: 2241 | HS14: 2242 | HT14: 2243 | HU14: 2244 | HV14: 2245 | HW14: 2246 | HX14: 2247 | HY14: 2248 | HZ14: 2249 | IA14: 2250 | IB14: 2251 | IC14: 2252 | ID14: 2253 | IE14: 2254 | IF14: 2255 | IG14: 2256 | IH14: 2257 | II14: 2258 | IJ14: 2259 | IK14: 2260 | IL14: 2261 | IM14: 2262 | IN14: 2263 | IO14: 2264 | IP14: 2265 | IQ14: 2266 | IR14: 2267 | IS14: 2268 | IT14: 2269 | IU14: 2270 | IV14: 2271 | IW14: 2272 | IX14: 2273 | IY14: 2274 | IZ14: 2275 | JA14: 2276 | JB14: 2277 | JC14: 2278 | JD14: 2279 | JE14: 2280 | JF14: =JE14+1 -> 2281 | JG14: 2282 | JH14: 2283 | JI14: 2284 | JJ14: 2285 | JK14: 2286 | JL14: 2287 | JM14: 2288 | JN14: 2289 | JO14: 2290 | JP14: 2291 | JQ14: 2292 | JR14: 2293 | JS14: 2294 | JT14: 2295 | JU14: 2296 | JV14: 2297 | JW14: 2298 | JX14: 2299 | JY14: 2300 | JZ14: 2301 | KA14: 2302
C15: Discount factors | H15: 1 | I15: =H15/(1+I8) -> 0.9661835749 | J15: 0.9335107004 | K15: 0.9019427057 | L15: 0.8714422277 | M15: 0.8419731669 | N15: 0.8135006443 | O15: 0.7859909607 | P15: 0.7594115562 | Q15: 0.7337309722 | R15: 0.7089188137 | S15: 0.6849457137 | T15: 0.6617832983 | U15: 0.6394041529 | V15: 0.6177817903 | W15: 0.5968906186 | X15: 0.5767059117 | Y15: 0.5572037794 | Z15: 0.5383611396 | AA15: 0.5201556904 | AB15: 0.5025658844 | AC15: 0.4855709028 | AD15: 0.4691506308 | AE15: 0.4532856336 | AF15: 0.4379571339 | AG15: 0.4231469893 | AH15: 0.4088376708 | AI15: 0.3950122423 | AJ15: 0.3816543404 | AK15: 0.368748155 | AL15: 0.3562784106 | AM15: 0.3442303484 | AN15: 0.3325897086 | AO15: 0.3229026297 | AP15: 0.3134976988 | AQ15: 0.3043666978 | AR15: 0.2955016484 | AS15: 0.2868948042 | AT15: 0.2785386449 | AU15: 0.2704258688 | AV15: 0.2625493872 | AW15: 0.2549023177 | AX15: 0.2474779783 | AY15: 0.2402698819 | AZ15: 0.23327173 | BA15: 0.2264774077 | BB15: 0.2198809784 | BC15: 0.2134766781 | BD15: 0.2072589107 | BE15: 0.2012222434 | BF15: 0.1953614014 | BG15: 0.1896712635 | BH15: 0.1841468577 | BI15: 0.178783357 | BJ15: 0.1735760748 | BK15: 0.168520461 | BL15: 0.163612098 | BM15: 0.1588466971 | BN15: 0.1542200943 | BO15: 0.1497282469 | BP15: 0.14536723 | BQ15: 0.141133233 | BR15: 0.1370225563 | BS15: 0.1330316081 | BT15: 0.129156901 | BU15: =BT15/(1+BU8) -> 0.1253950495 | BV15: 0.1217427665 | BW15: 0.1181968607 | BX15: 0.1147542337 | BY15: 0.1114118774 | BZ15: 0.1081668713 | CA15: 0.1050163799 | CB15: 0.1019576503 | CC15: 0.09898801004 | CD15: 0.09610486412 | CE15: 0.09330569332 | CF15: 0.09058805177 | CG15: 0.08794956482 | CH15: 0.08580445349 | CI15: 0.08371166194 | CJ15: 0.08166991408 | CK15: 0.07967796496 | CL15: 0.07773459996 | CM15: 0.07583863411 | CN15: 0.07398891133 | CO15: 0.07218430373 | CP15: 0.07042371096 | CQ15: 0.06870605947 | CR15: 0.06703030192 | CS15: 0.06539541651 | CT15: 0.06380040635 | CU15: 0.06224429888 | CV15: 0.06072614525 | CW15: 0.05924501975 | CX15: 0.05780001927 | CY15: 0.05639026271 | CZ15: 0.05501489044 | DA15: 0.05367306385 | DB15: 0.05236396473 | DC15: 0.05108679486 | DD15: 0.04984077547 | DE15: 0.0486251468 | DF15: 0.04743916761 | DG15: 0.04628211474 | DH15: 0.04515328268 | DI15: 0.0440519831 | DJ15: 0.04297754449 | DK15: 0.04192931169 | DL15: 0.04090664555 | DM15: 0.03990892249 | DN15: 0.03893553414 | DO15: 0.03798588697 | DP15: 0.03705940192 | DQ15: 0.03615551407 | DR15: 0.03527367226 | DS15: 0.03441333879 | DT15: 0.03357398906 | DU15: 0.03275511128 | DV15: 0.03195620613 | DW15: 0.03117678647 | DX15: 0.03041637704 | DY15: 0.02967451419 | DZ15: 0.02895074555 | EA15: 0.0282446298 | EB15: 0.02755573639 | EC15: 0.02688364526 | ED15: 0.0262279466 | EE15: 0.02558824058 | EF15: 0.02508651037 | EG15: =EF15/(1+EG8) -> 0.02459461801 | EH15: 0.0241123706 | EI15: 0.02363957902 | EJ15: 0.02317605786 | EK15: 0.02272162536 | EL15: 0.02227610329 | EM15: 0.02183931695 | EN15: 0.02141109505 | EO15: 0.02099126966 | EP15: 0.02057967613 | EQ15: 0.02017615307 | ER15: 0.01978054223 | ES15: 0.01939268846 | ET15: 0.01901243967 | EU15: 0.01863964673 | EV15: 0.01827416346 | EW15: 0.01791584653 | EX15: 0.01756455542 | EY15: 0.01722015238 | EZ15: 0.01688250233 | FA15: 0.01655147287 | FB15: 0.01622693419 | FC15: 0.01590875901 | FD15: 0.01559682256 | FE15: 0.01529100251 | FF15: 0.01499117893 | FG15: 0.01469723424 | FH15: 0.01440905318 | FI15: 0.01412652272 | FJ15: 0.01384953208 | FK15: 0.01357797263 | FL15: 0.01331173787 | FM15: 0.01305072341 | FN15: 0.01279482687 | FO15: 0.01254394791 | FP15: 0.01229798815 | FQ15: 0.01205685112 | FR15: 0.01182044228 | FS15: 0.0115886689 | FT15: 0.0113614401 | FU15: 0.01113866676 | FV15: 0.01092026153 | FW15: 0.01070613876 | FX15: 0.01049621447 | FY15: 0.01029040634 | FZ15: 0.01008863367 | GA15: 0.009890817321 | GB15: 0.009696879727 | GC15: 0.00950674483 | GD15: 0.009320338069 | GE15: 0.009137586342 | GF15: 0.008958417982 | GG15: 0.008782762728 | GH15: 0.008610551694 | GI15: 0.008441717347 | GJ15: 0.008276193478 | GK15: 0.008113915174 | GL15: 0.007954818798 | GM15: 0.007798841959 | GN15: 0.007645923489 | GO15: 0.007496003421 | GP15: 0.007349022961 | GQ15: 0.007204924472 | GR15: 0.007063651443 | GS15: =GR15/(1+GS8) -> 0.006925148474 | GT15: 0.006789361249 | GU15: 0.006656236518 | GV15: 0.006525722077 | GW15: 0.006397766742 | GX15: 0.006272320335 | GY15: 0.006149333662 | GZ15: 0.006028758492 | HA15: 0.005910547541 | HB15: 0.005794654452 | HC15: 0.005709019165 | HD15: 0.005624649424 | HE15: 0.005541526526 | HF15: 0.005459632045 | HG15: 0.005378947828 | HH15: 0.005299455988 | HI15: 0.005221138904 | HJ15: 0.005143979216 | HK15: 0.005067959819 | HL15: 0.004993063861 | HM15: 0.00491927474 | HN15: 0.004846576098 | HO15: 0.004774951821 | HP15: 0.00470438603 | HQ15: 0.004634863084 | HR15: 0.004566367571 | HS15: 0.004498884306 | HT15: 0.004432398331 | HU15: 0.004366894907 | HV15: 0.004302359515 | HW15: 0.004238777847 | HX15: 0.00417613581 | HY15: 0.004114419517 | HZ15: 0.004053615288 | IA15: 0.003993709643 | IB15: 0.003934689304 | IC15: 0.003876541186 | ID15: 0.0038192524 | IE15: 0.003762810246 | IF15: 0.003707202213 | IG15: 0.003652415973 | IH15: 0.003598439383 | II15: 0.003545260475 | IJ15: 0.003492867463 | IK15: 0.003441248732 | IL15: 0.00339039284 | IM15: 0.003340288512 | IN15: 0.003290924643 | IO15: 0.003242290288 | IP15: 0.003194374668 | IQ15: 0.003147167161 | IR15: 0.003100657301 | IS15: 0.00305483478 | IT15: 0.003009689438 | IU15: 0.002965211269 | IV15: 0.002921390413 | IW15: 0.002878217155 | IX15: 0.002835681927 | IY15: =IX15/(1+IY8) -> 0.002793775297 | IZ15: 0.002752487977 | JA15: 0.002711810815 | JB15: 0.002671734793 | JC15: 0.002632251028 | JD15: 0.002593350766 | JE15: 0.002555025386 | JF15: 0.00251726639 | JG15: 0.002480065409 | JH15: 0.002443414196 | JI15: 0.002407304626 | JJ15: 0.002371728696 | JK15: 0.002336678518 | JL15: 0.002302146323 | JM15: 0.002268124456 | JN15: 0.002234605376 | JO15: 0.002201581651 | JP15: 0.002169045962 | JQ15: 0.002136991095 | JR15: 0.002105409946 | JS15: 0.002074295513 | JT15: 0.0020436409 | JU15: 0.00201343931 | JV15: 0.001983684049 | JW15: 0.001954368522 | JX15: 0.001925486228 | JY15: 0.001897030767 | JZ15: 0.001868995829 | KA15: 0.001841375201
C18: Uprating indices
H20: Year
H21: ='Inputs (values)'!$H$8 -> 2025 | I21: =H21+1 -> 2026 | J21: =I21+1 -> 2027 | K21: 2028 | L21: 2029 | M21: 2030 | N21: 2031 | O21: 2032 | P21: 2033 | Q21: 2034 | R21: 2035 | S21: 2036 | T21: 2037 | U21: 2038 | V21: 2039 | W21: 2040 | X21: 2041 | Y21: 2042 | Z21: 2043 | AA21: 2044 | AB21: 2045 | AC21: 2046 | AD21: 2047 | AE21: 2048 | AF21: 2049 | AG21: 2050 | AH21: 2051 | AI21: 2052 | AJ21: 2053 | AK21: 2054 | AL21: 2055 | AM21: 2056 | AN21: 2057 | AO21: 2058 | AP21: 2059 | AQ21: 2060 | AR21: 2061 | AS21: 2062 | AT21: 2063 | AU21: 2064 | AV21: 2065 | AW21: 2066 | AX21: 2067 | AY21: 2068 | AZ21: 2069 | BA21: 2070 | BB21: 2071 | BC21: 2072 | BD21: 2073 | BE21: 2074 | BF21: 2075 | BG21: 2076 | BH21: 2077 | BI21: 2078 | BJ21: 2079 | BK21: 2080 | BL21: 2081 | BM21: 2082 | BN21: 2083 | BO21: 2084 | BP21: 2085 | BQ21: 2086 | BR21: 2087 | BS21: 2088 | BT21: 2089 | BU21: 2090 | BV21: =BU21+1 -> 2091 | BW21: 2092 | BX21: 2093 | BY21: 2094 | BZ21: 2095 | CA21: 2096 | CB21: 2097 | CC21: 2098 | CD21: 2099 | CE21: 2100 | CF21: 2101 | CG21: 2102 | CH21: 2103 | CI21: 2104 | CJ21: 2105 | CK21: 2106 | CL21: 2107 | CM21: 2108 | CN21: 2109 | CO21: 2110 | CP21: 2111 | CQ21: 2112 | CR21: 2113 | CS21: 2114 | CT21: 2115 | CU21: 2116 | CV21: 2117 | CW21: 2118 | CX21: 2119 | CY21: 2120 | CZ21: 2121 | DA21: 2122 | DB21: 2123 | DC21: 2124 | DD21: 2125 | DE21: 2126 | DF21: 2127 | DG21: 2128 | DH21: 2129 | DI21: 2130 | DJ21: 2131 | DK21: 2132 | DL21: 2133 | DM21: 2134 | DN21: 2135 | DO21: 2136 | DP21: 2137 | DQ21: 2138 | DR21: 2139 | DS21: 2140 | DT21: 2141 | DU21: 2142 | DV21: 2143 | DW21: 2144 | DX21: 2145 | DY21: 2146 | DZ21: 2147 | EA21: 2148 | EB21: 2149 | EC21: 2150 | ED21: 2151 | EE21: 2152 | EF21: 2153 | EG21: 2154 | EH21: =EG21+1 -> 2155 | EI21: 2156 | EJ21: 2157 | EK21: 2158 | EL21: 2159 | EM21: 2160 | EN21: 2161 | EO21: 2162 | EP21: 2163 | EQ21: 2164 | ER21: 2165 | ES21: 2166 | ET21: 2167 | EU21: 2168 | EV21: 2169 | EW21: 2170 | EX21: 2171 | EY21: 2172 | EZ21: 2173 | FA21: 2174 | FB21: 2175 | FC21: 2176 | FD21: 2177 | FE21: 2178 | FF21: 2179 | FG21: 2180 | FH21: 2181 | FI21: 2182 | FJ21: 2183 | FK21: 2184 | FL21: 2185 | FM21: 2186 | FN21: 2187 | FO21: 2188 | FP21: 2189 | FQ21: 2190 | FR21: 2191 | FS21: 2192 | FT21: 2193 | FU21: 2194 | FV21: 2195 | FW21: 2196 | FX21: 2197 | FY21: 2198 | FZ21: 2199 | GA21: 2200 | GB21: 2201 | GC21: 2202 | GD21: 2203 | GE21: 2204 | GF21: 2205 | GG21: 2206 | GH21: 2207 | GI21: 2208 | GJ21: 2209 | GK21: 2210 | GL21: 2211 | GM21: 2212 | GN21: 2213 | GO21: 2214 | GP21: 2215 | GQ21: 2216 | GR21: 2217 | GS21: 2218 | GT21: =GS21+1 -> 2219 | GU21: 2220 | GV21: 2221 | GW21: 2222 | GX21: 2223 | GY21: 2224 | GZ21: 2225 | HA21: 2226 | HB21: 2227 | HC21: 2228 | HD21: 2229 | HE21: 2230 | HF21: 2231 | HG21: 2232 | HH21: 2233 | HI21: 2234 | HJ21: 2235 | HK21: 2236 | HL21: 2237 | HM21: 2238 | HN21: 2239 | HO21: 2240 | HP21: 2241 | HQ21: 2242 | HR21: 2243 | HS21: 2244 | HT21: 2245 | HU21: 2246 | HV21: 2247 | HW21: 2248 | HX21: 2249 | HY21: 2250 | HZ21: 2251 | IA21: 2252 | IB21: 2253 | IC21: 2254 | ID21: 2255 | IE21: 2256 | IF21: 2257 | IG21: 2258 | IH21: 2259 | II21: 2260 | IJ21: 2261 | IK21: 2262 | IL21: 2263 | IM21: 2264 | IN21: 2265 | IO21: 2266 | IP21: 2267 | IQ21: 2268 | IR21: 2269 | IS21: 2270 | IT21: 2271 | IU21: 2272 | IV21: 2273 | IW21: 2274 | IX21: 2275 | IY21: 2276 | IZ21: 2277 | JA21: 2278 | JB21: 2279 | JC21: 2280 | JD21: 2281 | JE21: 2282 | JF21: =JE21+1 -> 2283 | JG21: 2284 | JH21: 2285 | JI21: 2286 | JJ21: 2287 | JK21: 2288 | JL21: 2289 | JM21: 2290 | JN21: 2291 | JO21: 2292 | JP21: 2293 | JQ21: 2294 | JR21: 2295 | JS21: 2296 | JT21: 2297 | JU21: 2298 | JV21: 2299 | JW21: 2300 | JX21: 2301 | JY21: 2302 | JZ21: 2303 | KA21: 2304
C22: Central series | H22: =(INDEX('Inputs (values)'!$H$84:$KV$86,1,MATCH('Calculations (values)'!H$21,'Inputs (values)'!$H$83:'Inputs (values)'!$KV$83,0))/INDEX('Inputs (values)'!$H$84:$KV$86,1,MATCH('Inputs (values)'!$H$10,'Inputs (values)'!$H$83:$KV$83,0)))*(INDEX('Inputs (values)'!$H$62:$KV$62,1,MATCH('Inputs (values)'!$H$12,'Inputs (values)'!$H$83:$KV$83,0))/INDEX('Inputs (values)'!$H$62:$KV$62,1,MATCH('Inputs (values)'!$H$11,'Inputs (values)'!$H$83:$KV$83,0))) -> 1.744611631 | I22: =(INDEX('Inputs (values)'!$H$84:$KV$86,1,MATCH('Calculations (values)'!I$21,'Inputs (values)'!$H$83:'Inputs (values)'!$KV$83,0))/INDEX('Inputs (values)'!$H$84:$KV$86,1,MATCH('Inputs (values)'!$H$10,'Inputs (values)'!$H$83:$KV$83,0)))*(INDEX('Inputs (values)'!$H$62:$KV$62,1,MATCH('Inputs (values)'!$H$12,'Inputs (values)'!$H$83:$KV$83,0))/INDEX('Inputs (values)'!$H$62:$KV$62,1,MATCH('Inputs (values)'!$H$11,'Inputs (values)'!$H$83:$KV$83,0))) -> 1.763769746 | J22: =(INDEX('Inputs (values)'!$H$84:$KV$86,1,MATCH('Calculations (values)'!J$21,'Inputs (values)'!$H$83:'Inputs (values)'!$KV$83,0))/INDEX('Inputs (values)'!$H$84:$KV$86,1,MATCH('Inputs (values)'!$H$10,'Inputs (values)'!$H$83:$KV$83,0)))*(INDEX('Inputs (values)'!$H$62:$KV$62,1,MATCH('Inputs (values)'!$H$12,'Inputs (values)'!$H$83:$KV$83,0))/INDEX('Inputs (values)'!$H$62:$KV$62,1,MATCH('Inputs (values)'!$H$11,'Inputs (values)'!$H$83:$KV$83,0))) -> 1.791790518 | K22: =(INDEX('Inputs (values)'!$H$84:$KV$86,1,MATCH('Calculations (values)'!K$21,'Inputs (values)'!$H$83:'Inputs (values)'!$KV$83,0))/INDEX('Inputs (values)'!$H$84:$KV$86,1,MATCH('Inputs (values)'!$H$10,'Inputs (values)'!$H$83:$KV$83,0)))*(INDEX('Inputs (values)'!$H$62:$KV$62,1,MATCH('Inputs (values)'!$H$12,'Inputs (values)'!$H$83:$KV$83,0))/INDEX('Inputs (values)'!$H$62:$KV$62,1,MATCH('Inputs (values)'!$H$11,'Inputs (values)'!$H$83:$KV$83,0))) -> 1.820137585 | L22: =(INDEX('Inputs (values)'!$H$84:$KV$86,1,MATCH('Calculations (values)'!L$21,'Inputs (values)'!$H$83:'Inputs (values)'!$KV$83,0))/INDEX('Inputs (values)'!$H$84:$KV$86,1,MATCH('Inputs (values)'!$H$10,'Inputs (values)'!$H$83:$KV$83,0)))*(INDEX('Inputs (values)'!$H$62:$KV$62,1,MATCH('Inputs (values)'!$H$12,'Inputs (values)'!$H$83:$KV$83,0))/INDEX('Inputs (values)'!$H$62:$KV$62,1,MATCH('Inputs (values)'!$H$11,'Inputs (values)'!$H$83:$KV$83,0))) -> 1.848139551 | M22: =(INDEX('Inputs (values)'!$H$84:$KV$86,1,MATCH('Calculations (values)'!M$21,'Inputs (values)'!$H$83:'Inputs (values)'!$KV$83,0))/INDEX('Inputs (values)'!$H$84:$KV$86,1,MATCH('Inputs (values)'!$H$10,'Inputs (values)'!$H$83:$KV$83,0)))*(INDEX('Inputs (values)'!$H$62:$KV$62,1,MATCH('Inputs (values)'!$H$12,'Inputs (values)'!$H$83:$KV$83,0))/INDEX('Inputs (values)'!$H$62:$KV$62,1,MATCH('Inputs (values)'!$H$11,'Inputs (values)'!$H$83:$KV$83,0))) -> 1.876157453 | N22: =(INDEX('Inputs (values)'!$H$84:$KV$86,1,MATCH('Calculations (values)'!N$21,'Inputs (values)'!$H$83:'Inputs (values)'!$KV$83,0))/INDEX('Inputs (values)'!$H$84:$KV$86,1,MATCH('Inputs (values)'!$H$10,'Inputs (values)'!$H$83:$KV$83,0)))*(INDEX('Inputs (values)'!$H$62:$KV$62,1,MATCH('Inputs (values)'!$H$12,'Inputs (values)'!$H$83:$KV$83,0))/INDEX('Inputs (values)'!$H$62:$KV$62,1,MATCH('Inputs (values)'!$H$11,'Inputs (values)'!$H$83:$KV$83,0))) -> 1.913350289 | O22: =(INDEX('Inputs (values)'!$H$84:$KV$86,1,MATCH('Calculations (values)'!O$21,'Inputs (values)'!$H$83:'Inputs (values)'!$KV$83,0))/INDEX('Inputs (values)'!$H$84:$KV$86,1,MATCH('Inputs (values)'!$H$10,'Inputs (values)'!$H$83:$KV$83,0)))*(INDEX('Inputs (values)'!$H$62:$KV$62,1,MATCH('Inputs (values)'!$H$12,'Inputs (values)'!$H$83:$KV$83,0))/INDEX('Inputs (values)'!$H$62:$KV$62,1,MATCH('Inputs (values)'!$H$11,'Inputs (values)'!$H$83:$KV$83,0))) -> 1.951855758 | P22: =(INDEX('Inputs (values)'!$H$84:$KV$86,1,MATCH('Calculations (values)'!P$21,'Inputs (values)'!$H$83:'Inputs (values)'!$KV$83,0))/INDEX('Inputs (values)'!$H$84:$KV$86,1,MATCH('Inputs (values)'!$H$10,'Inputs (values)'!$H$83:$KV$83,0)))*(INDEX('Inputs (values)'!$H$62:$KV$62,1,MATCH('Inputs (values)'!$H$12,'Inputs (values)'!$H$83:$KV$83,0))/INDEX('Inputs (values)'!$H$62:$KV$62,1,MATCH('Inputs (values)'!$H$11,'Inputs (values)'!$H$83:$KV$83,0))) -> 1.991851579 | Q22: =(INDEX('Inputs (values)'!$H$84:$KV$86,1,MATCH('Calculations (values)'!Q$21,'Inputs (values)'!$H$83:'Inputs (values)'!$KV$83,0))/INDEX('Inputs (values)'!$H$84:$KV$86,1,MATCH('Inputs (values)'!$H$10,'Inputs (values)'!$H$83:$KV$83,0)))*(INDEX('Inputs (values)'!$H$62:$KV$62,1,MATCH('Inputs (values)'!$H$12,'Inputs (values)'!$H$83:$KV$83,0))/INDEX('Inputs (values)'!$H$62:$KV$62,1,MATCH('Inputs (values)'!$H$11,'Inputs (values)'!$H$83:$KV$83,0))) -> 2.033121002 | R22: =(INDEX('Inputs (values)'!$H$84:$KV$86,1,MATCH('Calculations (values)'!R$21,'Inputs (values)'!$H$83:'Inputs (values)'!$KV$83,0))/INDEX('Inputs (values)'!$H$84:$KV$86,1,MATCH('Inputs (values)'!$H$10,'Inputs (values)'!$H$83:$KV$83,0)))*(INDEX('Inputs (values)'!$H$62:$KV$62,1,MATCH('Inputs (values)'!$H$12,'Inputs (values)'!$H$83:$KV$83,0))/INDEX('Inputs (values)'!$H$62:$KV$62,1,MATCH('Inputs (values)'!$H$11,'Inputs (values)'!$H$83:$KV$83,0))) -> 2.075363731 | S22: =(INDEX('Inputs (values)'!$H$84:$KV$86,1,MATCH('Calculations (values)'!S$21,'Inputs (values)'!$H$83:'Inputs (values)'!$KV$83,0))/INDEX('Inputs (values)'!$H$84:$KV$86,1,MATCH('Inputs (values)'!$H$10,'Inputs (values)'!$H$83:$KV$83,0)))*(INDEX('Inputs (values)'!$H$62:$KV$62,1,MATCH('Inputs (values)'!$H$12,'Inputs (values)'!$H$83:$KV$83,0))/INDEX('Inputs (values)'!$H$62:$KV$62,1,MATCH('Inputs (values)'!$H$11,'Inputs (values)'!$H$83:$KV$83,0))) -> 2.11885176 | T22: =(INDEX('Inputs (values)'!$H$84:$KV$86,1,MATCH('Calculations (values)'!T$21,'Inputs (values)'!$H$83:'Inputs (values)'!$KV$83,0))/INDEX('Inputs (values)'!$H$84:$KV$86,1,MATCH('Inputs (values)'!$H$10,'Inputs (values)'!$H$83:$KV$83,0)))*(INDEX('Inputs (values)'!$H$62:$KV$62,1,MATCH('Inputs (values)'!$H$12,'Inputs (values)'!$H$83:$KV$83,0))/INDEX('Inputs (values)'!$H$62:$KV$62,1,MATCH('Inputs (values)'!$H$11,'Inputs (values)'!$H$83:$KV$83,0))) -> 2.164611491 | U22: =(INDEX('Inputs (values)'!$H$84:$KV$86,1,MATCH('Calculations (values)'!U$21,'Inputs (values)'!$H$83:'Inputs (values)'!$KV$83,0))/INDEX('Inputs (values)'!$H$84:$KV$86,1,MATCH('Inputs (values)'!$H$10,'Inputs (values)'!$H$83:$KV$83,0)))*(INDEX('Inputs (values)'!$H$62:$KV$62,1,MATCH('Inputs (values)'!$H$12,'Inputs (values)'!$H$83:$KV$83,0))/INDEX('Inputs (values)'!$H$62:$KV$62,1,MATCH('Inputs (values)'!$H$11,'Inputs (values)'!$H$83:$KV$83,0))) -> 2.209925432 | V22: =(INDEX('Inputs (values)'!$H$84:$KV$86,1,MATCH('Calculations (values)'!V$21,'Inputs (values)'!$H$83:'Inputs (values)'!$KV$83,0))/INDEX('Inputs (values)'!$H$84:$KV$86,1,MATCH('Inputs (values)'!$H$10,'Inputs (values)'!$H$83:$KV$83,0)))*(INDEX('Inputs (values)'!$H$62:$KV$62,1,MATCH('Inputs (values)'!$H$12,'Inputs (values)'!$H$83:$KV$83,0))/INDEX('Inputs (values)'!$H$62:$KV$62,1,MATCH('Inputs (values)'!$H$11,'Inputs (values)'!$H$83:$KV$83,0))) -> 2.25493024 | W22: =(INDEX('Inputs (values)'!$H$84:$KV$86,1,MATCH('Calculations (values)'!W$21,'Inputs (values)'!$H$83:'Inputs (values)'!$KV$83,0))/INDEX('Inputs (values)'!$H$84:$KV$86,1,MATCH('Inputs (values)'!$H$10,'Inputs (values)'!$H$83:$KV$83,0)))*(INDEX('Inputs (values)'!$H$62:$KV$62,1,MATCH('Inputs (values)'!$H$12,'Inputs (values)'!$H$83:$KV$83,0))/INDEX('Inputs (values)'!$H$62:$KV$62,1,MATCH('Inputs (values)'!$H$11,'Inputs (values)'!$H$83:$KV$83,0))) -> 2.299297652 | X22: =(INDEX('Inputs (values)'!$H$84:$KV$86,1,MATCH('Calculations (values)'!X$21,'Inputs (values)'!$H$83:'Inputs (values)'!$KV$83,0))/INDEX('Inputs (values)'!$H$84:$KV$86,1,MATCH('Inputs (values)'!$H$10,'Inputs (values)'!$H$83:$KV$83,0)))*(INDEX('Inputs (values)'!$H$62:$KV$62,1,MATCH('Inputs (values)'!$H$12,'Inputs (values)'!$H$83:$KV$83,0))/INDEX('Inputs (values)'!$H$62:$KV$62,1,MATCH('Inputs (values)'!$H$11,'Inputs (values)'!$H$83:$KV$83,0))) -> 2.343384107 | Y22: =(INDEX('Inputs (values)'!$H$84:$KV$86,1,MATCH('Calculations (values)'!Y$21,'Inputs (values)'!$H$83:'Inputs (values)'!$KV$83,0))/INDEX('Inputs (values)'!$H$84:$KV$86,1,MATCH('Inputs (values)'!$H$10,'Inputs (values)'!$H$83:$KV$83,0)))*(INDEX('Inputs (values)'!$H$62:$KV$62,1,MATCH('Inputs (values)'!$H$12,'Inputs (values)'!$H$83:$KV$83,0))/INDEX('Inputs (values)'!$H$62:$KV$62,1,MATCH('Inputs (values)'!$H$11,'Inputs (values)'!$H$83:$KV$83,0))) -> 2.38717924 | Z22: =(INDEX('Inputs (values)'!$H$84:$KV$86,1,MATCH('Calculations (values)'!Z$21,'Inputs (values)'!$H$83:'Inputs (values)'!$KV$83,0))/INDEX('Inputs (values)'!$H$84:$KV$86,1,MATCH('Inputs (values)'!$H$10,'Inputs (values)'!$H$83:$KV$83,0)))*(INDEX('Inputs (values)'!$H$62:$KV$62,1,MATCH('Inputs (values)'!$H$12,'Inputs (values)'!$H$83:$KV$83,0))/INDEX('Inputs (values)'!$H$62:$KV$62,1,MATCH('Inputs (values)'!$H$11,'Inputs (values)'!$H$83:$KV$83,0))) -> 2.43102595 | AA22: =(INDEX('Inputs (values)'!$H$84:$KV$86,1,MATCH('Calculations (values)'!AA$21,'Inputs (values)'!$H$83:'Inputs (values)'!$KV$83,0))/INDEX('Inputs (values)'!$H$84:$KV$86,1,MATCH('Inputs (values)'!$H$10,'Inputs (values)'!$H$83:$KV$83,0)))*(INDEX('Inputs (values)'!$H$62:$KV$62,1,MATCH('Inputs (values)'!$H$12,'Inputs (values)'!$H$83:$KV$83,0))/INDEX('Inputs (values)'!$H$62:$KV$62,1,MATCH('Inputs (values)'!$H$11,'Inputs (values)'!$H$83:$KV$83,0))) -> 2.475121268 | AB22: =(INDEX('Inputs (values)'!$H$84:$KV$86,1,MATCH('Calculations (values)'!AB$21,'Inputs (values)'!$H$83:'Inputs (values)'!$KV$83,0))/INDEX('Inputs (values)'!$H$84:$KV$86,1,MATCH('Inputs (values)'!$H$10,'Inputs (values)'!$H$83:$KV$83,0)))*(INDEX('Inputs (values)'!$H$62:$KV$62,1,MATCH('Inputs (values)'!$H$12,'Inputs (values)'!$H$83:$KV$83,0))/INDEX('Inputs (values)'!$H$62:$KV$62,1,MATCH('Inputs (values)'!$H$11,'Inputs (values)'!$H$83:$KV$83,0))) -> 2.519225464 | AC22: =(INDEX('Inputs (values)'!$H$84:$KV$86,1,MATCH('Calculations (values)'!AC$21,'Inputs (values)'!$H$83:'Inputs (values)'!$KV$83,0))/INDEX('Inputs (values)'!$H$84:$KV$86,1,MATCH('Inputs (values)'!$H$10,'Inputs (values)'!$H$83:$KV$83,0)))*(INDEX('Inputs (values)'!$H$62:$KV$62,1,MATCH('Inputs (values)'!$H$12,'Inputs (values)'!$H$83:$KV$83,0))/INDEX('Inputs (values)'!$H$62:$KV$62,1,MATCH('Inputs (values)'!$H$11,'Inputs (values)'!$H$83:$KV$83,0))) -> 2.563781821 | AD22: =(INDEX('Inputs (values)'!$H$84:$KV$86,1,MATCH('Calculations (values)'!AD$21,'Inputs (values)'!$H$83:'Inputs (values)'!$KV$83,0))/INDEX('Inputs (values)'!$H$84:$KV$86,1,MATCH('Inputs (values)'!$H$10,'Inputs (values)'!$H$83:$KV$83,0)))*(INDEX('Inputs (values)'!$H$62:$KV$62,1,MATCH('Inputs (values)'!$H$12,'Inputs (values)'!$H$83:$KV$83,0))/INDEX('Inputs (values)'!$H$62:$KV$62,1,MATCH('Inputs (values)'!$H$11,'Inputs (values)'!$H$83:$KV$83,0))) -> 2.608689741 | AE22: =(INDEX('Inputs (values)'!$H$84:$KV$86,1,MATCH('Calculations (values)'!AE$21,'Inputs (values)'!$H$83:'Inputs (values)'!$KV$83,0))/INDEX('Inputs (values)'!$H$84:$KV$86,1,MATCH('Inputs (values)'!$H$10,'Inputs (values)'!$H$83:$KV$83,0)))*(INDEX('Inputs (values)'!$H$62:$KV$62,1,MATCH('Inputs (values)'!$H$12,'Inputs (values)'!$H$83:$KV$83,0))/INDEX('Inputs (values)'!$H$62:$KV$62,1,MATCH('Inputs (values)'!$H$11,'Inputs (values)'!$H$83:$KV$83,0))) -> 2.653972172 | AF22: =(INDEX('Inputs (values)'!$H$84:$KV$86,1,MATCH('Calculations (values)'!AF$21,'Inputs (values)'!$H$83:'Inputs (values)'!$KV$83,0))/INDEX('Inputs (values)'!$H$84:$KV$86,1,MATCH('Inputs (values)'!$H$10,'Inputs (values)'!$H$83:$KV$83,0)))*(INDEX('Inputs (values)'!$H$62:$KV$62,1,MATCH('Inputs (values)'!$H$12,'Inputs (values)'!$H$83:$KV$83,0))/INDEX('Inputs (values)'!$H$62:$KV$62,1,MATCH('Inputs (values)'!$H$11,'Inputs (values)'!$H$83:$KV$83,0))) -> 2.699539027 | AG22: =(INDEX('Inputs (values)'!$H$84:$KV$86,1,MATCH('Calculations (values)'!AG$21,'Inputs (values)'!$H$83:'Inputs (values)'!$KV$83,0))/INDEX('Inputs (values)'!$H$84:$KV$86,1,MATCH('Inputs (values)'!$H$10,'Inputs (values)'!$H$83:$KV$83,0)))*(INDEX('Inputs (values)'!$H$62:$KV$62,1,MATCH('Inputs (values)'!$H$12,'Inputs (values)'!$H$83:$KV$83,0))/INDEX('Inputs (values)'!$H$62:$KV$62,1,MATCH('Inputs (values)'!$H$11,'Inputs (values)'!$H$83:$KV$83,0))) -> 2.745511993 | AH22: =(INDEX('Inputs (values)'!$H$84:$KV$86,1,MATCH('Calculations (values)'!AH$21,'Inputs (values)'!$H$83:'Inputs (values)'!$KV$83,0))/INDEX('Inputs (values)'!$H$84:$KV$86,1,MATCH('Inputs (values)'!$H$10,'Inputs (values)'!$H$83:$KV$83,0)))*(INDEX('Inputs (values)'!$H$62:$KV$62,1,MATCH('Inputs (values)'!$H$12,'Inputs (values)'!$H$83:$KV$83,0))/INDEX('Inputs (values)'!$H$62:$KV$62,1,MATCH('Inputs (values)'!$H$11,'Inputs (values)'!$H$83:$KV$83,0))) -> 2.792055608 | AI22: =(INDEX('Inputs (values)'!$H$84:$KV$86,1,MATCH('Calculations (values)'!AI$21,'Inputs (values)'!$H$83:'Inputs (values)'!$KV$83,0))/INDEX('Inputs (values)'!$H$84:$KV$86,1,MATCH('Inputs (values)'!$H$10,'Inputs (values)'!$H$83:$KV$83,0)))*(INDEX('Inputs (values)'!$H$62:$KV$62,1,MATCH('Inputs (values)'!$H$12,'Inputs (values)'!$H$83:$KV$83,0))/INDEX('Inputs (values)'!$H$62:$KV$62,1,MATCH('Inputs (values)'!$H$11,'Inputs (values)'!$H$83:$KV$83,0))) -> 2.839093504 | AJ22: =(INDEX('Inputs (values)'!$H$84:$KV$86,1,MATCH('Calculations (values)'!AJ$21,'Inputs (values)'!$H$83:'Inputs (values)'!$KV$83,0))/INDEX('Inputs (values)'!$H$84:$KV$86,1,MATCH('Inputs (values)'!$H$10,'Inputs (values)'!$H$83:$KV$83,0)))*(INDEX('Inputs (values)'!$H$62:$KV$62,1,MATCH('Inputs (values)'!$H$12,'Inputs (values)'!$H$83:$KV$83,0))/INDEX('Inputs (values)'!$H$62:$KV$62,1,MATCH('Inputs (values)'!$H$11,'Inputs (values)'!$H$83:$KV$83,0))) -> 2.88640299 | AK22: =(INDEX('Inputs (values)'!$H$84:$KV$86,1,MATCH('Calculations (values)'!AK$21,'Inputs (values)'!$H$83:'Inputs (values)'!$KV$83,0))/INDEX('Inputs (values)'!$H$84:$KV$86,1,MATCH('Inputs (values)'!$H$10,'Inputs (values)'!$H$83:$KV$83,0)))*(INDEX('Inputs (values)'!$H$62:$KV$62,1,MATCH('Inputs (values)'!$H$12,'Inputs (values)'!$H$83:$KV$83,0))/INDEX('Inputs (values)'!$H$62:$KV$62,1,MATCH('Inputs (values)'!$H$11,'Inputs (values)'!$H$83:$KV$83,0))) -> 2.933980751 | AL22: =(INDEX('Inputs (values)'!$H$84:$KV$86,1,MATCH('Calculations (values)'!AL$21,'Inputs (values)'!$H$83:'Inputs (values)'!$KV$83,0))/INDEX('Inputs (values)'!$H$84:$KV$86,1,MATCH('Inputs (values)'!$H$10,'Inputs (values)'!$H$83:$KV$83,0)))*(INDEX('Inputs (values)'!$H$62:$KV$62,1,MATCH('Inputs (values)'!$H$12,'Inputs (values)'!$H$83:$KV$83,0))/INDEX('Inputs (values)'!$H$62:$KV$62,1,MATCH('Inputs (values)'!$H$11,'Inputs (values)'!$H$83:$KV$83,0))) -> 2.98178376 | AM22: =(INDEX('Inputs (values)'!$H$84:$KV$86,1,MATCH('Calculations (values)'!AM$21,'Inputs (values)'!$H$83:'Inputs (values)'!$KV$83,0))/INDEX('Inputs (values)'!$H$84:$KV$86,1,MATCH('Inputs (values)'!$H$10,'Inputs (values)'!$H$83:$KV$83,0)))*(INDEX('Inputs (values)'!$H$62:$KV$62,1,MATCH('Inputs (values)'!$H$12,'Inputs (values)'!$H$83:$KV$83,0))/INDEX('Inputs (values)'!$H$62:$KV$62,1,MATCH('Inputs (values)'!$H$11,'Inputs (values)'!$H$83:$KV$83,0))) -> 3.029637998 | AN22: =(INDEX('Inputs (values)'!$H$84:$KV$86,1,MATCH('Calculations (values)'!AN$21,'Inputs (values)'!$H$83:'Inputs (values)'!$KV$83,0))/INDEX('Inputs (values)'!$H$84:$KV$86,1,MATCH('Inputs (values)'!$H$10,'Inputs (values)'!$H$83:$KV$83,0)))*(INDEX('Inputs (values)'!$H$62:$KV$62,1,MATCH('Inputs (values)'!$H$12,'Inputs (values)'!$H$83:$KV$83,0))/INDEX('Inputs (values)'!$H$62:$KV$62,1,MATCH('Inputs (values)'!$H$11,'Inputs (values)'!$H$83:$KV$83,0))) -> 3.077626377 | AO22: =(INDEX('Inputs (values)'!$H$84:$KV$86,1,MATCH('Calculations (values)'!AO$21,'Inputs (values)'!$H$83:'Inputs (values)'!$KV$83,0))/INDEX('Inputs (values)'!$H$84:$KV$86,1,MATCH('Inputs (values)'!$H$10,'Inputs (values)'!$H$83:$KV$83,0)))*(INDEX('Inputs (values)'!$H$62:$KV$62,1,MATCH('Inputs (values)'!$H$12,'Inputs (values)'!$H$83:$KV$83,0))/INDEX('Inputs (values)'!$H$62:$KV$62,1,MATCH('Inputs (values)'!$H$11,'Inputs (values)'!$H$83:$KV$83,0))) -> 3.125769384 | AP22: =(INDEX('Inputs (values)'!$H$84:$KV$86,1,MATCH('Calculations (values)'!AP$21,'Inputs (values)'!$H$83:'Inputs (values)'!$KV$83,0))/INDEX('Inputs (values)'!$H$84:$KV$86,1,MATCH('Inputs (values)'!$H$10,'Inputs (values)'!$H$83:$KV$83,0)))*(INDEX('Inputs (values)'!$H$62:$KV$62,1,MATCH('Inputs (values)'!$H$12,'Inputs (values)'!$H$83:$KV$83,0))/INDEX('Inputs (values)'!$H$62:$KV$62,1,MATCH('Inputs (values)'!$H$11,'Inputs (values)'!$H$83:$KV$83,0))) -> 3.17433907 | AQ22: =(INDEX('Inputs (values)'!$H$84:$KV$86,1,MATCH('Calculations (values)'!AQ$21,'Inputs (values)'!$H$83:'Inputs (values)'!$KV$83,0))/INDEX('Inputs (values)'!$H$84:$KV$86,1,MATCH('Inputs (values)'!$H$10,'Inputs (values)'!$H$83:$KV$83,0)))*(INDEX('Inputs (values)'!$H$62:$KV$62,1,MATCH('Inputs (values)'!$H$12,'Inputs (values)'!$H$83:$KV$83,0))/INDEX('Inputs (values)'!$H$62:$KV$62,1,MATCH('Inputs (values)'!$H$11,'Inputs (values)'!$H$83:$KV$83,0))) -> 3.223019126 | AR22: =(INDEX('Inputs (values)'!$H$84:$KV$86,1,MATCH('Calculations (values)'!AR$21,'Inputs (values)'!$H$83:'Inputs (values)'!$KV$83,0))/INDEX('Inputs (values)'!$H$84:$KV$86,1,MATCH('Inputs (values)'!$H$10,'Inputs (values)'!$H$83:$KV$83,0)))*(INDEX('Inputs (values)'!$H$62:$KV$62,1,MATCH('Inputs (values)'!$H$12,'Inputs (values)'!$H$83:$KV$83,0))/INDEX('Inputs (values)'!$H$62:$KV$62,1,MATCH('Inputs (values)'!$H$11,'Inputs (values)'!$H$83:$KV$83,0))) -> 3.272726682 | AS22: =(INDEX('Inputs (values)'!$H$84:$KV$86,1,MATCH('Calculations (values)'!AS$21,'Inputs (values)'!$H$83:'Inputs (values)'!$KV$83,0))/INDEX('Inputs (values)'!$H$84:$KV$86,1,MATCH('Inputs (values)'!$H$10,'Inputs (values)'!$H$83:$KV$83,0)))*(INDEX('Inputs (values)'!$H$62:$KV$62,1,MATCH('Inputs (values)'!$H$12,'Inputs (values)'!$H$83:$KV$83,0))/INDEX('Inputs (values)'!$H$62:$KV$62,1,MATCH('Inputs (values)'!$H$11,'Inputs (values)'!$H$83:$KV$83,0))) -> 3.32241507 | AT22: =(INDEX('Inputs (values)'!$H$84:$KV$86,1,MATCH('Calculations (values)'!AT$21,'Inputs (values)'!$H$83:'Inputs (values)'!$KV$83,0))/INDEX('Inputs (values)'!$H$84:$KV$86,1,MATCH('Inputs (values)'!$H$10,'Inputs (values)'!$H$83:$KV$83,0)))*(INDEX('Inputs (values)'!$H$62:$KV$62,1,MATCH('Inputs (values)'!$H$12,'Inputs (values)'!$H$83:$KV$83,0))/INDEX('Inputs (values)'!$H$62:$KV$62,1,MATCH('Inputs (values)'!$H$11,'Inputs (values)'!$H$83:$KV$83,0))) -> 3.372302868 | AU22: =(INDEX('Inputs (values)'!$H$84:$KV$86,1,MATCH('Calculations (values)'!AU$21,'Inputs (values)'!$H$83:'Inputs (values)'!$KV$83,0))/INDEX('Inputs (values)'!$H$84:$KV$86,1,MATCH('Inputs (values)'!$H$10,'Inputs (values)'!$H$83:$KV$83,0)))*(INDEX('Inputs (values)'!$H$62:$KV$62,1,MATCH('Inputs (values)'!$H$12,'Inputs (values)'!$H$83:$KV$83,0))/INDEX('Inputs (values)'!$H$62:$KV$62,1,MATCH('Inputs (values)'!$H$11,'Inputs (values)'!$H$83:$KV$83,0))) -> 3.422514213 | AV22: =(INDEX('Inputs (values)'!$H$84:$KV$86,1,MATCH('Calculations (values)'!AV$21,'Inputs (values)'!$H$83:'Inputs (values)'!$KV$83,0))/INDEX('Inputs (values)'!$H$84:$KV$86,1,MATCH('Inputs (values)'!$H$10,'Inputs (values)'!$H$83:$KV$83,0)))*(INDEX('Inputs (values)'!$H$62:$KV$62,1,MATCH('Inputs (values)'!$H$12,'Inputs (values)'!$H$83:$KV$83,0))/INDEX('Inputs (values)'!$H$62:$KV$62,1,MATCH('Inputs (values)'!$H$11,'Inputs (values)'!$H$83:$KV$83,0))) -> 3.473542763 | AW22: =(INDEX('Inputs (values)'!$H$84:$KV$86,1,MATCH('Calculations (values)'!AW$21,'Inputs (values)'!$H$83:'Inputs (values)'!$KV$83,0))/INDEX('Inputs (values)'!$H$84:$KV$86,1,MATCH('Inputs (values)'!$H$10,'Inputs (values)'!$H$83:$KV$83,0)))*(INDEX('Inputs (values)'!$H$62:$KV$62,1,MATCH('Inputs (values)'!$H$12,'Inputs (values)'!$H$83:$KV$83,0))/INDEX('Inputs (values)'!$H$62:$KV$62,1,MATCH('Inputs (values)'!$H$11,'Inputs (values)'!$H$83:$KV$83,0))) -> 3.525255578 | AX22: =(INDEX('Inputs (values)'!$H$84:$KV$86,1,MATCH('Calculations (values)'!AX$21,'Inputs (values)'!$H$83:'Inputs (values)'!$KV$83,0))/INDEX('Inputs (values)'!$H$84:$KV$86,1,MATCH('Inputs (values)'!$H$10,'Inputs (values)'!$H$83:$KV$83,0)))*(INDEX('Inputs (values)'!$H$62:$KV$62,1,MATCH('Inputs (values)'!$H$12,'Inputs (values)'!$H$83:$KV$83,0))/INDEX('Inputs (values)'!$H$62:$KV$62,1,MATCH('Inputs (values)'!$H$11,'Inputs (values)'!$H$83:$KV$83,0))) -> 3.57767928 | AY22: =(INDEX('Inputs (values)'!$H$84:$KV$86,1,MATCH('Calculations (values)'!AY$21,'Inputs (values)'!$H$83:'Inputs (values)'!$KV$83,0))/INDEX('Inputs (values)'!$H$84:$KV$86,1,MATCH('Inputs (values)'!$H$10,'Inputs (values)'!$H$83:$KV$83,0)))*(INDEX('Inputs (values)'!$H$62:$KV$62,1,MATCH('Inputs (values)'!$H$12,'Inputs (values)'!$H$83:$KV$83,0))/INDEX('Inputs (values)'!$H$62:$KV$62,1,MATCH('Inputs (values)'!$H$11,'Inputs (values)'!$H$83:$KV$83,0))) -> 3.631631053 | AZ22: =(INDEX('Inputs (values)'!$H$84:$KV$86,1,MATCH('Calculations (values)'!AZ$21,'Inputs (values)'!$H$83:'Inputs (values)'!$KV$83,0))/INDEX('Inputs (values)'!$H$84:$KV$86,1,MATCH('Inputs (values)'!$H$10,'Inputs (values)'!$H$83:$KV$83,0)))*(INDEX('Inputs (values)'!$H$62:$KV$62,1,MATCH('Inputs (values)'!$H$12,'Inputs (values)'!$H$83:$KV$83,0))/INDEX('Inputs (values)'!$H$62:$KV$62,1,MATCH('Inputs (values)'!$H$11,'Inputs (values)'!$H$83:$KV$83,0))) -> 3.688332829 | BA22: =(INDEX('Inputs (values)'!$H$84:$KV$86,1,MATCH('Calculations (values)'!BA$21,'Inputs (values)'!$H$83:'Inputs (values)'!$KV$83,0))/INDEX('Inputs (values)'!$H$84:$KV$86,1,MATCH('Inputs (values)'!$H$10,'Inputs (values)'!$H$83:$KV$83,0)))*(INDEX('Inputs (values)'!$H$62:$KV$62,1,MATCH('Inputs (values)'!$H$12,'Inputs (values)'!$H$83:$KV$83,0))/INDEX('Inputs (values)'!$H$62:$KV$62,1,MATCH('Inputs (values)'!$H$11,'Inputs (values)'!$H$83:$KV$83,0))) -> 3.74725807 | BB22: =(INDEX('Inputs (values)'!$H$84:$KV$86,1,MATCH('Calculations (values)'!BB$21,'Inputs (values)'!$H$83:'Inputs (values)'!$KV$83,0))/INDEX('Inputs (values)'!$H$84:$KV$86,1,MATCH('Inputs (values)'!$H$10,'Inputs (values)'!$H$83:$KV$83,0)))*(INDEX('Inputs (values)'!$H$62:$KV$62,1,MATCH('Inputs (values)'!$H$12,'Inputs (values)'!$H$83:$KV$83,0))/INDEX('Inputs (values)'!$H$62:$KV$62,1,MATCH('Inputs (values)'!$H$11,'Inputs (values)'!$H$83:$KV$83,0))) -> 3.807313552 | BC22: =(INDEX('Inputs (values)'!$H$84:$KV$86,1,MATCH('Calculations (values)'!BC$21,'Inputs (values)'!$H$83:'Inputs (values)'!$KV$83,0))/INDEX('Inputs (values)'!$H$84:$KV$86,1,MATCH('Inputs (values)'!$H$10,'Inputs (values)'!$H$83:$KV$83,0)))*(INDEX('Inputs (values)'!$H$62:$KV$62,1,MATCH('Inputs (values)'!$H$12,'Inputs (values)'!$H$83:$KV$83,0))/INDEX('Inputs (values)'!$H$62:$KV$62,1,MATCH('Inputs (values)'!$H$11,'Inputs (values)'!$H$83:$KV$83,0))) -> 3.868138471 | BD22: =(INDEX('Inputs (values)'!$H$84:$KV$86,1,MATCH('Calculations (values)'!BD$21,'Inputs (values)'!$H$83:'Inputs (values)'!$KV$83,0))/INDEX('Inputs (values)'!$H$84:$KV$86,1,MATCH('Inputs (values)'!$H$10,'Inputs (values)'!$H$83:$KV$83,0)))*(INDEX('Inputs (values)'!$H$62:$KV$62,1,MATCH('Inputs (values)'!$H$12,'Inputs (values)'!$H$83:$KV$83,0))/INDEX('Inputs (values)'!$H$62:$KV$62,1,MATCH('Inputs (values)'!$H$11,'Inputs (values)'!$H$83:$KV$83,0))) -> 3.929951256 | BE22: =(INDEX('Inputs (values)'!$H$84:$KV$86,1,MATCH('Calculations (values)'!BE$21,'Inputs (values)'!$H$83:'Inputs (values)'!$KV$83,0))/INDEX('Inputs (values)'!$H$84:$KV$86,1,MATCH('Inputs (values)'!$H$10,'Inputs (values)'!$H$83:$KV$83,0)))*(INDEX('Inputs (values)'!$H$62:$KV$62,1,MATCH('Inputs (values)'!$H$12,'Inputs (values)'!$H$83:$KV$83,0))/INDEX('Inputs (values)'!$H$62:$KV$62,1,MATCH('Inputs (values)'!$H$11,'Inputs (values)'!$H$83:$KV$83,0))) -> 3.983387183 | BF22: =(INDEX('Inputs (values)'!$H$84:$KV$86,1,MATCH('Calculations (values)'!BF$21,'Inputs (values)'!$H$83:'Inputs (values)'!$KV$83,0))/INDEX('Inputs (values)'!$H$84:$KV$86,1,MATCH('Inputs (values)'!$H$10,'Inputs (values)'!$H$83:$KV$83,0)))*(INDEX('Inputs (values)'!$H$62:$KV$62,1,MATCH('Inputs (values)'!$H$12,'Inputs (values)'!$H$83:$KV$83,0))/INDEX('Inputs (values)'!$H$62:$KV$62,1,MATCH('Inputs (values)'!$H$11,'Inputs (values)'!$H$83:$KV$83,0))) -> 4.036160048 | BG22: =(INDEX('Inputs (values)'!$H$84:$KV$86,1,MATCH('Calculations (values)'!BG$21,'Inputs (values)'!$H$83:'Inputs (values)'!$KV$83,0))/INDEX('Inputs (values)'!$H$84:$KV$86,1,MATCH('Inputs (values)'!$H$10,'Inputs (values)'!$H$83:$KV$83,0)))*(INDEX('Inputs (values)'!$H$62:$KV$62,1,MATCH('Inputs (values)'!$H$12,'Inputs (values)'!$H$83:$KV$83,0))/INDEX('Inputs (values)'!$H$62:$KV$62,1,MATCH('Inputs (values)'!$H$11,'Inputs (values)'!$H$83:$KV$83,0))) -> 4.086809069 | BH22: =(INDEX('Inputs (values)'!$H$84:$KV$86,1,MATCH('Calculations (values)'!BH$21,'Inputs (values)'!$H$83:'Inputs (values)'!$KV$83,0))/INDEX('Inputs (values)'!$H$84:$KV$86,1,MATCH('Inputs (values)'!$H$10,'Inputs (values)'!$H$83:$KV$83,0)))*(INDEX('Inputs (values)'!$H$62:$KV$62,1,MATCH('Inputs (values)'!$H$12,'Inputs (values)'!$H$83:$KV$83,0))/INDEX('Inputs (values)'!$H$62:$KV$62,1,MATCH('Inputs (values)'!$H$11,'Inputs (values)'!$H$83:$KV$83,0))) -> 4.138302987 | BI22: =(INDEX('Inputs (values)'!$H$84:$KV$86,1,MATCH('Calculations (values)'!BI$21,'Inputs (values)'!$H$83:'Inputs (values)'!$KV$83,0))/INDEX('Inputs (values)'!$H$84:$KV$86,1,MATCH('Inputs (values)'!$H$10,'Inputs (values)'!$H$83:$KV$83,0)))*(INDEX('Inputs (values)'!$H$62:$KV$62,1,MATCH('Inputs (values)'!$H$12,'Inputs (values)'!$H$83:$KV$83,0))/INDEX('Inputs (values)'!$H$62:$KV$62,1,MATCH('Inputs (values)'!$H$11,'Inputs (values)'!$H$83:$KV$83,0))) -> 4.189733356 | BJ22: =(INDEX('Inputs (values)'!$H$84:$KV$86,1,MATCH('Calculations (values)'!BJ$21,'Inputs (values)'!$H$83:'Inputs (values)'!$KV$83,0))/INDEX('Inputs (values)'!$H$84:$KV$86,1,MATCH('Inputs (values)'!$H$10,'Inputs (values)'!$H$83:$KV$83,0)))*(INDEX('Inputs (values)'!$H$62:$KV$62,1,MATCH('Inputs (values)'!$H$12,'Inputs (values)'!$H$83:$KV$83,0))/INDEX('Inputs (values)'!$H$62:$KV$62,1,MATCH('Inputs (values)'!$H$11,'Inputs (values)'!$H$83:$KV$83,0))) -> 4.240787271 | BK22: =(INDEX('Inputs (values)'!$H$84:$KV$86,1,MATCH('Calculations (values)'!BK$21,'Inputs (values)'!$H$83:'Inputs (values)'!$KV$83,0))/INDEX('Inputs (values)'!$H$84:$KV$86,1,MATCH('Inputs (values)'!$H$10,'Inputs (values)'!$H$83:$KV$83,0)))*(INDEX('Inputs (values)'!$H$62:$KV$62,1,MATCH('Inputs (values)'!$H$12,'Inputs (values)'!$H$83:$KV$83,0))/INDEX('Inputs (values)'!$H$62:$KV$62,1,MATCH('Inputs (values)'!$H$11,'Inputs (values)'!$H$83:$KV$83,0))) -> 4.292380132 | BL22: =(INDEX('Inputs (values)'!$H$84:$KV$86,1,MATCH('Calculations (values)'!BL$21,'Inputs (values)'!$H$83:'Inputs (values)'!$KV$83,0))/INDEX('Inputs (values)'!$H$84:$KV$86,1,MATCH('Inputs (values)'!$H$10,'Inputs (values)'!$H$83:$KV$83,0)))*(INDEX('Inputs (values)'!$H$62:$KV$62,1,MATCH('Inputs (values)'!$H$12,'Inputs (values)'!$H$83:$KV$83,0))/INDEX('Inputs (values)'!$H$62:$KV$62,1,MATCH('Inputs (values)'!$H$11,'Inputs (values)'!$H$83:$KV$83,0))) -> 4.346186648 | BM22: =(INDEX('Inputs (values)'!$H$84:$KV$86,1,MATCH('Calculations (values)'!BM$21,'Inputs (values)'!$H$83:'Inputs (values)'!$KV$83,0))/INDEX('Inputs (values)'!$H$84:$KV$86,1,MATCH('Inputs (values)'!$H$10,'Inputs (values)'!$H$83:$KV$83,0)))*(INDEX('Inputs (values)'!$H$62:$KV$62,1,MATCH('Inputs (values)'!$H$12,'Inputs (values)'!$H$83:$KV$83,0))/INDEX('Inputs (values)'!$H$62:$KV$62,1,MATCH('Inputs (values)'!$H$11,'Inputs (values)'!$H$83:$KV$83,0))) -> 4.402165135 | BN22: =(INDEX('Inputs (values)'!$H$84:$KV$86,1,MATCH('Calculations (values)'!BN$21,'Inputs (values)'!$H$83:'Inputs (values)'!$KV$83,0))/INDEX('Inputs (values)'!$H$84:$KV$86,1,MATCH('Inputs (values)'!$H$10,'Inputs (values)'!$H$83:$KV$83,0)))*(INDEX('Inputs (values)'!$H$62:$KV$62,1,MATCH('Inputs (values)'!$H$12,'Inputs (values)'!$H$83:$KV$83,0))/INDEX('Inputs (values)'!$H$62:$KV$62,1,MATCH('Inputs (values)'!$H$11,'Inputs (values)'!$H$83:$KV$83,0))) -> 4.459097693 | BO22: =(INDEX('Inputs (values)'!$H$84:$KV$86,1,MATCH('Calculations (values)'!BO$21,'Inputs (values)'!$H$83:'Inputs (values)'!$KV$83,0))/INDEX('Inputs (values)'!$H$84:$KV$86,1,MATCH('Inputs (values)'!$H$10,'Inputs (values)'!$H$83:$KV$83,0)))*(INDEX('Inputs (values)'!$H$62:$KV$62,1,MATCH('Inputs (values)'!$H$12,'Inputs (values)'!$H$83:$KV$83,0))/INDEX('Inputs (values)'!$H$62:$KV$62,1,MATCH('Inputs (values)'!$H$11,'Inputs (values)'!$H$83:$KV$83,0))) -> 4.51613835 | BP22: =(INDEX('Inputs (values)'!$H$84:$KV$86,1,MATCH('Calculations (values)'!BP$21,'Inputs (values)'!$H$83:'Inputs (values)'!$KV$83,0))/INDEX('Inputs (values)'!$H$84:$KV$86,1,MATCH('Inputs (values)'!$H$10,'Inputs (values)'!$H$83:$KV$83,0)))*(INDEX('Inputs (values)'!$H$62:$KV$62,1,MATCH('Inputs (values)'!$H$12,'Inputs (values)'!$H$83:$KV$83,0))/INDEX('Inputs (values)'!$H$62:$KV$62,1,MATCH('Inputs (values)'!$H$11,'Inputs (values)'!$H$83:$KV$83,0))) -> 4.57578978 | BQ22: =(INDEX('Inputs (values)'!$H$84:$KV$86,1,MATCH('Calculations (values)'!BQ$21,'Inputs (values)'!$H$83:'Inputs (values)'!$KV$83,0))/INDEX('Inputs (values)'!$H$84:$KV$86,1,MATCH('Inputs (values)'!$H$10,'Inputs (values)'!$H$83:$KV$83,0)))*(INDEX('Inputs (values)'!$H$62:$KV$62,1,MATCH('Inputs (values)'!$H$12,'Inputs (values)'!$H$83:$KV$83,0))/INDEX('Inputs (values)'!$H$62:$KV$62,1,MATCH('Inputs (values)'!$H$11,'Inputs (values)'!$H$83:$KV$83,0))) -> 4.637718399 | BR22: =(INDEX('Inputs (values)'!$H$84:$KV$86,1,MATCH('Calculations (values)'!BR$21,'Inputs (values)'!$H$83:'Inputs (values)'!$KV$83,0))/INDEX('Inputs (values)'!$H$84:$KV$86,1,MATCH('Inputs (values)'!$H$10,'Inputs (values)'!$H$83:$KV$83,0)))*(INDEX('Inputs (values)'!$H$62:$KV$62,1,MATCH('Inputs (values)'!$H$12,'Inputs (values)'!$H$83:$KV$83,0))/INDEX('Inputs (values)'!$H$62:$KV$62,1,MATCH('Inputs (values)'!$H$11,'Inputs (values)'!$H$83:$KV$83,0))) -> 4.70121464 | BS22: =(INDEX('Inputs (values)'!$H$84:$KV$86,1,MATCH('Calculations (values)'!BS$21,'Inputs (values)'!$H$83:'Inputs (values)'!$KV$83,0))/INDEX('Inputs (values)'!$H$84:$KV$86,1,MATCH('Inputs (values)'!$H$10,'Inputs (values)'!$H$83:$KV$83,0)))*(INDEX('Inputs (values)'!$H$62:$KV$62,1,MATCH('Inputs (values)'!$H$12,'Inputs (values)'!$H$83:$KV$83,0))/INDEX('Inputs (values)'!$H$62:$KV$62,1,MATCH('Inputs (values)'!$H$11,'Inputs (values)'!$H$83:$KV$83,0))) -> 4.766796371 | BT22: =(INDEX('Inputs (values)'!$H$84:$KV$86,1,MATCH('Calculations (values)'!BT$21,'Inputs (values)'!$H$83:'Inputs (values)'!$KV$83,0))/INDEX('Inputs (values)'!$H$84:$KV$86,1,MATCH('Inputs (values)'!$H$10,'Inputs (values)'!$H$83:$KV$83,0)))*(INDEX('Inputs (values)'!$H$62:$KV$62,1,MATCH('Inputs (values)'!$H$12,'Inputs (values)'!$H$83:$KV$83,0))/INDEX('Inputs (values)'!$H$62:$KV$62,1,MATCH('Inputs (values)'!$H$11,'Inputs (values)'!$H$83:$KV$83,0))) -> 4.83524346 | BU22: =(INDEX('Inputs (values)'!$H$84:$KV$86,1,MATCH('Calculations (values)'!BU$21,'Inputs (values)'!$H$83:'Inputs (values)'!$KV$83,0))/INDEX('Inputs (values)'!$H$84:$KV$86,1,MATCH('Inputs (values)'!$H$10,'Inputs (values)'!$H$83:$KV$83,0)))*(INDEX('Inputs (values)'!$H$62:$KV$62,1,MATCH('Inputs (values)'!$H$12,'Inputs (values)'!$H$83:$KV$83,0))/INDEX('Inputs (values)'!$H$62:$KV$62,1,MATCH('Inputs (values)'!$H$11,'Inputs (values)'!$H$83:$KV$83,0))) -> 4.904088815 | BV22: =(INDEX('Inputs (values)'!$H$84:$KV$86,1,MATCH('Calculations (values)'!BV$21,'Inputs (values)'!$H$83:'Inputs (values)'!$KV$83,0))/INDEX('Inputs (values)'!$H$84:$KV$86,1,MATCH('Inputs (values)'!$H$10,'Inputs (values)'!$H$83:$KV$83,0)))*(INDEX('Inputs (values)'!$H$62:$KV$62,1,MATCH('Inputs (values)'!$H$12,'Inputs (values)'!$H$83:$KV$83,0))/INDEX('Inputs (values)'!$H$62:$KV$62,1,MATCH('Inputs (values)'!$H$11,'Inputs (values)'!$H$83:$KV$83,0))) -> 4.977326127 | BW22: =(INDEX('Inputs (values)'!$H$84:$KV$86,1,MATCH('Calculations (values)'!BW$21,'Inputs (values)'!$H$83:'Inputs (values)'!$KV$83,0))/INDEX('Inputs (values)'!$H$84:$KV$86,1,MATCH('Inputs (values)'!$H$10,'Inputs (values)'!$H$83:$KV$83,0)))*(INDEX('Inputs (values)'!$H$62:$KV$62,1,MATCH('Inputs (values)'!$H$12,'Inputs (values)'!$H$83:$KV$83,0))/INDEX('Inputs (values)'!$H$62:$KV$62,1,MATCH('Inputs (values)'!$H$11,'Inputs (values)'!$H$83:$KV$83,0))) -> 5.051756524 | BX22: =(INDEX('Inputs (values)'!$H$84:$KV$86,1,MATCH('Calculations (values)'!BX$21,'Inputs (values)'!$H$83:'Inputs (values)'!$KV$83,0))/INDEX('Inputs (values)'!$H$84:$KV$86,1,MATCH('Inputs (values)'!$H$10,'Inputs (values)'!$H$83:$KV$83,0)))*(INDEX('Inputs (values)'!$H$62:$KV$62,1,MATCH('Inputs (values)'!$H$12,'Inputs (values)'!$H$83:$KV$83,0))/INDEX('Inputs (values)'!$H$62:$KV$62,1,MATCH('Inputs (values)'!$H$11,'Inputs (values)'!$H$83:$KV$83,0))) -> 5.127003222 | BY22: =(INDEX('Inputs (values)'!$H$84:$KV$86,1,MATCH('Calculations (values)'!BY$21,'Inputs (values)'!$H$83:'Inputs (values)'!$KV$83,0))/INDEX('Inputs (values)'!$H$84:$KV$86,1,MATCH('Inputs (values)'!$H$10,'Inputs (values)'!$H$83:$KV$83,0)))*(INDEX('Inputs (values)'!$H$62:$KV$62,1,MATCH('Inputs (values)'!$H$12,'Inputs (values)'!$H$83:$KV$83,0))/INDEX('Inputs (values)'!$H$62:$KV$62,1,MATCH('Inputs (values)'!$H$11,'Inputs (values)'!$H$83:$KV$83,0))) -> 5.203399494 | BZ22: =(INDEX('Inputs (values)'!$H$84:$KV$86,1,MATCH('Calculations (values)'!BZ$21,'Inputs (values)'!$H$83:'Inputs (values)'!$KV$83,0))/INDEX('Inputs (values)'!$H$84:$KV$86,1,MATCH('Inputs (values)'!$H$10,'Inputs (values)'!$H$83:$KV$83,0)))*(INDEX('Inputs (values)'!$H$62:$KV$62,1,MATCH('Inputs (values)'!$H$12,'Inputs (values)'!$H$83:$KV$83,0))/INDEX('Inputs (values)'!$H$62:$KV$62,1,MATCH('Inputs (values)'!$H$11,'Inputs (values)'!$H$83:$KV$83,0))) -> 5.281051076 | CA22: =(INDEX('Inputs (values)'!$H$84:$KV$86,1,MATCH('Calculations (values)'!CA$21,'Inputs (values)'!$H$83:'Inputs (values)'!$KV$83,0))/INDEX('Inputs (values)'!$H$84:$KV$86,1,MATCH('Inputs (values)'!$H$10,'Inputs (values)'!$H$83:$KV$83,0)))*(INDEX('Inputs (values)'!$H$62:$KV$62,1,MATCH('Inputs (values)'!$H$12,'Inputs (values)'!$H$83:$KV$83,0))/INDEX('Inputs (values)'!$H$62:$KV$62,1,MATCH('Inputs (values)'!$H$11,'Inputs (values)'!$H$83:$KV$83,0))) -> 5.359897314 | CB22: =(INDEX('Inputs (values)'!$H$84:$KV$86,1,MATCH('Calculations (values)'!CB$21,'Inputs (values)'!$H$83:'Inputs (values)'!$KV$83,0))/INDEX('Inputs (values)'!$H$84:$KV$86,1,MATCH('Inputs (values)'!$H$10,'Inputs (values)'!$H$83:$KV$83,0)))*(INDEX('Inputs (values)'!$H$62:$KV$62,1,MATCH('Inputs (values)'!$H$12,'Inputs (values)'!$H$83:$KV$83,0))/INDEX('Inputs (values)'!$H$62:$KV$62,1,MATCH('Inputs (values)'!$H$11,'Inputs (values)'!$H$83:$KV$83,0))) -> 5.439804734 | CC22: =(INDEX('Inputs (values)'!$H$84:$KV$86,1,MATCH('Calculations (values)'!CC$21,'Inputs (values)'!$H$83:'Inputs (values)'!$KV$83,0))/INDEX('Inputs (values)'!$H$84:$KV$86,1,MATCH('Inputs (values)'!$H$10,'Inputs (values)'!$H$83:$KV$83,0)))*(INDEX('Inputs (values)'!$H$62:$KV$62,1,MATCH('Inputs (values)'!$H$12,'Inputs (values)'!$H$83:$KV$83,0))/INDEX('Inputs (values)'!$H$62:$KV$62,1,MATCH('Inputs (values)'!$H$11,'Inputs (values)'!$H$83:$KV$83,0))) -> 5.520715716 | CD22: =(INDEX('Inputs (values)'!$H$84:$KV$86,1,MATCH('Calculations (values)'!CD$21,'Inputs (values)'!$H$83:'Inputs (values)'!$KV$83,0))/INDEX('Inputs (values)'!$H$84:$KV$86,1,MATCH('Inputs (values)'!$H$10,'Inputs (values)'!$H$83:$KV$83,0)))*(INDEX('Inputs (values)'!$H$62:$KV$62,1,MATCH('Inputs (values)'!$H$12,'Inputs (values)'!$H$83:$KV$83,0))/INDEX('Inputs (values)'!$H$62:$KV$62,1,MATCH('Inputs (values)'!$H$11,'Inputs (values)'!$H$83:$KV$83,0))) -> 5.602586655 | CE22: =(INDEX('Inputs (values)'!$H$84:$KV$86,1,MATCH('Calculations (values)'!CE$21,'Inputs (values)'!$H$83:'Inputs (values)'!$KV$83,0))/INDEX('Inputs (values)'!$H$84:$KV$86,1,MATCH('Inputs (values)'!$H$10,'Inputs (values)'!$H$83:$KV$83,0)))*(INDEX('Inputs (values)'!$H$62:$KV$62,1,MATCH('Inputs (values)'!$H$12,'Inputs (values)'!$H$83:$KV$83,0))/INDEX('Inputs (values)'!$H$62:$KV$62,1,MATCH('Inputs (values)'!$H$11,'Inputs (values)'!$H$83:$KV$83,0))) -> 5.685390597 | CF22: =(INDEX('Inputs (values)'!$H$84:$KV$86,1,MATCH('Calculations (values)'!CF$21,'Inputs (values)'!$H$83:'Inputs (values)'!$KV$83,0))/INDEX('Inputs (values)'!$H$84:$KV$86,1,MATCH('Inputs (values)'!$H$10,'Inputs (values)'!$H$83:$KV$83,0)))*(INDEX('Inputs (values)'!$H$62:$KV$62,1,MATCH('Inputs (values)'!$H$12,'Inputs (values)'!$H$83:$KV$83,0))/INDEX('Inputs (values)'!$H$62:$KV$62,1,MATCH('Inputs (values)'!$H$11,'Inputs (values)'!$H$83:$KV$83,0))) -> 5.769418348 | CG22: =(INDEX('Inputs (values)'!$H$84:$KV$86,1,MATCH('Calculations (values)'!CG$21,'Inputs (values)'!$H$83:'Inputs (values)'!$KV$83,0))/INDEX('Inputs (values)'!$H$84:$KV$86,1,MATCH('Inputs (values)'!$H$10,'Inputs (values)'!$H$83:$KV$83,0)))*(INDEX('Inputs (values)'!$H$62:$KV$62,1,MATCH('Inputs (values)'!$H$12,'Inputs (values)'!$H$83:$KV$83,0))/INDEX('Inputs (values)'!$H$62:$KV$62,1,MATCH('Inputs (values)'!$H$11,'Inputs (values)'!$H$83:$KV$83,0))) -> 5.854687995 | CH22: =(INDEX('Inputs (values)'!$H$84:$KV$86,1,MATCH('Calculations (values)'!CH$21,'Inputs (values)'!$H$83:'Inputs (values)'!$KV$83,0))/INDEX('Inputs (values)'!$H$84:$KV$86,1,MATCH('Inputs (values)'!$H$10,'Inputs (values)'!$H$83:$KV$83,0)))*(INDEX('Inputs (values)'!$H$62:$KV$62,1,MATCH('Inputs (values)'!$H$12,'Inputs (values)'!$H$83:$KV$83,0))/INDEX('Inputs (values)'!$H$62:$KV$62,1,MATCH('Inputs (values)'!$H$11,'Inputs (values)'!$H$83:$KV$83,0))) -> 5.941217892 | CI22: =(INDEX('Inputs (values)'!$H$84:$KV$86,1,MATCH('Calculations (values)'!CI$21,'Inputs (values)'!$H$83:'Inputs (values)'!$KV$83,0))/INDEX('Inputs (values)'!$H$84:$KV$86,1,MATCH('Inputs (values)'!$H$10,'Inputs (values)'!$H$83:$KV$83,0)))*(INDEX('Inputs (values)'!$H$62:$KV$62,1,MATCH('Inputs (values)'!$H$12,'Inputs (values)'!$H$83:$KV$83,0))/INDEX('Inputs (values)'!$H$62:$KV$62,1,MATCH('Inputs (values)'!$H$11,'Inputs (values)'!$H$83:$KV$83,0))) -> 6.029026666 | CJ22: =(INDEX('Inputs (values)'!$H$84:$KV$86,1,MATCH('Calculations (values)'!CJ$21,'Inputs (values)'!$H$83:'Inputs (values)'!$KV$83,0))/INDEX('Inputs (values)'!$H$84:$KV$86,1,MATCH('Inputs (values)'!$H$10,'Inputs (values)'!$H$83:$KV$83,0)))*(INDEX('Inputs (values)'!$H$62:$KV$62,1,MATCH('Inputs (values)'!$H$12,'Inputs (values)'!$H$83:$KV$83,0))/INDEX('Inputs (values)'!$H$62:$KV$62,1,MATCH('Inputs (values)'!$H$11,'Inputs (values)'!$H$83:$KV$83,0))) -> 6.118133218 | CK22: =(INDEX('Inputs (values)'!$H$84:$KV$86,1,MATCH('Calculations (values)'!CK$21,'Inputs (values)'!$H$83:'Inputs (values)'!$KV$83,0))/INDEX('Inputs (values)'!$H$84:$KV$86,1,MATCH('Inputs (values)'!$H$10,'Inputs (values)'!$H$83:$KV$83,0)))*(INDEX('Inputs (values)'!$H$62:$KV$62,1,MATCH('Inputs (values)'!$H$12,'Inputs (values)'!$H$83:$KV$83,0))/INDEX('Inputs (values)'!$H$62:$KV$62,1,MATCH('Inputs (values)'!$H$11,'Inputs (values)'!$H$83:$KV$83,0))) -> 6.208556728 | CL22: =(INDEX('Inputs (values)'!$H$84:$KV$86,1,MATCH('Calculations (values)'!CL$21,'Inputs (values)'!$H$83:'Inputs (values)'!$KV$83,0))/INDEX('Inputs (values)'!$H$84:$KV$86,1,MATCH('Inputs (values)'!$H$10,'Inputs (values)'!$H$83:$KV$83,0)))*(INDEX('Inputs (values)'!$H$62:$KV$62,1,MATCH('Inputs (values)'!$H$12,'Inputs (values)'!$H$83:$KV$83,0))/INDEX('Inputs (values)'!$H$62:$KV$62,1,MATCH('Inputs (values)'!$H$11,'Inputs (values)'!$H$83:$KV$83,0))) -> 6.30031666 | CM22: =(INDEX('Inputs (values)'!$H$84:$KV$86,1,MATCH('Calculations (values)'!CM$21,'Inputs (values)'!$H$83:'Inputs (values)'!$KV$83,0))/INDEX('Inputs (values)'!$H$84:$KV$86,1,MATCH('Inputs (values)'!$H$10,'Inputs (values)'!$H$83:$KV$83,0)))*(INDEX('Inputs (values)'!$H$62:$KV$62,1,MATCH('Inputs (values)'!$H$12,'Inputs (values)'!$H$83:$KV$83,0))/INDEX('Inputs (values)'!$H$62:$KV$62,1,MATCH('Inputs (values)'!$H$11,'Inputs (values)'!$H$83:$KV$83,0))) -> 6.393432767 | CN22: =(INDEX('Inputs (values)'!$H$84:$KV$86,1,MATCH('Calculations (values)'!CN$21,'Inputs (values)'!$H$83:'Inputs (values)'!$KV$83,0))/INDEX('Inputs (values)'!$H$84:$KV$86,1,MATCH('Inputs (values)'!$H$10,'Inputs (values)'!$H$83:$KV$83,0)))*(INDEX('Inputs (values)'!$H$62:$KV$62,1,MATCH('Inputs (values)'!$H$12,'Inputs (values)'!$H$83:$KV$83,0))/INDEX('Inputs (values)'!$H$62:$KV$62,1,MATCH('Inputs (values)'!$H$11,'Inputs (values)'!$H$83:$KV$83,0))) -> 6.487925092 | CO22: =(INDEX('Inputs (values)'!$H$84:$KV$86,1,MATCH('Calculations (values)'!CO$21,'Inputs (values)'!$H$83:'Inputs (values)'!$KV$83,0))/INDEX('Inputs (values)'!$H$84:$KV$86,1,MATCH('Inputs (values)'!$H$10,'Inputs (values)'!$H$83:$KV$83,0)))*(INDEX('Inputs (values)'!$H$62:$KV$62,1,MATCH('Inputs (values)'!$H$12,'Inputs (values)'!$H$83:$KV$83,0))/INDEX('Inputs (values)'!$H$62:$KV$62,1,MATCH('Inputs (values)'!$H$11,'Inputs (values)'!$H$83:$KV$83,0))) -> 6.583813975 | CP22: =(INDEX('Inputs (values)'!$H$84:$KV$86,1,MATCH('Calculations (values)'!CP$21,'Inputs (values)'!$H$83:'Inputs (values)'!$KV$83,0))/INDEX('Inputs (values)'!$H$84:$KV$86,1,MATCH('Inputs (values)'!$H$10,'Inputs (values)'!$H$83:$KV$83,0)))*(INDEX('Inputs (values)'!$H$62:$KV$62,1,MATCH('Inputs (values)'!$H$12,'Inputs (values)'!$H$83:$KV$83,0))/INDEX('Inputs (values)'!$H$62:$KV$62,1,MATCH('Inputs (values)'!$H$11,'Inputs (values)'!$H$83:$KV$83,0))) -> 6.681120056 | CQ22: =(INDEX('Inputs (values)'!$H$84:$KV$86,1,MATCH('Calculations (values)'!CQ$21,'Inputs (values)'!$H$83:'Inputs (values)'!$KV$83,0))/INDEX('Inputs (values)'!$H$84:$KV$86,1,MATCH('Inputs (values)'!$H$10,'Inputs (values)'!$H$83:$KV$83,0)))*(INDEX('Inputs (values)'!$H$62:$KV$62,1,MATCH('Inputs (values)'!$H$12,'Inputs (values)'!$H$83:$KV$83,0))/INDEX('Inputs (values)'!$H$62:$KV$62,1,MATCH('Inputs (values)'!$H$11,'Inputs (values)'!$H$83:$KV$83,0))) -> 6.779864282 | CR22: =(INDEX('Inputs (values)'!$H$84:$KV$86,1,MATCH('Calculations (values)'!CR$21,'Inputs (values)'!$H$83:'Inputs (values)'!$KV$83,0))/INDEX('Inputs (values)'!$H$84:$KV$86,1,MATCH('Inputs (values)'!$H$10,'Inputs (values)'!$H$83:$KV$83,0)))*(INDEX('Inputs (values)'!$H$62:$KV$62,1,MATCH('Inputs (values)'!$H$12,'Inputs (values)'!$H$83:$KV$83,0))/INDEX('Inputs (values)'!$H$62:$KV$62,1,MATCH('Inputs (values)'!$H$11,'Inputs (values)'!$H$83:$KV$83,0))) -> 6.880067907 | CS22: =(INDEX('Inputs (values)'!$H$84:$KV$86,1,MATCH('Calculations (values)'!CS$21,'Inputs (values)'!$H$83:'Inputs (values)'!$KV$83,0))/INDEX('Inputs (values)'!$H$84:$KV$86,1,MATCH('Inputs (values)'!$H$10,'Inputs (values)'!$H$83:$KV$83,0)))*(INDEX('Inputs (values)'!$H$62:$KV$62,1,MATCH('Inputs (values)'!$H$12,'Inputs (values)'!$H$83:$KV$83,0))/INDEX('Inputs (values)'!$H$62:$KV$62,1,MATCH('Inputs (values)'!$H$11,'Inputs (values)'!$H$83:$KV$83,0))) -> 6.9817525 | CT22: =(INDEX('Inputs (values)'!$H$84:$KV$86,1,MATCH('Calculations (values)'!CT$21,'Inputs (values)'!$H$83:'Inputs (values)'!$KV$83,0))/INDEX('Inputs (values)'!$H$84:$KV$86,1,MATCH('Inputs (values)'!$H$10,'Inputs (values)'!$H$83:$KV$83,0)))*(INDEX('Inputs (values)'!$H$62:$KV$62,1,MATCH('Inputs (values)'!$H$12,'Inputs (values)'!$H$83:$KV$83,0))/INDEX('Inputs (values)'!$H$62:$KV$62,1,MATCH('Inputs (values)'!$H$11,'Inputs (values)'!$H$83:$KV$83,0))) -> 7.084939951 | CU22: =(INDEX('Inputs (values)'!$H$84:$KV$86,1,MATCH('Calculations (values)'!CU$21,'Inputs (values)'!$H$83:'Inputs (values)'!$KV$83,0))/INDEX('Inputs (values)'!$H$84:$KV$86,1,MATCH('Inputs (values)'!$H$10,'Inputs (values)'!$H$83:$KV$83,0)))*(INDEX('Inputs (values)'!$H$62:$KV$62,1,MATCH('Inputs (values)'!$H$12,'Inputs (values)'!$H$83:$KV$83,0))/INDEX('Inputs (values)'!$H$62:$KV$62,1,MATCH('Inputs (values)'!$H$11,'Inputs (values)'!$H$83:$KV$83,0))) -> 7.189652469 | CV22: =(INDEX('Inputs (values)'!$H$84:$KV$86,1,MATCH('Calculations (values)'!CV$21,'Inputs (values)'!$H$83:'Inputs (values)'!$KV$83,0))/INDEX('Inputs (values)'!$H$84:$KV$86,1,MATCH('Inputs (values)'!$H$10,'Inputs (values)'!$H$83:$KV$83,0)))*(INDEX('Inputs (values)'!$H$62:$KV$62,1,MATCH('Inputs (values)'!$H$12,'Inputs (values)'!$H$83:$KV$83,0))/INDEX('Inputs (values)'!$H$62:$KV$62,1,MATCH('Inputs (values)'!$H$11,'Inputs (values)'!$H$83:$KV$83,0))) -> 7.295912596 | CW22: =(INDEX('Inputs (values)'!$H$84:$KV$86,1,MATCH('Calculations (values)'!CW$21,'Inputs (values)'!$H$83:'Inputs (values)'!$KV$83,0))/INDEX('Inputs (values)'!$H$84:$KV$86,1,MATCH('Inputs (values)'!$H$10,'Inputs (values)'!$H$83:$KV$83,0)))*(INDEX('Inputs (values)'!$H$62:$KV$62,1,MATCH('Inputs (values)'!$H$12,'Inputs (values)'!$H$83:$KV$83,0))/INDEX('Inputs (values)'!$H$62:$KV$62,1,MATCH('Inputs (values)'!$H$11,'Inputs (values)'!$H$83:$KV$83,0))) -> 7.403743204 | CX22: =(INDEX('Inputs (values)'!$H$84:$KV$86,1,MATCH('Calculations (values)'!CX$21,'Inputs (values)'!$H$83:'Inputs (values)'!$KV$83,0))/INDEX('Inputs (values)'!$H$84:$KV$86,1,MATCH('Inputs (values)'!$H$10,'Inputs (values)'!$H$83:$KV$83,0)))*(INDEX('Inputs (values)'!$H$62:$KV$62,1,MATCH('Inputs (values)'!$H$12,'Inputs (values)'!$H$83:$KV$83,0))/INDEX('Inputs (values)'!$H$62:$KV$62,1,MATCH('Inputs (values)'!$H$11,'Inputs (values)'!$H$83:$KV$83,0))) -> 7.513167505 | CY22: =(INDEX('Inputs (values)'!$H$84:$KV$86,1,MATCH('Calculations (values)'!CY$21,'Inputs (values)'!$H$83:'Inputs (values)'!$KV$83,0))/INDEX('Inputs (values)'!$H$84:$KV$86,1,MATCH('Inputs (values)'!$H$10,'Inputs (values)'!$H$83:$KV$83,0)))*(INDEX('Inputs (values)'!$H$62:$KV$62,1,MATCH('Inputs (values)'!$H$12,'Inputs (values)'!$H$83:$KV$83,0))/INDEX('Inputs (values)'!$H$62:$KV$62,1,MATCH('Inputs (values)'!$H$11,'Inputs (values)'!$H$83:$KV$83,0))) -> 7.624209052 | CZ22: =(INDEX('Inputs (values)'!$H$84:$KV$86,1,MATCH('Calculations (values)'!CZ$21,'Inputs (values)'!$H$83:'Inputs (values)'!$KV$83,0))/INDEX('Inputs (values)'!$H$84:$KV$86,1,MATCH('Inputs (values)'!$H$10,'Inputs (values)'!$H$83:$KV$83,0)))*(INDEX('Inputs (values)'!$H$62:$KV$62,1,MATCH('Inputs (values)'!$H$12,'Inputs (values)'!$H$83:$KV$83,0))/INDEX('Inputs (values)'!$H$62:$KV$62,1,MATCH('Inputs (values)'!$H$11,'Inputs (values)'!$H$83:$KV$83,0))) -> 7.736891748 | DA22: =(INDEX('Inputs (values)'!$H$84:$KV$86,1,MATCH('Calculations (values)'!DA$21,'Inputs (values)'!$H$83:'Inputs (values)'!$KV$83,0))/INDEX('Inputs (values)'!$H$84:$KV$86,1,MATCH('Inputs (values)'!$H$10,'Inputs (values)'!$H$83:$KV$83,0)))*(INDEX('Inputs (values)'!$H$62:$KV$62,1,MATCH('Inputs (values)'!$H$12,'Inputs (values)'!$H$83:$KV$83,0))/INDEX('Inputs (values)'!$H$62:$KV$62,1,MATCH('Inputs (values)'!$H$11,'Inputs (values)'!$H$83:$KV$83,0))) -> 7.851239848 | DB22: =(INDEX('Inputs (values)'!$H$84:$KV$86,1,MATCH('Calculations (values)'!DB$21,'Inputs (values)'!$H$83:'Inputs (values)'!$KV$83,0))/INDEX('Inputs (values)'!$H$84:$KV$86,1,MATCH('Inputs (values)'!$H$10,'Inputs (values)'!$H$83:$KV$83,0)))*(INDEX('Inputs (values)'!$H$62:$KV$62,1,MATCH('Inputs (values)'!$H$12,'Inputs (values)'!$H$83:$KV$83,0))/INDEX('Inputs (values)'!$H$62:$KV$62,1,MATCH('Inputs (values)'!$H$11,'Inputs (values)'!$H$83:$KV$83,0))) -> 7.967277966 | DC22: =(INDEX('Inputs (values)'!$H$84:$KV$86,1,MATCH('Calculations (values)'!DC$21,'Inputs (values)'!$H$83:'Inputs (values)'!$KV$83,0))/INDEX('Inputs (values)'!$H$84:$KV$86,1,MATCH('Inputs (values)'!$H$10,'Inputs (values)'!$H$83:$KV$83,0)))*(INDEX('Inputs (values)'!$H$62:$KV$62,1,MATCH('Inputs (values)'!$H$12,'Inputs (values)'!$H$83:$KV$83,0))/INDEX('Inputs (values)'!$H$62:$KV$62,1,MATCH('Inputs (values)'!$H$11,'Inputs (values)'!$H$83:$KV$83,0))) -> 8.08503108 | DD22: =(INDEX('Inputs (values)'!$H$84:$KV$86,1,MATCH('Calculations (values)'!DD$21,'Inputs (values)'!$H$83:'Inputs (values)'!$KV$83,0))/INDEX('Inputs (values)'!$H$84:$KV$86,1,MATCH('Inputs (values)'!$H$10,'Inputs (values)'!$H$83:$KV$83,0)))*(INDEX('Inputs (values)'!$H$62:$KV$62,1,MATCH('Inputs (values)'!$H$12,'Inputs (values)'!$H$83:$KV$83,0))/INDEX('Inputs (values)'!$H$62:$KV$62,1,MATCH('Inputs (values)'!$H$11,'Inputs (values)'!$H$83:$KV$83,0))) -> 8.204524537 | DE22: =(INDEX('Inputs (values)'!$H$84:$KV$86,1,MATCH('Calculations (values)'!DE$21,'Inputs (values)'!$H$83:'Inputs (values)'!$KV$83,0))/INDEX('Inputs (values)'!$H$84:$KV$86,1,MATCH('Inputs (values)'!$H$10,'Inputs (values)'!$H$83:$KV$83,0)))*(INDEX('Inputs (values)'!$H$62:$KV$62,1,MATCH('Inputs (values)'!$H$12,'Inputs (values)'!$H$83:$KV$83,0))/INDEX('Inputs (values)'!$H$62:$KV$62,1,MATCH('Inputs (values)'!$H$11,'Inputs (values)'!$H$83:$KV$83,0))) -> 8.325784058 | DF22: =(INDEX('Inputs (values)'!$H$84:$KV$86,1,MATCH('Calculations (values)'!DF$21,'Inputs (values)'!$H$83:'Inputs (values)'!$KV$83,0))/INDEX('Inputs (values)'!$H$84:$KV$86,1,MATCH('Inputs (values)'!$H$10,'Inputs (values)'!$H$83:$KV$83,0)))*(INDEX('Inputs (values)'!$H$62:$KV$62,1,MATCH('Inputs (values)'!$H$12,'Inputs (values)'!$H$83:$KV$83,0))/INDEX('Inputs (values)'!$H$62:$KV$62,1,MATCH('Inputs (values)'!$H$11,'Inputs (values)'!$H$83:$KV$83,0))) -> 8.448835746 | DG22: =(INDEX('Inputs (values)'!$H$84:$KV$86,1,MATCH('Calculations (values)'!DG$21,'Inputs (values)'!$H$83:'Inputs (values)'!$KV$83,0))/INDEX('Inputs (values)'!$H$84:$KV$86,1,MATCH('Inputs (values)'!$H$10,'Inputs (values)'!$H$83:$KV$83,0)))*(INDEX('Inputs (values)'!$H$62:$KV$62,1,MATCH('Inputs (values)'!$H$12,'Inputs (values)'!$H$83:$KV$83,0))/INDEX('Inputs (values)'!$H$62:$KV$62,1,MATCH('Inputs (values)'!$H$11,'Inputs (values)'!$H$83:$KV$83,0))) -> 8.573706088 | DH22: =(INDEX('Inputs (values)'!$H$84:$KV$86,1,MATCH('Calculations (values)'!DH$21,'Inputs (values)'!$H$83:'Inputs (values)'!$KV$83,0))/INDEX('Inputs (values)'!$H$84:$KV$86,1,MATCH('Inputs (values)'!$H$10,'Inputs (values)'!$H$83:$KV$83,0)))*(INDEX('Inputs (values)'!$H$62:$KV$62,1,MATCH('Inputs (values)'!$H$12,'Inputs (values)'!$H$83:$KV$83,0))/INDEX('Inputs (values)'!$H$62:$KV$62,1,MATCH('Inputs (values)'!$H$11,'Inputs (values)'!$H$83:$KV$83,0))) -> 8.700421962 | DI22: =(INDEX('Inputs (values)'!$H$84:$KV$86,1,MATCH('Calculations (values)'!DI$21,'Inputs (values)'!$H$83:'Inputs (values)'!$KV$83,0))/INDEX('Inputs (values)'!$H$84:$KV$86,1,MATCH('Inputs (values)'!$H$10,'Inputs (values)'!$H$83:$KV$83,0)))*(INDEX('Inputs (values)'!$H$62:$KV$62,1,MATCH('Inputs (values)'!$H$12,'Inputs (values)'!$H$83:$KV$83,0))/INDEX('Inputs (values)'!$H$62:$KV$62,1,MATCH('Inputs (values)'!$H$11,'Inputs (values)'!$H$83:$KV$83,0))) -> 8.829010645 | DJ22: =(INDEX('Inputs (values)'!$H$84:$KV$86,1,MATCH('Calculations (values)'!DJ$21,'Inputs (values)'!$H$83:'Inputs (values)'!$KV$83,0))/INDEX('Inputs (values)'!$H$84:$KV$86,1,MATCH('Inputs (values)'!$H$10,'Inputs (values)'!$H$83:$KV$83,0)))*(INDEX('Inputs (values)'!$H$62:$KV$62,1,MATCH('Inputs (values)'!$H$12,'Inputs (values)'!$H$83:$KV$83,0))/INDEX('Inputs (values)'!$H$62:$KV$62,1,MATCH('Inputs (values)'!$H$11,'Inputs (values)'!$H$83:$KV$83,0))) -> 8.959499816 | DK22: =(INDEX('Inputs (values)'!$H$84:$KV$86,1,MATCH('Calculations (values)'!DK$21,'Inputs (values)'!$H$83:'Inputs (values)'!$KV$83,0))/INDEX('Inputs (values)'!$H$84:$KV$86,1,MATCH('Inputs (values)'!$H$10,'Inputs (values)'!$H$83:$KV$83,0)))*(INDEX('Inputs (values)'!$H$62:$KV$62,1,MATCH('Inputs (values)'!$H$12,'Inputs (values)'!$H$83:$KV$83,0))/INDEX('Inputs (values)'!$H$62:$KV$62,1,MATCH('Inputs (values)'!$H$11,'Inputs (values)'!$H$83:$KV$83,0))) -> 9.091917564 | DL22: =(INDEX('Inputs (values)'!$H$84:$KV$86,1,MATCH('Calculations (values)'!DL$21,'Inputs (values)'!$H$83:'Inputs (values)'!$KV$83,0))/INDEX('Inputs (values)'!$H$84:$KV$86,1,MATCH('Inputs (values)'!$H$10,'Inputs (values)'!$H$83:$KV$83,0)))*(INDEX('Inputs (values)'!$H$62:$KV$62,1,MATCH('Inputs (values)'!$H$12,'Inputs (values)'!$H$83:$KV$83,0))/INDEX('Inputs (values)'!$H$62:$KV$62,1,MATCH('Inputs (values)'!$H$11,'Inputs (values)'!$H$83:$KV$83,0))) -> 9.226292392 | DM22: =(INDEX('Inputs (values)'!$H$84:$KV$86,1,MATCH('Calculations (values)'!DM$21,'Inputs (values)'!$H$83:'Inputs (values)'!$KV$83,0))/INDEX('Inputs (values)'!$H$84:$KV$86,1,MATCH('Inputs (values)'!$H$10,'Inputs (values)'!$H$83:$KV$83,0)))*(INDEX('Inputs (values)'!$H$62:$KV$62,1,MATCH('Inputs (values)'!$H$12,'Inputs (values)'!$H$83:$KV$83,0))/INDEX('Inputs (values)'!$H$62:$KV$62,1,MATCH('Inputs (values)'!$H$11,'Inputs (values)'!$H$83:$KV$83,0))) -> 9.362653225 | DN22: =(INDEX('Inputs (values)'!$H$84:$KV$86,1,MATCH('Calculations (values)'!DN$21,'Inputs (values)'!$H$83:'Inputs (values)'!$KV$83,0))/INDEX('Inputs (values)'!$H$84:$KV$86,1,MATCH('Inputs (values)'!$H$10,'Inputs (values)'!$H$83:$KV$83,0)))*(INDEX('Inputs (values)'!$H$62:$KV$62,1,MATCH('Inputs (values)'!$H$12,'Inputs (values)'!$H$83:$KV$83,0))/INDEX('Inputs (values)'!$H$62:$KV$62,1,MATCH('Inputs (values)'!$H$11,'Inputs (values)'!$H$83:$KV$83,0))) -> 9.501029415 | DO22: =(INDEX('Inputs (values)'!$H$84:$KV$86,1,MATCH('Calculations (values)'!DO$21,'Inputs (values)'!$H$83:'Inputs (values)'!$KV$83,0))/INDEX('Inputs (values)'!$H$84:$KV$86,1,MATCH('Inputs (values)'!$H$10,'Inputs (values)'!$H$83:$KV$83,0)))*(INDEX('Inputs (values)'!$H$62:$KV$62,1,MATCH('Inputs (values)'!$H$12,'Inputs (values)'!$H$83:$KV$83,0))/INDEX('Inputs (values)'!$H$62:$KV$62,1,MATCH('Inputs (values)'!$H$11,'Inputs (values)'!$H$83:$KV$83,0))) -> 9.641450749 | DP22: =(INDEX('Inputs (values)'!$H$84:$KV$86,1,MATCH('Calculations (values)'!DP$21,'Inputs (values)'!$H$83:'Inputs (values)'!$KV$83,0))/INDEX('Inputs (values)'!$H$84:$KV$86,1,MATCH('Inputs (values)'!$H$10,'Inputs (values)'!$H$83:$KV$83,0)))*(INDEX('Inputs (values)'!$H$62:$KV$62,1,MATCH('Inputs (values)'!$H$12,'Inputs (values)'!$H$83:$KV$83,0))/INDEX('Inputs (values)'!$H$62:$KV$62,1,MATCH('Inputs (values)'!$H$11,'Inputs (values)'!$H$83:$KV$83,0))) -> 9.783947453 | DQ22: =(INDEX('Inputs (values)'!$H$84:$KV$86,1,MATCH('Calculations (values)'!DQ$21,'Inputs (values)'!$H$83:'Inputs (values)'!$KV$83,0))/INDEX('Inputs (values)'!$H$84:$KV$86,1,MATCH('Inputs (values)'!$H$10,'Inputs (values)'!$H$83:$KV$83,0)))*(INDEX('Inputs (values)'!$H$62:$KV$62,1,MATCH('Inputs (values)'!$H$12,'Inputs (values)'!$H$83:$KV$83,0))/INDEX('Inputs (values)'!$H$62:$KV$62,1,MATCH('Inputs (values)'!$H$11,'Inputs (values)'!$H$83:$KV$83,0))) -> 9.928550201 | DR22: =(INDEX('Inputs (values)'!$H$84:$KV$86,1,MATCH('Calculations (values)'!DR$21,'Inputs (values)'!$H$83:'Inputs (values)'!$KV$83,0))/INDEX('Inputs (values)'!$H$84:$KV$86,1,MATCH('Inputs (values)'!$H$10,'Inputs (values)'!$H$83:$KV$83,0)))*(INDEX('Inputs (values)'!$H$62:$KV$62,1,MATCH('Inputs (values)'!$H$12,'Inputs (values)'!$H$83:$KV$83,0))/INDEX('Inputs (values)'!$H$62:$KV$62,1,MATCH('Inputs (values)'!$H$11,'Inputs (values)'!$H$83:$KV$83,0))) -> 10.07529012 | DS22: =(INDEX('Inputs (values)'!$H$84:$KV$86,1,MATCH('Calculations (values)'!DS$21,'Inputs (values)'!$H$83:'Inputs (values)'!$KV$83,0))/INDEX('Inputs (values)'!$H$84:$KV$86,1,MATCH('Inputs (values)'!$H$10,'Inputs (values)'!$H$83:$KV$83,0)))*(INDEX('Inputs (values)'!$H$62:$KV$62,1,MATCH('Inputs (values)'!$H$12,'Inputs (values)'!$H$83:$KV$83,0))/INDEX('Inputs (values)'!$H$62:$KV$62,1,MATCH('Inputs (values)'!$H$11,'Inputs (values)'!$H$83:$KV$83,0))) -> 10.22419879 | DT22: =(INDEX('Inputs (values)'!$H$84:$KV$86,1,MATCH('Calculations (values)'!DT$21,'Inputs (values)'!$H$83:'Inputs (values)'!$KV$83,0))/INDEX('Inputs (values)'!$H$84:$KV$86,1,MATCH('Inputs (values)'!$H$10,'Inputs (values)'!$H$83:$KV$83,0)))*(INDEX('Inputs (values)'!$H$62:$KV$62,1,MATCH('Inputs (values)'!$H$12,'Inputs (values)'!$H$83:$KV$83,0))/INDEX('Inputs (values)'!$H$62:$KV$62,1,MATCH('Inputs (values)'!$H$11,'Inputs (values)'!$H$83:$KV$83,0))) -> 10.37530827 | DU22: =(INDEX('Inputs (values)'!$H$84:$KV$86,1,MATCH('Calculations (values)'!DU$21,'Inputs (values)'!$H$83:'Inputs (values)'!$KV$83,0))/INDEX('Inputs (values)'!$H$84:$KV$86,1,MATCH('Inputs (values)'!$H$10,'Inputs (values)'!$H$83:$KV$83,0)))*(INDEX('Inputs (values)'!$H$62:$KV$62,1,MATCH('Inputs (values)'!$H$12,'Inputs (values)'!$H$83:$KV$83,0))/INDEX('Inputs (values)'!$H$62:$KV$62,1,MATCH('Inputs (values)'!$H$11,'Inputs (values)'!$H$83:$KV$83,0))) -> 10.52865109 | DV22: =(INDEX('Inputs (values)'!$H$84:$KV$86,1,MATCH('Calculations (values)'!DV$21,'Inputs (values)'!$H$83:'Inputs (values)'!$KV$83,0))/INDEX('Inputs (values)'!$H$84:$KV$86,1,MATCH('Inputs (values)'!$H$10,'Inputs (values)'!$H$83:$KV$83,0)))*(INDEX('Inputs (values)'!$H$62:$KV$62,1,MATCH('Inputs (values)'!$H$12,'Inputs (values)'!$H$83:$KV$83,0))/INDEX('Inputs (values)'!$H$62:$KV$62,1,MATCH('Inputs (values)'!$H$11,'Inputs (values)'!$H$83:$KV$83,0))) -> 10.68426025 | DW22: =(INDEX('Inputs (values)'!$H$84:$KV$86,1,MATCH('Calculations (values)'!DW$21,'Inputs (values)'!$H$83:'Inputs (values)'!$KV$83,0))/INDEX('Inputs (values)'!$H$84:$KV$86,1,MATCH('Inputs (values)'!$H$10,'Inputs (values)'!$H$83:$KV$83,0)))*(INDEX('Inputs (values)'!$H$62:$KV$62,1,MATCH('Inputs (values)'!$H$12,'Inputs (values)'!$H$83:$KV$83,0))/INDEX('Inputs (values)'!$H$62:$KV$62,1,MATCH('Inputs (values)'!$H$11,'Inputs (values)'!$H$83:$KV$83,0))) -> 10.84216926 | DX22: =(INDEX('Inputs (values)'!$H$84:$KV$86,1,MATCH('Calculations (values)'!DX$21,'Inputs (values)'!$H$83:'Inputs (values)'!$KV$83,0))/INDEX('Inputs (values)'!$H$84:$KV$86,1,MATCH('Inputs (values)'!$H$10,'Inputs (values)'!$H$83:$KV$83,0)))*(INDEX('Inputs (values)'!$H$62:$KV$62,1,MATCH('Inputs (values)'!$H$12,'Inputs (values)'!$H$83:$KV$83,0))/INDEX('Inputs (values)'!$H$62:$KV$62,1,MATCH('Inputs (values)'!$H$11,'Inputs (values)'!$H$83:$KV$83,0))) -> 11.00241209 | DY22: =(INDEX('Inputs (values)'!$H$84:$KV$86,1,MATCH('Calculations (values)'!DY$21,'Inputs (values)'!$H$83:'Inputs (values)'!$KV$83,0))/INDEX('Inputs (values)'!$H$84:$KV$86,1,MATCH('Inputs (values)'!$H$10,'Inputs (values)'!$H$83:$KV$83,0)))*(INDEX('Inputs (values)'!$H$62:$KV$62,1,MATCH('Inputs (values)'!$H$12,'Inputs (values)'!$H$83:$KV$83,0))/INDEX('Inputs (values)'!$H$62:$KV$62,1,MATCH('Inputs (values)'!$H$11,'Inputs (values)'!$H$83:$KV$83,0))) -> 11.16502325 | DZ22: =(INDEX('Inputs (values)'!$H$84:$KV$86,1,MATCH('Calculations (values)'!DZ$21,'Inputs (values)'!$H$83:'Inputs (values)'!$KV$83,0))/INDEX('Inputs (values)'!$H$84:$KV$86,1,MATCH('Inputs (values)'!$H$10,'Inputs (values)'!$H$83:$KV$83,0)))*(INDEX('Inputs (values)'!$H$62:$KV$62,1,MATCH('Inputs (values)'!$H$12,'Inputs (values)'!$H$83:$KV$83,0))/INDEX('Inputs (values)'!$H$62:$KV$62,1,MATCH('Inputs (values)'!$H$11,'Inputs (values)'!$H$83:$KV$83,0))) -> 11.33003773 | EA22: =(INDEX('Inputs (values)'!$H$84:$KV$86,1,MATCH('Calculations (values)'!EA$21,'Inputs (values)'!$H$83:'Inputs (values)'!$KV$83,0))/INDEX('Inputs (values)'!$H$84:$KV$86,1,MATCH('Inputs (values)'!$H$10,'Inputs (values)'!$H$83:$KV$83,0)))*(INDEX('Inputs (values)'!$H$62:$KV$62,1,MATCH('Inputs (values)'!$H$12,'Inputs (values)'!$H$83:$KV$83,0))/INDEX('Inputs (values)'!$H$62:$KV$62,1,MATCH('Inputs (values)'!$H$11,'Inputs (values)'!$H$83:$KV$83,0))) -> 11.49749106 | EB22: =(INDEX('Inputs (values)'!$H$84:$KV$86,1,MATCH('Calculations (values)'!EB$21,'Inputs (values)'!$H$83:'Inputs (values)'!$KV$83,0))/INDEX('Inputs (values)'!$H$84:$KV$86,1,MATCH('Inputs (values)'!$H$10,'Inputs (values)'!$H$83:$KV$83,0)))*(INDEX('Inputs (values)'!$H$62:$KV$62,1,MATCH('Inputs (values)'!$H$12,'Inputs (values)'!$H$83:$KV$83,0))/INDEX('Inputs (values)'!$H$62:$KV$62,1,MATCH('Inputs (values)'!$H$11,'Inputs (values)'!$H$83:$KV$83,0))) -> 11.66741928 | EC22: =(INDEX('Inputs (values)'!$H$84:$KV$86,1,MATCH('Calculations (values)'!EC$21,'Inputs (values)'!$H$83:'Inputs (values)'!$KV$83,0))/INDEX('Inputs (values)'!$H$84:$KV$86,1,MATCH('Inputs (values)'!$H$10,'Inputs (values)'!$H$83:$KV$83,0)))*(INDEX('Inputs (values)'!$H$62:$KV$62,1,MATCH('Inputs (values)'!$H$12,'Inputs (values)'!$H$83:$KV$83,0))/INDEX('Inputs (values)'!$H$62:$KV$62,1,MATCH('Inputs (values)'!$H$11,'Inputs (values)'!$H$83:$KV$83,0))) -> 11.83985897 | ED22: =(INDEX('Inputs (values)'!$H$84:$KV$86,1,MATCH('Calculations (values)'!ED$21,'Inputs (values)'!$H$83:'Inputs (values)'!$KV$83,0))/INDEX('Inputs (values)'!$H$84:$KV$86,1,MATCH('Inputs (values)'!$H$10,'Inputs (values)'!$H$83:$KV$83,0)))*(INDEX('Inputs (values)'!$H$62:$KV$62,1,MATCH('Inputs (values)'!$H$12,'Inputs (values)'!$H$83:$KV$83,0))/INDEX('Inputs (values)'!$H$62:$KV$62,1,MATCH('Inputs (values)'!$H$11,'Inputs (values)'!$H$83:$KV$83,0))) -> 12.01484725 | EE22: =(INDEX('Inputs (values)'!$H$84:$KV$86,1,MATCH('Calculations (values)'!EE$21,'Inputs (values)'!$H$83:'Inputs (values)'!$KV$83,0))/INDEX('Inputs (values)'!$H$84:$KV$86,1,MATCH('Inputs (values)'!$H$10,'Inputs (values)'!$H$83:$KV$83,0)))*(INDEX('Inputs (values)'!$H$62:$KV$62,1,MATCH('Inputs (values)'!$H$12,'Inputs (values)'!$H$83:$KV$83,0))/INDEX('Inputs (values)'!$H$62:$KV$62,1,MATCH('Inputs (values)'!$H$11,'Inputs (values)'!$H$83:$KV$83,0))) -> 12.19242179 | EF22: =(INDEX('Inputs (values)'!$H$84:$KV$86,1,MATCH('Calculations (values)'!EF$21,'Inputs (values)'!$H$83:'Inputs (values)'!$KV$83,0))/INDEX('Inputs (values)'!$H$84:$KV$86,1,MATCH('Inputs (values)'!$H$10,'Inputs (values)'!$H$83:$KV$83,0)))*(INDEX('Inputs (values)'!$H$62:$KV$62,1,MATCH('Inputs (values)'!$H$12,'Inputs (values)'!$H$83:$KV$83,0))/INDEX('Inputs (values)'!$H$62:$KV$62,1,MATCH('Inputs (values)'!$H$11,'Inputs (values)'!$H$83:$KV$83,0))) -> 12.3726208 | EG22: =(INDEX('Inputs (values)'!$H$84:$KV$86,1,MATCH('Calculations (values)'!EG$21,'Inputs (values)'!$H$83:'Inputs (values)'!$KV$83,0))/INDEX('Inputs (values)'!$H$84:$KV$86,1,MATCH('Inputs (values)'!$H$10,'Inputs (values)'!$H$83:$KV$83,0)))*(INDEX('Inputs (values)'!$H$62:$KV$62,1,MATCH('Inputs (values)'!$H$12,'Inputs (values)'!$H$83:$KV$83,0))/INDEX('Inputs (values)'!$H$62:$KV$62,1,MATCH('Inputs (values)'!$H$11,'Inputs (values)'!$H$83:$KV$83,0))) -> 12.55548308 | EH22: =(INDEX('Inputs (values)'!$H$84:$KV$86,1,MATCH('Calculations (values)'!EH$21,'Inputs (values)'!$H$83:'Inputs (values)'!$KV$83,0))/INDEX('Inputs (values)'!$H$84:$KV$86,1,MATCH('Inputs (values)'!$H$10,'Inputs (values)'!$H$83:$KV$83,0)))*(INDEX('Inputs (values)'!$H$62:$KV$62,1,MATCH('Inputs (values)'!$H$12,'Inputs (values)'!$H$83:$KV$83,0))/INDEX('Inputs (values)'!$H$62:$KV$62,1,MATCH('Inputs (values)'!$H$11,'Inputs (values)'!$H$83:$KV$83,0))) -> 12.74104799 | EI22: =(INDEX('Inputs (values)'!$H$84:$KV$86,1,MATCH('Calculations (values)'!EI$21,'Inputs (values)'!$H$83:'Inputs (values)'!$KV$83,0))/INDEX('Inputs (values)'!$H$84:$KV$86,1,MATCH('Inputs (values)'!$H$10,'Inputs (values)'!$H$83:$KV$83,0)))*(INDEX('Inputs (values)'!$H$62:$KV$62,1,MATCH('Inputs (values)'!$H$12,'Inputs (values)'!$H$83:$KV$83,0))/INDEX('Inputs (values)'!$H$62:$KV$62,1,MATCH('Inputs (values)'!$H$11,'Inputs (values)'!$H$83:$KV$83,0))) -> 12.92935548 | EJ22: =(INDEX('Inputs (values)'!$H$84:$KV$86,1,MATCH('Calculations (values)'!EJ$21,'Inputs (values)'!$H$83:'Inputs (values)'!$KV$83,0))/INDEX('Inputs (values)'!$H$84:$KV$86,1,MATCH('Inputs (values)'!$H$10,'Inputs (values)'!$H$83:$KV$83,0)))*(INDEX('Inputs (values)'!$H$62:$KV$62,1,MATCH('Inputs (values)'!$H$12,'Inputs (values)'!$H$83:$KV$83,0))/INDEX('Inputs (values)'!$H$62:$KV$62,1,MATCH('Inputs (values)'!$H$11,'Inputs (values)'!$H$83:$KV$83,0))) -> 13.12044607 | EK22: =(INDEX('Inputs (values)'!$H$84:$KV$86,1,MATCH('Calculations (values)'!EK$21,'Inputs (values)'!$H$83:'Inputs (values)'!$KV$83,0))/INDEX('Inputs (values)'!$H$84:$KV$86,1,MATCH('Inputs (values)'!$H$10,'Inputs (values)'!$H$83:$KV$83,0)))*(INDEX('Inputs (values)'!$H$62:$KV$62,1,MATCH('Inputs (values)'!$H$12,'Inputs (values)'!$H$83:$KV$83,0))/INDEX('Inputs (values)'!$H$62:$KV$62,1,MATCH('Inputs (values)'!$H$11,'Inputs (values)'!$H$83:$KV$83,0))) -> 13.31436091 | EL22: =(INDEX('Inputs (values)'!$H$84:$KV$86,1,MATCH('Calculations (values)'!EL$21,'Inputs (values)'!$H$83:'Inputs (values)'!$KV$83,0))/INDEX('Inputs (values)'!$H$84:$KV$86,1,MATCH('Inputs (values)'!$H$10,'Inputs (values)'!$H$83:$KV$83,0)))*(INDEX('Inputs (values)'!$H$62:$KV$62,1,MATCH('Inputs (values)'!$H$12,'Inputs (values)'!$H$83:$KV$83,0))/INDEX('Inputs (values)'!$H$62:$KV$62,1,MATCH('Inputs (values)'!$H$11,'Inputs (values)'!$H$83:$KV$83,0))) -> 13.51114172 | EM22: =(INDEX('Inputs (values)'!$H$84:$KV$86,1,MATCH('Calculations (values)'!EM$21,'Inputs (values)'!$H$83:'Inputs (values)'!$KV$83,0))/INDEX('Inputs (values)'!$H$84:$KV$86,1,MATCH('Inputs (values)'!$H$10,'Inputs (values)'!$H$83:$KV$83,0)))*(INDEX('Inputs (values)'!$H$62:$KV$62,1,MATCH('Inputs (values)'!$H$12,'Inputs (values)'!$H$83:$KV$83,0))/INDEX('Inputs (values)'!$H$62:$KV$62,1,MATCH('Inputs (values)'!$H$11,'Inputs (values)'!$H$83:$KV$83,0))) -> 13.71083088 | EN22: =(INDEX('Inputs (values)'!$H$84:$KV$86,1,MATCH('Calculations (values)'!EN$21,'Inputs (values)'!$H$83:'Inputs (values)'!$KV$83,0))/INDEX('Inputs (values)'!$H$84:$KV$86,1,MATCH('Inputs (values)'!$H$10,'Inputs (values)'!$H$83:$KV$83,0)))*(INDEX('Inputs (values)'!$H$62:$KV$62,1,MATCH('Inputs (values)'!$H$12,'Inputs (values)'!$H$83:$KV$83,0))/INDEX('Inputs (values)'!$H$62:$KV$62,1,MATCH('Inputs (values)'!$H$11,'Inputs (values)'!$H$83:$KV$83,0))) -> 13.91347136 | EO22: =(INDEX('Inputs (values)'!$H$84:$KV$86,1,MATCH('Calculations (values)'!EO$21,'Inputs (values)'!$H$83:'Inputs (values)'!$KV$83,0))/INDEX('Inputs (values)'!$H$84:$KV$86,1,MATCH('Inputs (values)'!$H$10,'Inputs (values)'!$H$83:$KV$83,0)))*(INDEX('Inputs (values)'!$H$62:$KV$62,1,MATCH('Inputs (values)'!$H$12,'Inputs (values)'!$H$83:$KV$83,0))/INDEX('Inputs (values)'!$H$62:$KV$62,1,MATCH('Inputs (values)'!$H$11,'Inputs (values)'!$H$83:$KV$83,0))) -> 14.11910678 | EP22: =(INDEX('Inputs (values)'!$H$84:$KV$86,1,MATCH('Calculations (values)'!EP$21,'Inputs (values)'!$H$83:'Inputs (values)'!$KV$83,0))/INDEX('Inputs (values)'!$H$84:$KV$86,1,MATCH('Inputs (values)'!$H$10,'Inputs (values)'!$H$83:$KV$83,0)))*(INDEX('Inputs (values)'!$H$62:$KV$62,1,MATCH('Inputs (values)'!$H$12,'Inputs (values)'!$H$83:$KV$83,0))/INDEX('Inputs (values)'!$H$62:$KV$62,1,MATCH('Inputs (values)'!$H$11,'Inputs (values)'!$H$83:$KV$83,0))) -> 14.32778141 | EQ22: =(INDEX('Inputs (values)'!$H$84:$KV$86,1,MATCH('Calculations (values)'!EQ$21,'Inputs (values)'!$H$83:'Inputs (values)'!$KV$83,0))/INDEX('Inputs (values)'!$H$84:$KV$86,1,MATCH('Inputs (values)'!$H$10,'Inputs (values)'!$H$83:$KV$83,0)))*(INDEX('Inputs (values)'!$H$62:$KV$62,1,MATCH('Inputs (values)'!$H$12,'Inputs (values)'!$H$83:$KV$83,0))/INDEX('Inputs (values)'!$H$62:$KV$62,1,MATCH('Inputs (values)'!$H$11,'Inputs (values)'!$H$83:$KV$83,0))) -> 14.53954017 | ER22: =(INDEX('Inputs (values)'!$H$84:$KV$86,1,MATCH('Calculations (values)'!ER$21,'Inputs (values)'!$H$83:'Inputs (values)'!$KV$83,0))/INDEX('Inputs (values)'!$H$84:$KV$86,1,MATCH('Inputs (values)'!$H$10,'Inputs (values)'!$H$83:$KV$83,0)))*(INDEX('Inputs (values)'!$H$62:$KV$62,1,MATCH('Inputs (values)'!$H$12,'Inputs (values)'!$H$83:$KV$83,0))/INDEX('Inputs (values)'!$H$62:$KV$62,1,MATCH('Inputs (values)'!$H$11,'Inputs (values)'!$H$83:$KV$83,0))) -> 14.75442864 | ES22: =(INDEX('Inputs (values)'!$H$84:$KV$86,1,MATCH('Calculations (values)'!ES$21,'Inputs (values)'!$H$83:'Inputs (values)'!$KV$83,0))/INDEX('Inputs (values)'!$H$84:$KV$86,1,MATCH('Inputs (values)'!$H$10,'Inputs (values)'!$H$83:$KV$83,0)))*(INDEX('Inputs (values)'!$H$62:$KV$62,1,MATCH('Inputs (values)'!$H$12,'Inputs (values)'!$H$83:$KV$83,0))/INDEX('Inputs (values)'!$H$62:$KV$62,1,MATCH('Inputs (values)'!$H$11,'Inputs (values)'!$H$83:$KV$83,0))) -> 14.97249307 | ET22: =(INDEX('Inputs (values)'!$H$84:$KV$86,1,MATCH('Calculations (values)'!ET$21,'Inputs (values)'!$H$83:'Inputs (values)'!$KV$83,0))/INDEX('Inputs (values)'!$H$84:$KV$86,1,MATCH('Inputs (values)'!$H$10,'Inputs (values)'!$H$83:$KV$83,0)))*(INDEX('Inputs (values)'!$H$62:$KV$62,1,MATCH('Inputs (values)'!$H$12,'Inputs (values)'!$H$83:$KV$83,0))/INDEX('Inputs (values)'!$H$62:$KV$62,1,MATCH('Inputs (values)'!$H$11,'Inputs (values)'!$H$83:$KV$83,0))) -> 15.1937804 | EU22: =(INDEX('Inputs (values)'!$H$84:$KV$86,1,MATCH('Calculations (values)'!EU$21,'Inputs (values)'!$H$83:'Inputs (values)'!$KV$83,0))/INDEX('Inputs (values)'!$H$84:$KV$86,1,MATCH('Inputs (values)'!$H$10,'Inputs (values)'!$H$83:$KV$83,0)))*(INDEX('Inputs (values)'!$H$62:$KV$62,1,MATCH('Inputs (values)'!$H$12,'Inputs (values)'!$H$83:$KV$83,0))/INDEX('Inputs (values)'!$H$62:$KV$62,1,MATCH('Inputs (values)'!$H$11,'Inputs (values)'!$H$83:$KV$83,0))) -> 15.41833827 | EV22: =(INDEX('Inputs (values)'!$H$84:$KV$86,1,MATCH('Calculations (values)'!EV$21,'Inputs (values)'!$H$83:'Inputs (values)'!$KV$83,0))/INDEX('Inputs (values)'!$H$84:$KV$86,1,MATCH('Inputs (values)'!$H$10,'Inputs (values)'!$H$83:$KV$83,0)))*(INDEX('Inputs (values)'!$H$62:$KV$62,1,MATCH('Inputs (values)'!$H$12,'Inputs (values)'!$H$83:$KV$83,0))/INDEX('Inputs (values)'!$H$62:$KV$62,1,MATCH('Inputs (values)'!$H$11,'Inputs (values)'!$H$83:$KV$83,0))) -> 15.64621501 | EW22: =(INDEX('Inputs (values)'!$H$84:$KV$86,1,MATCH('Calculations (values)'!EW$21,'Inputs (values)'!$H$83:'Inputs (values)'!$KV$83,0))/INDEX('Inputs (values)'!$H$84:$KV$86,1,MATCH('Inputs (values)'!$H$10,'Inputs (values)'!$H$83:$KV$83,0)))*(INDEX('Inputs (values)'!$H$62:$KV$62,1,MATCH('Inputs (values)'!$H$12,'Inputs (values)'!$H$83:$KV$83,0))/INDEX('Inputs (values)'!$H$62:$KV$62,1,MATCH('Inputs (values)'!$H$11,'Inputs (values)'!$H$83:$KV$83,0))) -> 15.87745968 | EX22: =(INDEX('Inputs (values)'!$H$84:$KV$86,1,MATCH('Calculations (values)'!EX$21,'Inputs (values)'!$H$83:'Inputs (values)'!$KV$83,0))/INDEX('Inputs (values)'!$H$84:$KV$86,1,MATCH('Inputs (values)'!$H$10,'Inputs (values)'!$H$83:$KV$83,0)))*(INDEX('Inputs (values)'!$H$62:$KV$62,1,MATCH('Inputs (values)'!$H$12,'Inputs (values)'!$H$83:$KV$83,0))/INDEX('Inputs (values)'!$H$62:$KV$62,1,MATCH('Inputs (values)'!$H$11,'Inputs (values)'!$H$83:$KV$83,0))) -> 16.11212204 | EY22: =(INDEX('Inputs (values)'!$H$84:$KV$86,1,MATCH('Calculations (values)'!EY$21,'Inputs (values)'!$H$83:'Inputs (values)'!$KV$83,0))/INDEX('Inputs (values)'!$H$84:$KV$86,1,MATCH('Inputs (values)'!$H$10,'Inputs (values)'!$H$83:$KV$83,0)))*(INDEX('Inputs (values)'!$H$62:$KV$62,1,MATCH('Inputs (values)'!$H$12,'Inputs (values)'!$H$83:$KV$83,0))/INDEX('Inputs (values)'!$H$62:$KV$62,1,MATCH('Inputs (values)'!$H$11,'Inputs (values)'!$H$83:$KV$83,0))) -> 16.35025263 | EZ22: =(INDEX('Inputs (values)'!$H$84:$KV$86,1,MATCH('Calculations (values)'!EZ$21,'Inputs (values)'!$H$83:'Inputs (values)'!$KV$83,0))/INDEX('Inputs (values)'!$H$84:$KV$86,1,MATCH('Inputs (values)'!$H$10,'Inputs (values)'!$H$83:$KV$83,0)))*(INDEX('Inputs (values)'!$H$62:$KV$62,1,MATCH('Inputs (values)'!$H$12,'Inputs (values)'!$H$83:$KV$83,0))/INDEX('Inputs (values)'!$H$62:$KV$62,1,MATCH('Inputs (values)'!$H$11,'Inputs (values)'!$H$83:$KV$83,0))) -> 16.59190268 | FA22: =(INDEX('Inputs (values)'!$H$84:$KV$86,1,MATCH('Calculations (values)'!FA$21,'Inputs (values)'!$H$83:'Inputs (values)'!$KV$83,0))/INDEX('Inputs (values)'!$H$84:$KV$86,1,MATCH('Inputs (values)'!$H$10,'Inputs (values)'!$H$83:$KV$83,0)))*(INDEX('Inputs (values)'!$H$62:$KV$62,1,MATCH('Inputs (values)'!$H$12,'Inputs (values)'!$H$83:$KV$83,0))/INDEX('Inputs (values)'!$H$62:$KV$62,1,MATCH('Inputs (values)'!$H$11,'Inputs (values)'!$H$83:$KV$83,0))) -> 16.83712423 | FB22: =(INDEX('Inputs (values)'!$H$84:$KV$86,1,MATCH('Calculations (values)'!FB$21,'Inputs (values)'!$H$83:'Inputs (values)'!$KV$83,0))/INDEX('Inputs (values)'!$H$84:$KV$86,1,MATCH('Inputs (values)'!$H$10,'Inputs (values)'!$H$83:$KV$83,0)))*(INDEX('Inputs (values)'!$H$62:$KV$62,1,MATCH('Inputs (values)'!$H$12,'Inputs (values)'!$H$83:$KV$83,0))/INDEX('Inputs (values)'!$H$62:$KV$62,1,MATCH('Inputs (values)'!$H$11,'Inputs (values)'!$H$83:$KV$83,0))) -> 17.08597005 | FC22: =(INDEX('Inputs (values)'!$H$84:$KV$86,1,MATCH('Calculations (values)'!FC$21,'Inputs (values)'!$H$83:'Inputs (values)'!$KV$83,0))/INDEX('Inputs (values)'!$H$84:$KV$86,1,MATCH('Inputs (values)'!$H$10,'Inputs (values)'!$H$83:$KV$83,0)))*(INDEX('Inputs (values)'!$H$62:$KV$62,1,MATCH('Inputs (values)'!$H$12,'Inputs (values)'!$H$83:$KV$83,0))/INDEX('Inputs (values)'!$H$62:$KV$62,1,MATCH('Inputs (values)'!$H$11,'Inputs (values)'!$H$83:$KV$83,0))) -> 17.33849371 | FD22: =(INDEX('Inputs (values)'!$H$84:$KV$86,1,MATCH('Calculations (values)'!FD$21,'Inputs (values)'!$H$83:'Inputs (values)'!$KV$83,0))/INDEX('Inputs (values)'!$H$84:$KV$86,1,MATCH('Inputs (values)'!$H$10,'Inputs (values)'!$H$83:$KV$83,0)))*(INDEX('Inputs (values)'!$H$62:$KV$62,1,MATCH('Inputs (values)'!$H$12,'Inputs (values)'!$H$83:$KV$83,0))/INDEX('Inputs (values)'!$H$62:$KV$62,1,MATCH('Inputs (values)'!$H$11,'Inputs (values)'!$H$83:$KV$83,0))) -> 17.59474956 | FE22: =(INDEX('Inputs (values)'!$H$84:$KV$86,1,MATCH('Calculations (values)'!FE$21,'Inputs (values)'!$H$83:'Inputs (values)'!$KV$83,0))/INDEX('Inputs (values)'!$H$84:$KV$86,1,MATCH('Inputs (values)'!$H$10,'Inputs (values)'!$H$83:$KV$83,0)))*(INDEX('Inputs (values)'!$H$62:$KV$62,1,MATCH('Inputs (values)'!$H$12,'Inputs (values)'!$H$83:$KV$83,0))/INDEX('Inputs (values)'!$H$62:$KV$62,1,MATCH('Inputs (values)'!$H$11,'Inputs (values)'!$H$83:$KV$83,0))) -> 17.85479277 | FF22: =(INDEX('Inputs (values)'!$H$84:$KV$86,1,MATCH('Calculations (values)'!FF$21,'Inputs (values)'!$H$83:'Inputs (values)'!$KV$83,0))/INDEX('Inputs (values)'!$H$84:$KV$86,1,MATCH('Inputs (values)'!$H$10,'Inputs (values)'!$H$83:$KV$83,0)))*(INDEX('Inputs (values)'!$H$62:$KV$62,1,MATCH('Inputs (values)'!$H$12,'Inputs (values)'!$H$83:$KV$83,0))/INDEX('Inputs (values)'!$H$62:$KV$62,1,MATCH('Inputs (values)'!$H$11,'Inputs (values)'!$H$83:$KV$83,0))) -> 18.11867932 | FG22: =(INDEX('Inputs (values)'!$H$84:$KV$86,1,MATCH('Calculations (values)'!FG$21,'Inputs (values)'!$H$83:'Inputs (values)'!$KV$83,0))/INDEX('Inputs (values)'!$H$84:$KV$86,1,MATCH('Inputs (values)'!$H$10,'Inputs (values)'!$H$83:$KV$83,0)))*(INDEX('Inputs (values)'!$H$62:$KV$62,1,MATCH('Inputs (values)'!$H$12,'Inputs (values)'!$H$83:$KV$83,0))/INDEX('Inputs (values)'!$H$62:$KV$62,1,MATCH('Inputs (values)'!$H$11,'Inputs (values)'!$H$83:$KV$83,0))) -> 18.386466 | FH22: =(INDEX('Inputs (values)'!$H$84:$KV$86,1,MATCH('Calculations (values)'!FH$21,'Inputs (values)'!$H$83:'Inputs (values)'!$KV$83,0))/INDEX('Inputs (values)'!$H$84:$KV$86,1,MATCH('Inputs (values)'!$H$10,'Inputs (values)'!$H$83:$KV$83,0)))*(INDEX('Inputs (values)'!$H$62:$KV$62,1,MATCH('Inputs (values)'!$H$12,'Inputs (values)'!$H$83:$KV$83,0))/INDEX('Inputs (values)'!$H$62:$KV$62,1,MATCH('Inputs (values)'!$H$11,'Inputs (values)'!$H$83:$KV$83,0))) -> 18.65821045 | FI22: =(INDEX('Inputs (values)'!$H$84:$KV$86,1,MATCH('Calculations (values)'!FI$21,'Inputs (values)'!$H$83:'Inputs (values)'!$KV$83,0))/INDEX('Inputs (values)'!$H$84:$KV$86,1,MATCH('Inputs (values)'!$H$10,'Inputs (values)'!$H$83:$KV$83,0)))*(INDEX('Inputs (values)'!$H$62:$KV$62,1,MATCH('Inputs (values)'!$H$12,'Inputs (values)'!$H$83:$KV$83,0))/INDEX('Inputs (values)'!$H$62:$KV$62,1,MATCH('Inputs (values)'!$H$11,'Inputs (values)'!$H$83:$KV$83,0))) -> 18.93397118 | FJ22: =(INDEX('Inputs (values)'!$H$84:$KV$86,1,MATCH('Calculations (values)'!FJ$21,'Inputs (values)'!$H$83:'Inputs (values)'!$KV$83,0))/INDEX('Inputs (values)'!$H$84:$KV$86,1,MATCH('Inputs (values)'!$H$10,'Inputs (values)'!$H$83:$KV$83,0)))*(INDEX('Inputs (values)'!$H$62:$KV$62,1,MATCH('Inputs (values)'!$H$12,'Inputs (values)'!$H$83:$KV$83,0))/INDEX('Inputs (values)'!$H$62:$KV$62,1,MATCH('Inputs (values)'!$H$11,'Inputs (values)'!$H$83:$KV$83,0))) -> 19.21380754 | FK22: =(INDEX('Inputs (values)'!$H$84:$KV$86,1,MATCH('Calculations (values)'!FK$21,'Inputs (values)'!$H$83:'Inputs (values)'!$KV$83,0))/INDEX('Inputs (values)'!$H$84:$KV$86,1,MATCH('Inputs (values)'!$H$10,'Inputs (values)'!$H$83:$KV$83,0)))*(INDEX('Inputs (values)'!$H$62:$KV$62,1,MATCH('Inputs (values)'!$H$12,'Inputs (values)'!$H$83:$KV$83,0))/INDEX('Inputs (values)'!$H$62:$KV$62,1,MATCH('Inputs (values)'!$H$11,'Inputs (values)'!$H$83:$KV$83,0))) -> 19.49777977 | FL22: =(INDEX('Inputs (values)'!$H$84:$KV$86,1,MATCH('Calculations (values)'!FL$21,'Inputs (values)'!$H$83:'Inputs (values)'!$KV$83,0))/INDEX('Inputs (values)'!$H$84:$KV$86,1,MATCH('Inputs (values)'!$H$10,'Inputs (values)'!$H$83:$KV$83,0)))*(INDEX('Inputs (values)'!$H$62:$KV$62,1,MATCH('Inputs (values)'!$H$12,'Inputs (values)'!$H$83:$KV$83,0))/INDEX('Inputs (values)'!$H$62:$KV$62,1,MATCH('Inputs (values)'!$H$11,'Inputs (values)'!$H$83:$KV$83,0))) -> 19.78594899 | FM22: =(INDEX('Inputs (values)'!$H$84:$KV$86,1,MATCH('Calculations (values)'!FM$21,'Inputs (values)'!$H$83:'Inputs (values)'!$KV$83,0))/INDEX('Inputs (values)'!$H$84:$KV$86,1,MATCH('Inputs (values)'!$H$10,'Inputs (values)'!$H$83:$KV$83,0)))*(INDEX('Inputs (values)'!$H$62:$KV$62,1,MATCH('Inputs (values)'!$H$12,'Inputs (values)'!$H$83:$KV$83,0))/INDEX('Inputs (values)'!$H$62:$KV$62,1,MATCH('Inputs (values)'!$H$11,'Inputs (values)'!$H$83:$KV$83,0))) -> 20.07837724 | FN22: =(INDEX('Inputs (values)'!$H$84:$KV$86,1,MATCH('Calculations (values)'!FN$21,'Inputs (values)'!$H$83:'Inputs (values)'!$KV$83,0))/INDEX('Inputs (values)'!$H$84:$KV$86,1,MATCH('Inputs (values)'!$H$10,'Inputs (values)'!$H$83:$KV$83,0)))*(INDEX('Inputs (values)'!$H$62:$KV$62,1,MATCH('Inputs (values)'!$H$12,'Inputs (values)'!$H$83:$KV$83,0))/INDEX('Inputs (values)'!$H$62:$KV$62,1,MATCH('Inputs (values)'!$H$11,'Inputs (values)'!$H$83:$KV$83,0))) -> 20.37512745 | FO22: =(INDEX('Inputs (values)'!$H$84:$KV$86,1,MATCH('Calculations (values)'!FO$21,'Inputs (values)'!$H$83:'Inputs (values)'!$KV$83,0))/INDEX('Inputs (values)'!$H$84:$KV$86,1,MATCH('Inputs (values)'!$H$10,'Inputs (values)'!$H$83:$KV$83,0)))*(INDEX('Inputs (values)'!$H$62:$KV$62,1,MATCH('Inputs (values)'!$H$12,'Inputs (values)'!$H$83:$KV$83,0))/INDEX('Inputs (values)'!$H$62:$KV$62,1,MATCH('Inputs (values)'!$H$11,'Inputs (values)'!$H$83:$KV$83,0))) -> 20.67626351 | FP22: =(INDEX('Inputs (values)'!$H$84:$KV$86,1,MATCH('Calculations (values)'!FP$21,'Inputs (values)'!$H$83:'Inputs (values)'!$KV$83,0))/INDEX('Inputs (values)'!$H$84:$KV$86,1,MATCH('Inputs (values)'!$H$10,'Inputs (values)'!$H$83:$KV$83,0)))*(INDEX('Inputs (values)'!$H$62:$KV$62,1,MATCH('Inputs (values)'!$H$12,'Inputs (values)'!$H$83:$KV$83,0))/INDEX('Inputs (values)'!$H$62:$KV$62,1,MATCH('Inputs (values)'!$H$11,'Inputs (values)'!$H$83:$KV$83,0))) -> 20.98185024 | FQ22: =(INDEX('Inputs (values)'!$H$84:$KV$86,1,MATCH('Calculations (values)'!FQ$21,'Inputs (values)'!$H$83:'Inputs (values)'!$KV$83,0))/INDEX('Inputs (values)'!$H$84:$KV$86,1,MATCH('Inputs (values)'!$H$10,'Inputs (values)'!$H$83:$KV$83,0)))*(INDEX('Inputs (values)'!$H$62:$KV$62,1,MATCH('Inputs (values)'!$H$12,'Inputs (values)'!$H$83:$KV$83,0))/INDEX('Inputs (values)'!$H$62:$KV$62,1,MATCH('Inputs (values)'!$H$11,'Inputs (values)'!$H$83:$KV$83,0))) -> 21.29195342 | FR22: =(INDEX('Inputs (values)'!$H$84:$KV$86,1,MATCH('Calculations (values)'!FR$21,'Inputs (values)'!$H$83:'Inputs (values)'!$KV$83,0))/INDEX('Inputs (values)'!$H$84:$KV$86,1,MATCH('Inputs (values)'!$H$10,'Inputs (values)'!$H$83:$KV$83,0)))*(INDEX('Inputs (values)'!$H$62:$KV$62,1,MATCH('Inputs (values)'!$H$12,'Inputs (values)'!$H$83:$KV$83,0))/INDEX('Inputs (values)'!$H$62:$KV$62,1,MATCH('Inputs (values)'!$H$11,'Inputs (values)'!$H$83:$KV$83,0))) -> 21.6066398 | FS22: =(INDEX('Inputs (values)'!$H$84:$KV$86,1,MATCH('Calculations (values)'!FS$21,'Inputs (values)'!$H$83:'Inputs (values)'!$KV$83,0))/INDEX('Inputs (values)'!$H$84:$KV$86,1,MATCH('Inputs (values)'!$H$10,'Inputs (values)'!$H$83:$KV$83,0)))*(INDEX('Inputs (values)'!$H$62:$KV$62,1,MATCH('Inputs (values)'!$H$12,'Inputs (values)'!$H$83:$KV$83,0))/INDEX('Inputs (values)'!$H$62:$KV$62,1,MATCH('Inputs (values)'!$H$11,'Inputs (values)'!$H$83:$KV$83,0))) -> 21.92597711 | FT22: =(INDEX('Inputs (values)'!$H$84:$KV$86,1,MATCH('Calculations (values)'!FT$21,'Inputs (values)'!$H$83:'Inputs (values)'!$KV$83,0))/INDEX('Inputs (values)'!$H$84:$KV$86,1,MATCH('Inputs (values)'!$H$10,'Inputs (values)'!$H$83:$KV$83,0)))*(INDEX('Inputs (values)'!$H$62:$KV$62,1,MATCH('Inputs (values)'!$H$12,'Inputs (values)'!$H$83:$KV$83,0))/INDEX('Inputs (values)'!$H$62:$KV$62,1,MATCH('Inputs (values)'!$H$11,'Inputs (values)'!$H$83:$KV$83,0))) -> 22.25003409 | FU22: =(INDEX('Inputs (values)'!$H$84:$KV$86,1,MATCH('Calculations (values)'!FU$21,'Inputs (values)'!$H$83:'Inputs (values)'!$KV$83,0))/INDEX('Inputs (values)'!$H$84:$KV$86,1,MATCH('Inputs (values)'!$H$10,'Inputs (values)'!$H$83:$KV$83,0)))*(INDEX('Inputs (values)'!$H$62:$KV$62,1,MATCH('Inputs (values)'!$H$12,'Inputs (values)'!$H$83:$KV$83,0))/INDEX('Inputs (values)'!$H$62:$KV$62,1,MATCH('Inputs (values)'!$H$11,'Inputs (values)'!$H$83:$KV$83,0))) -> 22.57888051 | FV22: =(INDEX('Inputs (values)'!$H$84:$KV$86,1,MATCH('Calculations (values)'!FV$21,'Inputs (values)'!$H$83:'Inputs (values)'!$KV$83,0))/INDEX('Inputs (values)'!$H$84:$KV$86,1,MATCH('Inputs (values)'!$H$10,'Inputs (values)'!$H$83:$KV$83,0)))*(INDEX('Inputs (values)'!$H$62:$KV$62,1,MATCH('Inputs (values)'!$H$12,'Inputs (values)'!$H$83:$KV$83,0))/INDEX('Inputs (values)'!$H$62:$KV$62,1,MATCH('Inputs (values)'!$H$11,'Inputs (values)'!$H$83:$KV$83,0))) -> 22.91258714 | FW22: =(INDEX('Inputs (values)'!$H$84:$KV$86,1,MATCH('Calculations (values)'!FW$21,'Inputs (values)'!$H$83:'Inputs (values)'!$KV$83,0))/INDEX('Inputs (values)'!$H$84:$KV$86,1,MATCH('Inputs (values)'!$H$10,'Inputs (values)'!$H$83:$KV$83,0)))*(INDEX('Inputs (values)'!$H$62:$KV$62,1,MATCH('Inputs (values)'!$H$12,'Inputs (values)'!$H$83:$KV$83,0))/INDEX('Inputs (values)'!$H$62:$KV$62,1,MATCH('Inputs (values)'!$H$11,'Inputs (values)'!$H$83:$KV$83,0))) -> 23.25122582 | FX22: =(INDEX('Inputs (values)'!$H$84:$KV$86,1,MATCH('Calculations (values)'!FX$21,'Inputs (values)'!$H$83:'Inputs (values)'!$KV$83,0))/INDEX('Inputs (values)'!$H$84:$KV$86,1,MATCH('Inputs (values)'!$H$10,'Inputs (values)'!$H$83:$KV$83,0)))*(INDEX('Inputs (values)'!$H$62:$KV$62,1,MATCH('Inputs (values)'!$H$12,'Inputs (values)'!$H$83:$KV$83,0))/INDEX('Inputs (values)'!$H$62:$KV$62,1,MATCH('Inputs (values)'!$H$11,'Inputs (values)'!$H$83:$KV$83,0))) -> 23.59486944 | FY22: =(INDEX('Inputs (values)'!$H$84:$KV$86,1,MATCH('Calculations (values)'!FY$21,'Inputs (values)'!$H$83:'Inputs (values)'!$KV$83,0))/INDEX('Inputs (values)'!$H$84:$KV$86,1,MATCH('Inputs (values)'!$H$10,'Inputs (values)'!$H$83:$KV$83,0)))*(INDEX('Inputs (values)'!$H$62:$KV$62,1,MATCH('Inputs (values)'!$H$12,'Inputs (values)'!$H$83:$KV$83,0))/INDEX('Inputs (values)'!$H$62:$KV$62,1,MATCH('Inputs (values)'!$H$11,'Inputs (values)'!$H$83:$KV$83,0))) -> 23.94359197 | FZ22: =(INDEX('Inputs (values)'!$H$84:$KV$86,1,MATCH('Calculations (values)'!FZ$21,'Inputs (values)'!$H$83:'Inputs (values)'!$KV$83,0))/INDEX('Inputs (values)'!$H$84:$KV$86,1,MATCH('Inputs (values)'!$H$10,'Inputs (values)'!$H$83:$KV$83,0)))*(INDEX('Inputs (values)'!$H$62:$KV$62,1,MATCH('Inputs (values)'!$H$12,'Inputs (values)'!$H$83:$KV$83,0))/INDEX('Inputs (values)'!$H$62:$KV$62,1,MATCH('Inputs (values)'!$H$11,'Inputs (values)'!$H$83:$KV$83,0))) -> 24.29746848 | GA22: =(INDEX('Inputs (values)'!$H$84:$KV$86,1,MATCH('Calculations (values)'!GA$21,'Inputs (values)'!$H$83:'Inputs (values)'!$KV$83,0))/INDEX('Inputs (values)'!$H$84:$KV$86,1,MATCH('Inputs (values)'!$H$10,'Inputs (values)'!$H$83:$KV$83,0)))*(INDEX('Inputs (values)'!$H$62:$KV$62,1,MATCH('Inputs (values)'!$H$12,'Inputs (values)'!$H$83:$KV$83,0))/INDEX('Inputs (values)'!$H$62:$KV$62,1,MATCH('Inputs (values)'!$H$11,'Inputs (values)'!$H$83:$KV$83,0))) -> 24.65657514 | GB22: =(INDEX('Inputs (values)'!$H$84:$KV$86,1,MATCH('Calculations (values)'!GB$21,'Inputs (values)'!$H$83:'Inputs (values)'!$KV$83,0))/INDEX('Inputs (values)'!$H$84:$KV$86,1,MATCH('Inputs (values)'!$H$10,'Inputs (values)'!$H$83:$KV$83,0)))*(INDEX('Inputs (values)'!$H$62:$KV$62,1,MATCH('Inputs (values)'!$H$12,'Inputs (values)'!$H$83:$KV$83,0))/INDEX('Inputs (values)'!$H$62:$KV$62,1,MATCH('Inputs (values)'!$H$11,'Inputs (values)'!$H$83:$KV$83,0))) -> 25.02098925 | GC22: =(INDEX('Inputs (values)'!$H$84:$KV$86,1,MATCH('Calculations (values)'!GC$21,'Inputs (values)'!$H$83:'Inputs (values)'!$KV$83,0))/INDEX('Inputs (values)'!$H$84:$KV$86,1,MATCH('Inputs (values)'!$H$10,'Inputs (values)'!$H$83:$KV$83,0)))*(INDEX('Inputs (values)'!$H$62:$KV$62,1,MATCH('Inputs (values)'!$H$12,'Inputs (values)'!$H$83:$KV$83,0))/INDEX('Inputs (values)'!$H$62:$KV$62,1,MATCH('Inputs (values)'!$H$11,'Inputs (values)'!$H$83:$KV$83,0))) -> 25.39078926 | GD22: =(INDEX('Inputs (values)'!$H$84:$KV$86,1,MATCH('Calculations (values)'!GD$21,'Inputs (values)'!$H$83:'Inputs (values)'!$KV$83,0))/INDEX('Inputs (values)'!$H$84:$KV$86,1,MATCH('Inputs (values)'!$H$10,'Inputs (values)'!$H$83:$KV$83,0)))*(INDEX('Inputs (values)'!$H$62:$KV$62,1,MATCH('Inputs (values)'!$H$12,'Inputs (values)'!$H$83:$KV$83,0))/INDEX('Inputs (values)'!$H$62:$KV$62,1,MATCH('Inputs (values)'!$H$11,'Inputs (values)'!$H$83:$KV$83,0))) -> 25.76605475 | GE22: =(INDEX('Inputs (values)'!$H$84:$KV$86,1,MATCH('Calculations (values)'!GE$21,'Inputs (values)'!$H$83:'Inputs (values)'!$KV$83,0))/INDEX('Inputs (values)'!$H$84:$KV$86,1,MATCH('Inputs (values)'!$H$10,'Inputs (values)'!$H$83:$KV$83,0)))*(INDEX('Inputs (values)'!$H$62:$KV$62,1,MATCH('Inputs (values)'!$H$12,'Inputs (values)'!$H$83:$KV$83,0))/INDEX('Inputs (values)'!$H$62:$KV$62,1,MATCH('Inputs (values)'!$H$11,'Inputs (values)'!$H$83:$KV$83,0))) -> 26.14686651 | GF22: =(INDEX('Inputs (values)'!$H$84:$KV$86,1,MATCH('Calculations (values)'!GF$21,'Inputs (values)'!$H$83:'Inputs (values)'!$KV$83,0))/INDEX('Inputs (values)'!$H$84:$KV$86,1,MATCH('Inputs (values)'!$H$10,'Inputs (values)'!$H$83:$KV$83,0)))*(INDEX('Inputs (values)'!$H$62:$KV$62,1,MATCH('Inputs (values)'!$H$12,'Inputs (values)'!$H$83:$KV$83,0))/INDEX('Inputs (values)'!$H$62:$KV$62,1,MATCH('Inputs (values)'!$H$11,'Inputs (values)'!$H$83:$KV$83,0))) -> 26.53330652 | GG22: =(INDEX('Inputs (values)'!$H$84:$KV$86,1,MATCH('Calculations (values)'!GG$21,'Inputs (values)'!$H$83:'Inputs (values)'!$KV$83,0))/INDEX('Inputs (values)'!$H$84:$KV$86,1,MATCH('Inputs (values)'!$H$10,'Inputs (values)'!$H$83:$KV$83,0)))*(INDEX('Inputs (values)'!$H$62:$KV$62,1,MATCH('Inputs (values)'!$H$12,'Inputs (values)'!$H$83:$KV$83,0))/INDEX('Inputs (values)'!$H$62:$KV$62,1,MATCH('Inputs (values)'!$H$11,'Inputs (values)'!$H$83:$KV$83,0))) -> 26.92545796 | GH22: =(INDEX('Inputs (values)'!$H$84:$KV$86,1,MATCH('Calculations (values)'!GH$21,'Inputs (values)'!$H$83:'Inputs (values)'!$KV$83,0))/INDEX('Inputs (values)'!$H$84:$KV$86,1,MATCH('Inputs (values)'!$H$10,'Inputs (values)'!$H$83:$KV$83,0)))*(INDEX('Inputs (values)'!$H$62:$KV$62,1,MATCH('Inputs (values)'!$H$12,'Inputs (values)'!$H$83:$KV$83,0))/INDEX('Inputs (values)'!$H$62:$KV$62,1,MATCH('Inputs (values)'!$H$11,'Inputs (values)'!$H$83:$KV$83,0))) -> 27.32340523 | GI22: =(INDEX('Inputs (values)'!$H$84:$KV$86,1,MATCH('Calculations (values)'!GI$21,'Inputs (values)'!$H$83:'Inputs (values)'!$KV$83,0))/INDEX('Inputs (values)'!$H$84:$KV$86,1,MATCH('Inputs (values)'!$H$10,'Inputs (values)'!$H$83:$KV$83,0)))*(INDEX('Inputs (values)'!$H$62:$KV$62,1,MATCH('Inputs (values)'!$H$12,'Inputs (values)'!$H$83:$KV$83,0))/INDEX('Inputs (values)'!$H$62:$KV$62,1,MATCH('Inputs (values)'!$H$11,'Inputs (values)'!$H$83:$KV$83,0))) -> 27.727234 | GJ22: =(INDEX('Inputs (values)'!$H$84:$KV$86,1,MATCH('Calculations (values)'!GJ$21,'Inputs (values)'!$H$83:'Inputs (values)'!$KV$83,0))/INDEX('Inputs (values)'!$H$84:$KV$86,1,MATCH('Inputs (values)'!$H$10,'Inputs (values)'!$H$83:$KV$83,0)))*(INDEX('Inputs (values)'!$H$62:$KV$62,1,MATCH('Inputs (values)'!$H$12,'Inputs (values)'!$H$83:$KV$83,0))/INDEX('Inputs (values)'!$H$62:$KV$62,1,MATCH('Inputs (values)'!$H$11,'Inputs (values)'!$H$83:$KV$83,0))) -> 28.13703119 | GK22: =(INDEX('Inputs (values)'!$H$84:$KV$86,1,MATCH('Calculations (values)'!GK$21,'Inputs (values)'!$H$83:'Inputs (values)'!$KV$83,0))/INDEX('Inputs (values)'!$H$84:$KV$86,1,MATCH('Inputs (values)'!$H$10,'Inputs (values)'!$H$83:$KV$83,0)))*(INDEX('Inputs (values)'!$H$62:$KV$62,1,MATCH('Inputs (values)'!$H$12,'Inputs (values)'!$H$83:$KV$83,0))/INDEX('Inputs (values)'!$H$62:$KV$62,1,MATCH('Inputs (values)'!$H$11,'Inputs (values)'!$H$83:$KV$83,0))) -> 28.55288502 | GL22: =(INDEX('Inputs (values)'!$H$84:$KV$86,1,MATCH('Calculations (values)'!GL$21,'Inputs (values)'!$H$83:'Inputs (values)'!$KV$83,0))/INDEX('Inputs (values)'!$H$84:$KV$86,1,MATCH('Inputs (values)'!$H$10,'Inputs (values)'!$H$83:$KV$83,0)))*(INDEX('Inputs (values)'!$H$62:$KV$62,1,MATCH('Inputs (values)'!$H$12,'Inputs (values)'!$H$83:$KV$83,0))/INDEX('Inputs (values)'!$H$62:$KV$62,1,MATCH('Inputs (values)'!$H$11,'Inputs (values)'!$H$83:$KV$83,0))) -> 28.974885 | GM22: =(INDEX('Inputs (values)'!$H$84:$KV$86,1,MATCH('Calculations (values)'!GM$21,'Inputs (values)'!$H$83:'Inputs (values)'!$KV$83,0))/INDEX('Inputs (values)'!$H$84:$KV$86,1,MATCH('Inputs (values)'!$H$10,'Inputs (values)'!$H$83:$KV$83,0)))*(INDEX('Inputs (values)'!$H$62:$KV$62,1,MATCH('Inputs (values)'!$H$12,'Inputs (values)'!$H$83:$KV$83,0))/INDEX('Inputs (values)'!$H$62:$KV$62,1,MATCH('Inputs (values)'!$H$11,'Inputs (values)'!$H$83:$KV$83,0))) -> 29.40312196 | GN22: =(INDEX('Inputs (values)'!$H$84:$KV$86,1,MATCH('Calculations (values)'!GN$21,'Inputs (values)'!$H$83:'Inputs (values)'!$KV$83,0))/INDEX('Inputs (values)'!$H$84:$KV$86,1,MATCH('Inputs (values)'!$H$10,'Inputs (values)'!$H$83:$KV$83,0)))*(INDEX('Inputs (values)'!$H$62:$KV$62,1,MATCH('Inputs (values)'!$H$12,'Inputs (values)'!$H$83:$KV$83,0))/INDEX('Inputs (values)'!$H$62:$KV$62,1,MATCH('Inputs (values)'!$H$11,'Inputs (values)'!$H$83:$KV$83,0))) -> 29.83768809 | GO22: =(INDEX('Inputs (values)'!$H$84:$KV$86,1,MATCH('Calculations (values)'!GO$21,'Inputs (values)'!$H$83:'Inputs (values)'!$KV$83,0))/INDEX('Inputs (values)'!$H$84:$KV$86,1,MATCH('Inputs (values)'!$H$10,'Inputs (values)'!$H$83:$KV$83,0)))*(INDEX('Inputs (values)'!$H$62:$KV$62,1,MATCH('Inputs (values)'!$H$12,'Inputs (values)'!$H$83:$KV$83,0))/INDEX('Inputs (values)'!$H$62:$KV$62,1,MATCH('Inputs (values)'!$H$11,'Inputs (values)'!$H$83:$KV$83,0))) -> 30.27867694 | GP22: =(INDEX('Inputs (values)'!$H$84:$KV$86,1,MATCH('Calculations (values)'!GP$21,'Inputs (values)'!$H$83:'Inputs (values)'!$KV$83,0))/INDEX('Inputs (values)'!$H$84:$KV$86,1,MATCH('Inputs (values)'!$H$10,'Inputs (values)'!$H$83:$KV$83,0)))*(INDEX('Inputs (values)'!$H$62:$KV$62,1,MATCH('Inputs (values)'!$H$12,'Inputs (values)'!$H$83:$KV$83,0))/INDEX('Inputs (values)'!$H$62:$KV$62,1,MATCH('Inputs (values)'!$H$11,'Inputs (values)'!$H$83:$KV$83,0))) -> 30.72618342 | GQ22: =(INDEX('Inputs (values)'!$H$84:$KV$86,1,MATCH('Calculations (values)'!GQ$21,'Inputs (values)'!$H$83:'Inputs (values)'!$KV$83,0))/INDEX('Inputs (values)'!$H$84:$KV$86,1,MATCH('Inputs (values)'!$H$10,'Inputs (values)'!$H$83:$KV$83,0)))*(INDEX('Inputs (values)'!$H$62:$KV$62,1,MATCH('Inputs (values)'!$H$12,'Inputs (values)'!$H$83:$KV$83,0))/INDEX('Inputs (values)'!$H$62:$KV$62,1,MATCH('Inputs (values)'!$H$11,'Inputs (values)'!$H$83:$KV$83,0))) -> 31.18030386 | GR22: =(INDEX('Inputs (values)'!$H$84:$KV$86,1,MATCH('Calculations (values)'!GR$21,'Inputs (values)'!$H$83:'Inputs (values)'!$KV$83,0))/INDEX('Inputs (values)'!$H$84:$KV$86,1,MATCH('Inputs (values)'!$H$10,'Inputs (values)'!$H$83:$KV$83,0)))*(INDEX('Inputs (values)'!$H$62:$KV$62,1,MATCH('Inputs (values)'!$H$12,'Inputs (values)'!$H$83:$KV$83,0))/INDEX('Inputs (values)'!$H$62:$KV$62,1,MATCH('Inputs (values)'!$H$11,'Inputs (values)'!$H$83:$KV$83,0))) -> 31.64113601 | GS22: =(INDEX('Inputs (values)'!$H$84:$KV$86,1,MATCH('Calculations (values)'!GS$21,'Inputs (values)'!$H$83:'Inputs (values)'!$KV$83,0))/INDEX('Inputs (values)'!$H$84:$KV$86,1,MATCH('Inputs (values)'!$H$10,'Inputs (values)'!$H$83:$KV$83,0)))*(INDEX('Inputs (values)'!$H$62:$KV$62,1,MATCH('Inputs (values)'!$H$12,'Inputs (values)'!$H$83:$KV$83,0))/INDEX('Inputs (values)'!$H$62:$KV$62,1,MATCH('Inputs (values)'!$H$11,'Inputs (values)'!$H$83:$KV$83,0))) -> 32.10877908 | GT22: =(INDEX('Inputs (values)'!$H$84:$KV$86,1,MATCH('Calculations (values)'!GT$21,'Inputs (values)'!$H$83:'Inputs (values)'!$KV$83,0))/INDEX('Inputs (values)'!$H$84:$KV$86,1,MATCH('Inputs (values)'!$H$10,'Inputs (values)'!$H$83:$KV$83,0)))*(INDEX('Inputs (values)'!$H$62:$KV$62,1,MATCH('Inputs (values)'!$H$12,'Inputs (values)'!$H$83:$KV$83,0))/INDEX('Inputs (values)'!$H$62:$KV$62,1,MATCH('Inputs (values)'!$H$11,'Inputs (values)'!$H$83:$KV$83,0))) -> 32.58333372 | GU22: =(INDEX('Inputs (values)'!$H$84:$KV$86,1,MATCH('Calculations (values)'!GU$21,'Inputs (values)'!$H$83:'Inputs (values)'!$KV$83,0))/INDEX('Inputs (values)'!$H$84:$KV$86,1,MATCH('Inputs (values)'!$H$10,'Inputs (values)'!$H$83:$KV$83,0)))*(INDEX('Inputs (values)'!$H$62:$KV$62,1,MATCH('Inputs (values)'!$H$12,'Inputs (values)'!$H$83:$KV$83,0))/INDEX('Inputs (values)'!$H$62:$KV$62,1,MATCH('Inputs (values)'!$H$11,'Inputs (values)'!$H$83:$KV$83,0))) -> 33.06490208 | GV22: =(INDEX('Inputs (values)'!$H$84:$KV$86,1,MATCH('Calculations (values)'!GV$21,'Inputs (values)'!$H$83:'Inputs (values)'!$KV$83,0))/INDEX('Inputs (values)'!$H$84:$KV$86,1,MATCH('Inputs (values)'!$H$10,'Inputs (values)'!$H$83:$KV$83,0)))*(INDEX('Inputs (values)'!$H$62:$KV$62,1,MATCH('Inputs (values)'!$H$12,'Inputs (values)'!$H$83:$KV$83,0))/INDEX('Inputs (values)'!$H$62:$KV$62,1,MATCH('Inputs (values)'!$H$11,'Inputs (values)'!$H$83:$KV$83,0))) -> 33.55358783 | GW22: =(INDEX('Inputs (values)'!$H$84:$KV$86,1,MATCH('Calculations (values)'!GW$21,'Inputs (values)'!$H$83:'Inputs (values)'!$KV$83,0))/INDEX('Inputs (values)'!$H$84:$KV$86,1,MATCH('Inputs (values)'!$H$10,'Inputs (values)'!$H$83:$KV$83,0)))*(INDEX('Inputs (values)'!$H$62:$KV$62,1,MATCH('Inputs (values)'!$H$12,'Inputs (values)'!$H$83:$KV$83,0))/INDEX('Inputs (values)'!$H$62:$KV$62,1,MATCH('Inputs (values)'!$H$11,'Inputs (values)'!$H$83:$KV$83,0))) -> 34.04949615 | GX22: =(INDEX('Inputs (values)'!$H$84:$KV$86,1,MATCH('Calculations (values)'!GX$21,'Inputs (values)'!$H$83:'Inputs (values)'!$KV$83,0))/INDEX('Inputs (values)'!$H$84:$KV$86,1,MATCH('Inputs (values)'!$H$10,'Inputs (values)'!$H$83:$KV$83,0)))*(INDEX('Inputs (values)'!$H$62:$KV$62,1,MATCH('Inputs (values)'!$H$12,'Inputs (values)'!$H$83:$KV$83,0))/INDEX('Inputs (values)'!$H$62:$KV$62,1,MATCH('Inputs (values)'!$H$11,'Inputs (values)'!$H$83:$KV$83,0))) -> 34.5527338 | GY22: =(INDEX('Inputs (values)'!$H$84:$KV$86,1,MATCH('Calculations (values)'!GY$21,'Inputs (values)'!$H$83:'Inputs (values)'!$KV$83,0))/INDEX('Inputs (values)'!$H$84:$KV$86,1,MATCH('Inputs (values)'!$H$10,'Inputs (values)'!$H$83:$KV$83,0)))*(INDEX('Inputs (values)'!$H$62:$KV$62,1,MATCH('Inputs (values)'!$H$12,'Inputs (values)'!$H$83:$KV$83,0))/INDEX('Inputs (values)'!$H$62:$KV$62,1,MATCH('Inputs (values)'!$H$11,'Inputs (values)'!$H$83:$KV$83,0))) -> 35.06340909 | GZ22: =(INDEX('Inputs (values)'!$H$84:$KV$86,1,MATCH('Calculations (values)'!GZ$21,'Inputs (values)'!$H$83:'Inputs (values)'!$KV$83,0))/INDEX('Inputs (values)'!$H$84:$KV$86,1,MATCH('Inputs (values)'!$H$10,'Inputs (values)'!$H$83:$KV$83,0)))*(INDEX('Inputs (values)'!$H$62:$KV$62,1,MATCH('Inputs (values)'!$H$12,'Inputs (values)'!$H$83:$KV$83,0))/INDEX('Inputs (values)'!$H$62:$KV$62,1,MATCH('Inputs (values)'!$H$11,'Inputs (values)'!$H$83:$KV$83,0))) -> 35.58163196 | HA22: =(INDEX('Inputs (values)'!$H$84:$KV$86,1,MATCH('Calculations (values)'!HA$21,'Inputs (values)'!$H$83:'Inputs (values)'!$KV$83,0))/INDEX('Inputs (values)'!$H$84:$KV$86,1,MATCH('Inputs (values)'!$H$10,'Inputs (values)'!$H$83:$KV$83,0)))*(INDEX('Inputs (values)'!$H$62:$KV$62,1,MATCH('Inputs (values)'!$H$12,'Inputs (values)'!$H$83:$KV$83,0))/INDEX('Inputs (values)'!$H$62:$KV$62,1,MATCH('Inputs (values)'!$H$11,'Inputs (values)'!$H$83:$KV$83,0))) -> 36.10751394 | HB22: =(INDEX('Inputs (values)'!$H$84:$KV$86,1,MATCH('Calculations (values)'!HB$21,'Inputs (values)'!$H$83:'Inputs (values)'!$KV$83,0))/INDEX('Inputs (values)'!$H$84:$KV$86,1,MATCH('Inputs (values)'!$H$10,'Inputs (values)'!$H$83:$KV$83,0)))*(INDEX('Inputs (values)'!$H$62:$KV$62,1,MATCH('Inputs (values)'!$H$12,'Inputs (values)'!$H$83:$KV$83,0))/INDEX('Inputs (values)'!$H$62:$KV$62,1,MATCH('Inputs (values)'!$H$11,'Inputs (values)'!$H$83:$KV$83,0))) -> 36.64116825 | HC22: =(INDEX('Inputs (values)'!$H$84:$KV$86,1,MATCH('Calculations (values)'!HC$21,'Inputs (values)'!$H$83:'Inputs (values)'!$KV$83,0))/INDEX('Inputs (values)'!$H$84:$KV$86,1,MATCH('Inputs (values)'!$H$10,'Inputs (values)'!$H$83:$KV$83,0)))*(INDEX('Inputs (values)'!$H$62:$KV$62,1,MATCH('Inputs (values)'!$H$12,'Inputs (values)'!$H$83:$KV$83,0))/INDEX('Inputs (values)'!$H$62:$KV$62,1,MATCH('Inputs (values)'!$H$11,'Inputs (values)'!$H$83:$KV$83,0))) -> 37.18270975 | HD22: =(INDEX('Inputs (values)'!$H$84:$KV$86,1,MATCH('Calculations (values)'!HD$21,'Inputs (values)'!$H$83:'Inputs (values)'!$KV$83,0))/INDEX('Inputs (values)'!$H$84:$KV$86,1,MATCH('Inputs (values)'!$H$10,'Inputs (values)'!$H$83:$KV$83,0)))*(INDEX('Inputs (values)'!$H$62:$KV$62,1,MATCH('Inputs (values)'!$H$12,'Inputs (values)'!$H$83:$KV$83,0))/INDEX('Inputs (values)'!$H$62:$KV$62,1,MATCH('Inputs (values)'!$H$11,'Inputs (values)'!$H$83:$KV$83,0))) -> 37.73225502 | HE22: =(INDEX('Inputs (values)'!$H$84:$KV$86,1,MATCH('Calculations (values)'!HE$21,'Inputs (values)'!$H$83:'Inputs (values)'!$KV$83,0))/INDEX('Inputs (values)'!$H$84:$KV$86,1,MATCH('Inputs (values)'!$H$10,'Inputs (values)'!$H$83:$KV$83,0)))*(INDEX('Inputs (values)'!$H$62:$KV$62,1,MATCH('Inputs (values)'!$H$12,'Inputs (values)'!$H$83:$KV$83,0))/INDEX('Inputs (values)'!$H$62:$KV$62,1,MATCH('Inputs (values)'!$H$11,'Inputs (values)'!$H$83:$KV$83,0))) -> 38.28992233 | HF22: =(INDEX('Inputs (values)'!$H$84:$KV$86,1,MATCH('Calculations (values)'!HF$21,'Inputs (values)'!$H$83:'Inputs (values)'!$KV$83,0))/INDEX('Inputs (values)'!$H$84:$KV$86,1,MATCH('Inputs (values)'!$H$10,'Inputs (values)'!$H$83:$KV$83,0)))*(INDEX('Inputs (values)'!$H$62:$KV$62,1,MATCH('Inputs (values)'!$H$12,'Inputs (values)'!$H$83:$KV$83,0))/INDEX('Inputs (values)'!$H$62:$KV$62,1,MATCH('Inputs (values)'!$H$11,'Inputs (values)'!$H$83:$KV$83,0))) -> 38.85583175 | HG22: =(INDEX('Inputs (values)'!$H$84:$KV$86,1,MATCH('Calculations (values)'!HG$21,'Inputs (values)'!$H$83:'Inputs (values)'!$KV$83,0))/INDEX('Inputs (values)'!$H$84:$KV$86,1,MATCH('Inputs (values)'!$H$10,'Inputs (values)'!$H$83:$KV$83,0)))*(INDEX('Inputs (values)'!$H$62:$KV$62,1,MATCH('Inputs (values)'!$H$12,'Inputs (values)'!$H$83:$KV$83,0))/INDEX('Inputs (values)'!$H$62:$KV$62,1,MATCH('Inputs (values)'!$H$11,'Inputs (values)'!$H$83:$KV$83,0))) -> 39.43010507 | HH22: =(INDEX('Inputs (values)'!$H$84:$KV$86,1,MATCH('Calculations (values)'!HH$21,'Inputs (values)'!$H$83:'Inputs (values)'!$KV$83,0))/INDEX('Inputs (values)'!$H$84:$KV$86,1,MATCH('Inputs (values)'!$H$10,'Inputs (values)'!$H$83:$KV$83,0)))*(INDEX('Inputs (values)'!$H$62:$KV$62,1,MATCH('Inputs (values)'!$H$12,'Inputs (values)'!$H$83:$KV$83,0))/INDEX('Inputs (values)'!$H$62:$KV$62,1,MATCH('Inputs (values)'!$H$11,'Inputs (values)'!$H$83:$KV$83,0))) -> 40.01286592 | HI22: =(INDEX('Inputs (values)'!$H$84:$KV$86,1,MATCH('Calculations (values)'!HI$21,'Inputs (values)'!$H$83:'Inputs (values)'!$KV$83,0))/INDEX('Inputs (values)'!$H$84:$KV$86,1,MATCH('Inputs (values)'!$H$10,'Inputs (values)'!$H$83:$KV$83,0)))*(INDEX('Inputs (values)'!$H$62:$KV$62,1,MATCH('Inputs (values)'!$H$12,'Inputs (values)'!$H$83:$KV$83,0))/INDEX('Inputs (values)'!$H$62:$KV$62,1,MATCH('Inputs (values)'!$H$11,'Inputs (values)'!$H$83:$KV$83,0))) -> 40.60423973 | HJ22: =(INDEX('Inputs (values)'!$H$84:$KV$86,1,MATCH('Calculations (values)'!HJ$21,'Inputs (values)'!$H$83:'Inputs (values)'!$KV$83,0))/INDEX('Inputs (values)'!$H$84:$KV$86,1,MATCH('Inputs (values)'!$H$10,'Inputs (values)'!$H$83:$KV$83,0)))*(INDEX('Inputs (values)'!$H$62:$KV$62,1,MATCH('Inputs (values)'!$H$12,'Inputs (values)'!$H$83:$KV$83,0))/INDEX('Inputs (values)'!$H$62:$KV$62,1,MATCH('Inputs (values)'!$H$11,'Inputs (values)'!$H$83:$KV$83,0))) -> 41.20435381 | HK22: =(INDEX('Inputs (values)'!$H$84:$KV$86,1,MATCH('Calculations (values)'!HK$21,'Inputs (values)'!$H$83:'Inputs (values)'!$KV$83,0))/INDEX('Inputs (values)'!$H$84:$KV$86,1,MATCH('Inputs (values)'!$H$10,'Inputs (values)'!$H$83:$KV$83,0)))*(INDEX('Inputs (values)'!$H$62:$KV$62,1,MATCH('Inputs (values)'!$H$12,'Inputs (values)'!$H$83:$KV$83,0))/INDEX('Inputs (values)'!$H$62:$KV$62,1,MATCH('Inputs (values)'!$H$11,'Inputs (values)'!$H$83:$KV$83,0))) -> 41.81333733 | HL22: =(INDEX('Inputs (values)'!$H$84:$KV$86,1,MATCH('Calculations (values)'!HL$21,'Inputs (values)'!$H$83:'Inputs (values)'!$KV$83,0))/INDEX('Inputs (values)'!$H$84:$KV$86,1,MATCH('Inputs (values)'!$H$10,'Inputs (values)'!$H$83:$KV$83,0)))*(INDEX('Inputs (values)'!$H$62:$KV$62,1,MATCH('Inputs (values)'!$H$12,'Inputs (values)'!$H$83:$KV$83,0))/INDEX('Inputs (values)'!$H$62:$KV$62,1,MATCH('Inputs (values)'!$H$11,'Inputs (values)'!$H$83:$KV$83,0))) -> 42.43132138 | HM22: =(INDEX('Inputs (values)'!$H$84:$KV$86,1,MATCH('Calculations (values)'!HM$21,'Inputs (values)'!$H$83:'Inputs (values)'!$KV$83,0))/INDEX('Inputs (values)'!$H$84:$KV$86,1,MATCH('Inputs (values)'!$H$10,'Inputs (values)'!$H$83:$KV$83,0)))*(INDEX('Inputs (values)'!$H$62:$KV$62,1,MATCH('Inputs (values)'!$H$12,'Inputs (values)'!$H$83:$KV$83,0))/INDEX('Inputs (values)'!$H$62:$KV$62,1,MATCH('Inputs (values)'!$H$11,'Inputs (values)'!$H$83:$KV$83,0))) -> 43.05843898 | HN22: =(INDEX('Inputs (values)'!$H$84:$KV$86,1,MATCH('Calculations (values)'!HN$21,'Inputs (values)'!$H$83:'Inputs (values)'!$KV$83,0))/INDEX('Inputs (values)'!$H$84:$KV$86,1,MATCH('Inputs (values)'!$H$10,'Inputs (values)'!$H$83:$KV$83,0)))*(INDEX('Inputs (values)'!$H$62:$KV$62,1,MATCH('Inputs (values)'!$H$12,'Inputs (values)'!$H$83:$KV$83,0))/INDEX('Inputs (values)'!$H$62:$KV$62,1,MATCH('Inputs (values)'!$H$11,'Inputs (values)'!$H$83:$KV$83,0))) -> 43.69482512 | HO22: =(INDEX('Inputs (values)'!$H$84:$KV$86,1,MATCH('Calculations (values)'!HO$21,'Inputs (values)'!$H$83:'Inputs (values)'!$KV$83,0))/INDEX('Inputs (values)'!$H$84:$KV$86,1,MATCH('Inputs (values)'!$H$10,'Inputs (values)'!$H$83:$KV$83,0)))*(INDEX('Inputs (values)'!$H$62:$KV$62,1,MATCH('Inputs (values)'!$H$12,'Inputs (values)'!$H$83:$KV$83,0))/INDEX('Inputs (values)'!$H$62:$KV$62,1,MATCH('Inputs (values)'!$H$11,'Inputs (values)'!$H$83:$KV$83,0))) -> 44.34061679 | HP22: =(INDEX('Inputs (values)'!$H$84:$KV$86,1,MATCH('Calculations (values)'!HP$21,'Inputs (values)'!$H$83:'Inputs (values)'!$KV$83,0))/INDEX('Inputs (values)'!$H$84:$KV$86,1,MATCH('Inputs (values)'!$H$10,'Inputs (values)'!$H$83:$KV$83,0)))*(INDEX('Inputs (values)'!$H$62:$KV$62,1,MATCH('Inputs (values)'!$H$12,'Inputs (values)'!$H$83:$KV$83,0))/INDEX('Inputs (values)'!$H$62:$KV$62,1,MATCH('Inputs (values)'!$H$11,'Inputs (values)'!$H$83:$KV$83,0))) -> 44.99595299 | HQ22: =(INDEX('Inputs (values)'!$H$84:$KV$86,1,MATCH('Calculations (values)'!HQ$21,'Inputs (values)'!$H$83:'Inputs (values)'!$KV$83,0))/INDEX('Inputs (values)'!$H$84:$KV$86,1,MATCH('Inputs (values)'!$H$10,'Inputs (values)'!$H$83:$KV$83,0)))*(INDEX('Inputs (values)'!$H$62:$KV$62,1,MATCH('Inputs (values)'!$H$12,'Inputs (values)'!$H$83:$KV$83,0))/INDEX('Inputs (values)'!$H$62:$KV$62,1,MATCH('Inputs (values)'!$H$11,'Inputs (values)'!$H$83:$KV$83,0))) -> 45.6609748 | HR22: =(INDEX('Inputs (values)'!$H$84:$KV$86,1,MATCH('Calculations (values)'!HR$21,'Inputs (values)'!$H$83:'Inputs (values)'!$KV$83,0))/INDEX('Inputs (values)'!$H$84:$KV$86,1,MATCH('Inputs (values)'!$H$10,'Inputs (values)'!$H$83:$KV$83,0)))*(INDEX('Inputs (values)'!$H$62:$KV$62,1,MATCH('Inputs (values)'!$H$12,'Inputs (values)'!$H$83:$KV$83,0))/INDEX('Inputs (values)'!$H$62:$KV$62,1,MATCH('Inputs (values)'!$H$11,'Inputs (values)'!$H$83:$KV$83,0))) -> 46.33582536 | HS22: =(INDEX('Inputs (values)'!$H$84:$KV$86,1,MATCH('Calculations (values)'!HS$21,'Inputs (values)'!$H$83:'Inputs (values)'!$KV$83,0))/INDEX('Inputs (values)'!$H$84:$KV$86,1,MATCH('Inputs (values)'!$H$10,'Inputs (values)'!$H$83:$KV$83,0)))*(INDEX('Inputs (values)'!$H$62:$KV$62,1,MATCH('Inputs (values)'!$H$12,'Inputs (values)'!$H$83:$KV$83,0))/INDEX('Inputs (values)'!$H$62:$KV$62,1,MATCH('Inputs (values)'!$H$11,'Inputs (values)'!$H$83:$KV$83,0))) -> 47.02064993 | HT22: =(INDEX('Inputs (values)'!$H$84:$KV$86,1,MATCH('Calculations (values)'!HT$21,'Inputs (values)'!$H$83:'Inputs (values)'!$KV$83,0))/INDEX('Inputs (values)'!$H$84:$KV$86,1,MATCH('Inputs (values)'!$H$10,'Inputs (values)'!$H$83:$KV$83,0)))*(INDEX('Inputs (values)'!$H$62:$KV$62,1,MATCH('Inputs (values)'!$H$12,'Inputs (values)'!$H$83:$KV$83,0))/INDEX('Inputs (values)'!$H$62:$KV$62,1,MATCH('Inputs (values)'!$H$11,'Inputs (values)'!$H$83:$KV$83,0))) -> 47.71559593 | HU22: =(INDEX('Inputs (values)'!$H$84:$KV$86,1,MATCH('Calculations (values)'!HU$21,'Inputs (values)'!$H$83:'Inputs (values)'!$KV$83,0))/INDEX('Inputs (values)'!$H$84:$KV$86,1,MATCH('Inputs (values)'!$H$10,'Inputs (values)'!$H$83:$KV$83,0)))*(INDEX('Inputs (values)'!$H$62:$KV$62,1,MATCH('Inputs (values)'!$H$12,'Inputs (values)'!$H$83:$KV$83,0))/INDEX('Inputs (values)'!$H$62:$KV$62,1,MATCH('Inputs (values)'!$H$11,'Inputs (values)'!$H$83:$KV$83,0))) -> 48.42081295 | HV22: =(INDEX('Inputs (values)'!$H$84:$KV$86,1,MATCH('Calculations (values)'!HV$21,'Inputs (values)'!$H$83:'Inputs (values)'!$KV$83,0))/INDEX('Inputs (values)'!$H$84:$KV$86,1,MATCH('Inputs (values)'!$H$10,'Inputs (values)'!$H$83:$KV$83,0)))*(INDEX('Inputs (values)'!$H$62:$KV$62,1,MATCH('Inputs (values)'!$H$12,'Inputs (values)'!$H$83:$KV$83,0))/INDEX('Inputs (values)'!$H$62:$KV$62,1,MATCH('Inputs (values)'!$H$11,'Inputs (values)'!$H$83:$KV$83,0))) -> 49.13645279 | HW22: =(INDEX('Inputs (values)'!$H$84:$KV$86,1,MATCH('Calculations (values)'!HW$21,'Inputs (values)'!$H$83:'Inputs (values)'!$KV$83,0))/INDEX('Inputs (values)'!$H$84:$KV$86,1,MATCH('Inputs (values)'!$H$10,'Inputs (values)'!$H$83:$KV$83,0)))*(INDEX('Inputs (values)'!$H$62:$KV$62,1,MATCH('Inputs (values)'!$H$12,'Inputs (values)'!$H$83:$KV$83,0))/INDEX('Inputs (values)'!$H$62:$KV$62,1,MATCH('Inputs (values)'!$H$11,'Inputs (values)'!$H$83:$KV$83,0))) -> 49.86266949 | HX22: =(INDEX('Inputs (values)'!$H$84:$KV$86,1,MATCH('Calculations (values)'!HX$21,'Inputs (values)'!$H$83:'Inputs (values)'!$KV$83,0))/INDEX('Inputs (values)'!$H$84:$KV$86,1,MATCH('Inputs (values)'!$H$10,'Inputs (values)'!$H$83:$KV$83,0)))*(INDEX('Inputs (values)'!$H$62:$KV$62,1,MATCH('Inputs (values)'!$H$12,'Inputs (values)'!$H$83:$KV$83,0))/INDEX('Inputs (values)'!$H$62:$KV$62,1,MATCH('Inputs (values)'!$H$11,'Inputs (values)'!$H$83:$KV$83,0))) -> 50.59961938 | HY22: =(INDEX('Inputs (values)'!$H$84:$KV$86,1,MATCH('Calculations (values)'!HY$21,'Inputs (values)'!$H$83:'Inputs (values)'!$KV$83,0))/INDEX('Inputs (values)'!$H$84:$KV$86,1,MATCH('Inputs (values)'!$H$10,'Inputs (values)'!$H$83:$KV$83,0)))*(INDEX('Inputs (values)'!$H$62:$KV$62,1,MATCH('Inputs (values)'!$H$12,'Inputs (values)'!$H$83:$KV$83,0))/INDEX('Inputs (values)'!$H$62:$KV$62,1,MATCH('Inputs (values)'!$H$11,'Inputs (values)'!$H$83:$KV$83,0))) -> 51.34746108 | HZ22: =(INDEX('Inputs (values)'!$H$84:$KV$86,1,MATCH('Calculations (values)'!HZ$21,'Inputs (values)'!$H$83:'Inputs (values)'!$KV$83,0))/INDEX('Inputs (values)'!$H$84:$KV$86,1,MATCH('Inputs (values)'!$H$10,'Inputs (values)'!$H$83:$KV$83,0)))*(INDEX('Inputs (values)'!$H$62:$KV$62,1,MATCH('Inputs (values)'!$H$12,'Inputs (values)'!$H$83:$KV$83,0))/INDEX('Inputs (values)'!$H$62:$KV$62,1,MATCH('Inputs (values)'!$H$11,'Inputs (values)'!$H$83:$KV$83,0))) -> 52.10635559 | IA22: =(INDEX('Inputs (values)'!$H$84:$KV$86,1,MATCH('Calculations (values)'!IA$21,'Inputs (values)'!$H$83:'Inputs (values)'!$KV$83,0))/INDEX('Inputs (values)'!$H$84:$KV$86,1,MATCH('Inputs (values)'!$H$10,'Inputs (values)'!$H$83:$KV$83,0)))*(INDEX('Inputs (values)'!$H$62:$KV$62,1,MATCH('Inputs (values)'!$H$12,'Inputs (values)'!$H$83:$KV$83,0))/INDEX('Inputs (values)'!$H$62:$KV$62,1,MATCH('Inputs (values)'!$H$11,'Inputs (values)'!$H$83:$KV$83,0))) -> 52.87646624 | IB22: =(INDEX('Inputs (values)'!$H$84:$KV$86,1,MATCH('Calculations (values)'!IB$21,'Inputs (values)'!$H$83:'Inputs (values)'!$KV$83,0))/INDEX('Inputs (values)'!$H$84:$KV$86,1,MATCH('Inputs (values)'!$H$10,'Inputs (values)'!$H$83:$KV$83,0)))*(INDEX('Inputs (values)'!$H$62:$KV$62,1,MATCH('Inputs (values)'!$H$12,'Inputs (values)'!$H$83:$KV$83,0))/INDEX('Inputs (values)'!$H$62:$KV$62,1,MATCH('Inputs (values)'!$H$11,'Inputs (values)'!$H$83:$KV$83,0))) -> 53.65795881 | IC22: =(INDEX('Inputs (values)'!$H$84:$KV$86,1,MATCH('Calculations (values)'!IC$21,'Inputs (values)'!$H$83:'Inputs (values)'!$KV$83,0))/INDEX('Inputs (values)'!$H$84:$KV$86,1,MATCH('Inputs (values)'!$H$10,'Inputs (values)'!$H$83:$KV$83,0)))*(INDEX('Inputs (values)'!$H$62:$KV$62,1,MATCH('Inputs (values)'!$H$12,'Inputs (values)'!$H$83:$KV$83,0))/INDEX('Inputs (values)'!$H$62:$KV$62,1,MATCH('Inputs (values)'!$H$11,'Inputs (values)'!$H$83:$KV$83,0))) -> 54.45100153 | ID22: =(INDEX('Inputs (values)'!$H$84:$KV$86,1,MATCH('Calculations (values)'!ID$21,'Inputs (values)'!$H$83:'Inputs (values)'!$KV$83,0))/INDEX('Inputs (values)'!$H$84:$KV$86,1,MATCH('Inputs (values)'!$H$10,'Inputs (values)'!$H$83:$KV$83,0)))*(INDEX('Inputs (values)'!$H$62:$KV$62,1,MATCH('Inputs (values)'!$H$12,'Inputs (values)'!$H$83:$KV$83,0))/INDEX('Inputs (values)'!$H$62:$KV$62,1,MATCH('Inputs (values)'!$H$11,'Inputs (values)'!$H$83:$KV$83,0))) -> 55.25576509 | IE22: =(INDEX('Inputs (values)'!$H$84:$KV$86,1,MATCH('Calculations (values)'!IE$21,'Inputs (values)'!$H$83:'Inputs (values)'!$KV$83,0))/INDEX('Inputs (values)'!$H$84:$KV$86,1,MATCH('Inputs (values)'!$H$10,'Inputs (values)'!$H$83:$KV$83,0)))*(INDEX('Inputs (values)'!$H$62:$KV$62,1,MATCH('Inputs (values)'!$H$12,'Inputs (values)'!$H$83:$KV$83,0))/INDEX('Inputs (values)'!$H$62:$KV$62,1,MATCH('Inputs (values)'!$H$11,'Inputs (values)'!$H$83:$KV$83,0))) -> 56.07242273 | IF22: =(INDEX('Inputs (values)'!$H$84:$KV$86,1,MATCH('Calculations (values)'!IF$21,'Inputs (values)'!$H$83:'Inputs (values)'!$KV$83,0))/INDEX('Inputs (values)'!$H$84:$KV$86,1,MATCH('Inputs (values)'!$H$10,'Inputs (values)'!$H$83:$KV$83,0)))*(INDEX('Inputs (values)'!$H$62:$KV$62,1,MATCH('Inputs (values)'!$H$12,'Inputs (values)'!$H$83:$KV$83,0))/INDEX('Inputs (values)'!$H$62:$KV$62,1,MATCH('Inputs (values)'!$H$11,'Inputs (values)'!$H$83:$KV$83,0))) -> 56.90115024 | IG22: =(INDEX('Inputs (values)'!$H$84:$KV$86,1,MATCH('Calculations (values)'!IG$21,'Inputs (values)'!$H$83:'Inputs (values)'!$KV$83,0))/INDEX('Inputs (values)'!$H$84:$KV$86,1,MATCH('Inputs (values)'!$H$10,'Inputs (values)'!$H$83:$KV$83,0)))*(INDEX('Inputs (values)'!$H$62:$KV$62,1,MATCH('Inputs (values)'!$H$12,'Inputs (values)'!$H$83:$KV$83,0))/INDEX('Inputs (values)'!$H$62:$KV$62,1,MATCH('Inputs (values)'!$H$11,'Inputs (values)'!$H$83:$KV$83,0))) -> 57.74212599 | IH22: =(INDEX('Inputs (values)'!$H$84:$KV$86,1,MATCH('Calculations (values)'!IH$21,'Inputs (values)'!$H$83:'Inputs (values)'!$KV$83,0))/INDEX('Inputs (values)'!$H$84:$KV$86,1,MATCH('Inputs (values)'!$H$10,'Inputs (values)'!$H$83:$KV$83,0)))*(INDEX('Inputs (values)'!$H$62:$KV$62,1,MATCH('Inputs (values)'!$H$12,'Inputs (values)'!$H$83:$KV$83,0))/INDEX('Inputs (values)'!$H$62:$KV$62,1,MATCH('Inputs (values)'!$H$11,'Inputs (values)'!$H$83:$KV$83,0))) -> 58.59553103 | II22: =(INDEX('Inputs (values)'!$H$84:$KV$86,1,MATCH('Calculations (values)'!II$21,'Inputs (values)'!$H$83:'Inputs (values)'!$KV$83,0))/INDEX('Inputs (values)'!$H$84:$KV$86,1,MATCH('Inputs (values)'!$H$10,'Inputs (values)'!$H$83:$KV$83,0)))*(INDEX('Inputs (values)'!$H$62:$KV$62,1,MATCH('Inputs (values)'!$H$12,'Inputs (values)'!$H$83:$KV$83,0))/INDEX('Inputs (values)'!$H$62:$KV$62,1,MATCH('Inputs (values)'!$H$11,'Inputs (values)'!$H$83:$KV$83,0))) -> 59.46154905 | IJ22: =(INDEX('Inputs (values)'!$H$84:$KV$86,1,MATCH('Calculations (values)'!IJ$21,'Inputs (values)'!$H$83:'Inputs (values)'!$KV$83,0))/INDEX('Inputs (values)'!$H$84:$KV$86,1,MATCH('Inputs (values)'!$H$10,'Inputs (values)'!$H$83:$KV$83,0)))*(INDEX('Inputs (values)'!$H$62:$KV$62,1,MATCH('Inputs (values)'!$H$12,'Inputs (values)'!$H$83:$KV$83,0))/INDEX('Inputs (values)'!$H$62:$KV$62,1,MATCH('Inputs (values)'!$H$11,'Inputs (values)'!$H$83:$KV$83,0))) -> 60.34036646 | IK22: =(INDEX('Inputs (values)'!$H$84:$KV$86,1,MATCH('Calculations (values)'!IK$21,'Inputs (values)'!$H$83:'Inputs (values)'!$KV$83,0))/INDEX('Inputs (values)'!$H$84:$KV$86,1,MATCH('Inputs (values)'!$H$10,'Inputs (values)'!$H$83:$KV$83,0)))*(INDEX('Inputs (values)'!$H$62:$KV$62,1,MATCH('Inputs (values)'!$H$12,'Inputs (values)'!$H$83:$KV$83,0))/INDEX('Inputs (values)'!$H$62:$KV$62,1,MATCH('Inputs (values)'!$H$11,'Inputs (values)'!$H$83:$KV$83,0))) -> 61.23217243 | IL22: =(INDEX('Inputs (values)'!$H$84:$KV$86,1,MATCH('Calculations (values)'!IL$21,'Inputs (values)'!$H$83:'Inputs (values)'!$KV$83,0))/INDEX('Inputs (values)'!$H$84:$KV$86,1,MATCH('Inputs (values)'!$H$10,'Inputs (values)'!$H$83:$KV$83,0)))*(INDEX('Inputs (values)'!$H$62:$KV$62,1,MATCH('Inputs (values)'!$H$12,'Inputs (values)'!$H$83:$KV$83,0))/INDEX('Inputs (values)'!$H$62:$KV$62,1,MATCH('Inputs (values)'!$H$11,'Inputs (values)'!$H$83:$KV$83,0))) -> 62.13715893 | IM22: =(INDEX('Inputs (values)'!$H$84:$KV$86,1,MATCH('Calculations (values)'!IM$21,'Inputs (values)'!$H$83:'Inputs (values)'!$KV$83,0))/INDEX('Inputs (values)'!$H$84:$KV$86,1,MATCH('Inputs (values)'!$H$10,'Inputs (values)'!$H$83:$KV$83,0)))*(INDEX('Inputs (values)'!$H$62:$KV$62,1,MATCH('Inputs (values)'!$H$12,'Inputs (values)'!$H$83:$KV$83,0))/INDEX('Inputs (values)'!$H$62:$KV$62,1,MATCH('Inputs (values)'!$H$11,'Inputs (values)'!$H$83:$KV$83,0))) -> 63.05552075 | IN22: =(INDEX('Inputs (values)'!$H$84:$KV$86,1,MATCH('Calculations (values)'!IN$21,'Inputs (values)'!$H$83:'Inputs (values)'!$KV$83,0))/INDEX('Inputs (values)'!$H$84:$KV$86,1,MATCH('Inputs (values)'!$H$10,'Inputs (values)'!$H$83:$KV$83,0)))*(INDEX('Inputs (values)'!$H$62:$KV$62,1,MATCH('Inputs (values)'!$H$12,'Inputs (values)'!$H$83:$KV$83,0))/INDEX('Inputs (values)'!$H$62:$KV$62,1,MATCH('Inputs (values)'!$H$11,'Inputs (values)'!$H$83:$KV$83,0))) -> 63.9874556 | IO22: =(INDEX('Inputs (values)'!$H$84:$KV$86,1,MATCH('Calculations (values)'!IO$21,'Inputs (values)'!$H$83:'Inputs (values)'!$KV$83,0))/INDEX('Inputs (values)'!$H$84:$KV$86,1,MATCH('Inputs (values)'!$H$10,'Inputs (values)'!$H$83:$KV$83,0)))*(INDEX('Inputs (values)'!$H$62:$KV$62,1,MATCH('Inputs (values)'!$H$12,'Inputs (values)'!$H$83:$KV$83,0))/INDEX('Inputs (values)'!$H$62:$KV$62,1,MATCH('Inputs (values)'!$H$11,'Inputs (values)'!$H$83:$KV$83,0))) -> 64.93316405 | IP22: =(INDEX('Inputs (values)'!$H$84:$KV$86,1,MATCH('Calculations (values)'!IP$21,'Inputs (values)'!$H$83:'Inputs (values)'!$KV$83,0))/INDEX('Inputs (values)'!$H$84:$KV$86,1,MATCH('Inputs (values)'!$H$10,'Inputs (values)'!$H$83:$KV$83,0)))*(INDEX('Inputs (values)'!$H$62:$KV$62,1,MATCH('Inputs (values)'!$H$12,'Inputs (values)'!$H$83:$KV$83,0))/INDEX('Inputs (values)'!$H$62:$KV$62,1,MATCH('Inputs (values)'!$H$11,'Inputs (values)'!$H$83:$KV$83,0))) -> 65.8928497 | IQ22: =(INDEX('Inputs (values)'!$H$84:$KV$86,1,MATCH('Calculations (values)'!IQ$21,'Inputs (values)'!$H$83:'Inputs (values)'!$KV$83,0))/INDEX('Inputs (values)'!$H$84:$KV$86,1,MATCH('Inputs (values)'!$H$10,'Inputs (values)'!$H$83:$KV$83,0)))*(INDEX('Inputs (values)'!$H$62:$KV$62,1,MATCH('Inputs (values)'!$H$12,'Inputs (values)'!$H$83:$KV$83,0))/INDEX('Inputs (values)'!$H$62:$KV$62,1,MATCH('Inputs (values)'!$H$11,'Inputs (values)'!$H$83:$KV$83,0))) -> 66.8667191 | IR22: =(INDEX('Inputs (values)'!$H$84:$KV$86,1,MATCH('Calculations (values)'!IR$21,'Inputs (values)'!$H$83:'Inputs (values)'!$KV$83,0))/INDEX('Inputs (values)'!$H$84:$KV$86,1,MATCH('Inputs (values)'!$H$10,'Inputs (values)'!$H$83:$KV$83,0)))*(INDEX('Inputs (values)'!$H$62:$KV$62,1,MATCH('Inputs (values)'!$H$12,'Inputs (values)'!$H$83:$KV$83,0))/INDEX('Inputs (values)'!$H$62:$KV$62,1,MATCH('Inputs (values)'!$H$11,'Inputs (values)'!$H$83:$KV$83,0))) -> 67.8549819 | IS22: =(INDEX('Inputs (values)'!$H$84:$KV$86,1,MATCH('Calculations (values)'!IS$21,'Inputs (values)'!$H$83:'Inputs (values)'!$KV$83,0))/INDEX('Inputs (values)'!$H$84:$KV$86,1,MATCH('Inputs (values)'!$H$10,'Inputs (values)'!$H$83:$KV$83,0)))*(INDEX('Inputs (values)'!$H$62:$KV$62,1,MATCH('Inputs (values)'!$H$12,'Inputs (values)'!$H$83:$KV$83,0))/INDEX('Inputs (values)'!$H$62:$KV$62,1,MATCH('Inputs (values)'!$H$11,'Inputs (values)'!$H$83:$KV$83,0))) -> 68.85785082 | IT22: =(INDEX('Inputs (values)'!$H$84:$KV$86,1,MATCH('Calculations (values)'!IT$21,'Inputs (values)'!$H$83:'Inputs (values)'!$KV$83,0))/INDEX('Inputs (values)'!$H$84:$KV$86,1,MATCH('Inputs (values)'!$H$10,'Inputs (values)'!$H$83:$KV$83,0)))*(INDEX('Inputs (values)'!$H$62:$KV$62,1,MATCH('Inputs (values)'!$H$12,'Inputs (values)'!$H$83:$KV$83,0))/INDEX('Inputs (values)'!$H$62:$KV$62,1,MATCH('Inputs (values)'!$H$11,'Inputs (values)'!$H$83:$KV$83,0))) -> 69.87554173 | IU22: =(INDEX('Inputs (values)'!$H$84:$KV$86,1,MATCH('Calculations (values)'!IU$21,'Inputs (values)'!$H$83:'Inputs (values)'!$KV$83,0))/INDEX('Inputs (values)'!$H$84:$KV$86,1,MATCH('Inputs (values)'!$H$10,'Inputs (values)'!$H$83:$KV$83,0)))*(INDEX('Inputs (values)'!$H$62:$KV$62,1,MATCH('Inputs (values)'!$H$12,'Inputs (values)'!$H$83:$KV$83,0))/INDEX('Inputs (values)'!$H$62:$KV$62,1,MATCH('Inputs (values)'!$H$11,'Inputs (values)'!$H$83:$KV$83,0))) -> 70.90827369 | IV22: =(INDEX('Inputs (values)'!$H$84:$KV$86,1,MATCH('Calculations (values)'!IV$21,'Inputs (values)'!$H$83:'Inputs (values)'!$KV$83,0))/INDEX('Inputs (values)'!$H$84:$KV$86,1,MATCH('Inputs (values)'!$H$10,'Inputs (values)'!$H$83:$KV$83,0)))*(INDEX('Inputs (values)'!$H$62:$KV$62,1,MATCH('Inputs (values)'!$H$12,'Inputs (values)'!$H$83:$KV$83,0))/INDEX('Inputs (values)'!$H$62:$KV$62,1,MATCH('Inputs (values)'!$H$11,'Inputs (values)'!$H$83:$KV$83,0))) -> 71.95626902 | IW22: =(INDEX('Inputs (values)'!$H$84:$KV$86,1,MATCH('Calculations (values)'!IW$21,'Inputs (values)'!$H$83:'Inputs (values)'!$KV$83,0))/INDEX('Inputs (values)'!$H$84:$KV$86,1,MATCH('Inputs (values)'!$H$10,'Inputs (values)'!$H$83:$KV$83,0)))*(INDEX('Inputs (values)'!$H$62:$KV$62,1,MATCH('Inputs (values)'!$H$12,'Inputs (values)'!$H$83:$KV$83,0))/INDEX('Inputs (values)'!$H$62:$KV$62,1,MATCH('Inputs (values)'!$H$11,'Inputs (values)'!$H$83:$KV$83,0))) -> 73.01975328 | IX22: =(INDEX('Inputs (values)'!$H$84:$KV$86,1,MATCH('Calculations (values)'!IX$21,'Inputs (values)'!$H$83:'Inputs (values)'!$KV$83,0))/INDEX('Inputs (values)'!$H$84:$KV$86,1,MATCH('Inputs (values)'!$H$10,'Inputs (values)'!$H$83:$KV$83,0)))*(INDEX('Inputs (values)'!$H$62:$KV$62,1,MATCH('Inputs (values)'!$H$12,'Inputs (values)'!$H$83:$KV$83,0))/INDEX('Inputs (values)'!$H$62:$KV$62,1,MATCH('Inputs (values)'!$H$11,'Inputs (values)'!$H$83:$KV$83,0))) -> 74.09895541 | IY22: =(INDEX('Inputs (values)'!$H$84:$KV$86,1,MATCH('Calculations (values)'!IY$21,'Inputs (values)'!$H$83:'Inputs (values)'!$KV$83,0))/INDEX('Inputs (values)'!$H$84:$KV$86,1,MATCH('Inputs (values)'!$H$10,'Inputs (values)'!$H$83:$KV$83,0)))*(INDEX('Inputs (values)'!$H$62:$KV$62,1,MATCH('Inputs (values)'!$H$12,'Inputs (values)'!$H$83:$KV$83,0))/INDEX('Inputs (values)'!$H$62:$KV$62,1,MATCH('Inputs (values)'!$H$11,'Inputs (values)'!$H$83:$KV$83,0))) -> 75.19410771 | IZ22: =(INDEX('Inputs (values)'!$H$84:$KV$86,1,MATCH('Calculations (values)'!IZ$21,'Inputs (values)'!$H$83:'Inputs (values)'!$KV$83,0))/INDEX('Inputs (values)'!$H$84:$KV$86,1,MATCH('Inputs (values)'!$H$10,'Inputs (values)'!$H$83:$KV$83,0)))*(INDEX('Inputs (values)'!$H$62:$KV$62,1,MATCH('Inputs (values)'!$H$12,'Inputs (values)'!$H$83:$KV$83,0))/INDEX('Inputs (values)'!$H$62:$KV$62,1,MATCH('Inputs (values)'!$H$11,'Inputs (values)'!$H$83:$KV$83,0))) -> 76.30544591 | JA22: =(INDEX('Inputs (values)'!$H$84:$KV$86,1,MATCH('Calculations (values)'!JA$21,'Inputs (values)'!$H$83:'Inputs (values)'!$KV$83,0))/INDEX('Inputs (values)'!$H$84:$KV$86,1,MATCH('Inputs (values)'!$H$10,'Inputs (values)'!$H$83:$KV$83,0)))*(INDEX('Inputs (values)'!$H$62:$KV$62,1,MATCH('Inputs (values)'!$H$12,'Inputs (values)'!$H$83:$KV$83,0))/INDEX('Inputs (values)'!$H$62:$KV$62,1,MATCH('Inputs (values)'!$H$11,'Inputs (values)'!$H$83:$KV$83,0))) -> 77.43320923 | JB22: =(INDEX('Inputs (values)'!$H$84:$KV$86,1,MATCH('Calculations (values)'!JB$21,'Inputs (values)'!$H$83:'Inputs (values)'!$KV$83,0))/INDEX('Inputs (values)'!$H$84:$KV$86,1,MATCH('Inputs (values)'!$H$10,'Inputs (values)'!$H$83:$KV$83,0)))*(INDEX('Inputs (values)'!$H$62:$KV$62,1,MATCH('Inputs (values)'!$H$12,'Inputs (values)'!$H$83:$KV$83,0))/INDEX('Inputs (values)'!$H$62:$KV$62,1,MATCH('Inputs (values)'!$H$11,'Inputs (values)'!$H$83:$KV$83,0))) -> 78.57764044 | JC22: =(INDEX('Inputs (values)'!$H$84:$KV$86,1,MATCH('Calculations (values)'!JC$21,'Inputs (values)'!$H$83:'Inputs (values)'!$KV$83,0))/INDEX('Inputs (values)'!$H$84:$KV$86,1,MATCH('Inputs (values)'!$H$10,'Inputs (values)'!$H$83:$KV$83,0)))*(INDEX('Inputs (values)'!$H$62:$KV$62,1,MATCH('Inputs (values)'!$H$12,'Inputs (values)'!$H$83:$KV$83,0))/INDEX('Inputs (values)'!$H$62:$KV$62,1,MATCH('Inputs (values)'!$H$11,'Inputs (values)'!$H$83:$KV$83,0))) -> 79.73898587 | JD22: =(INDEX('Inputs (values)'!$H$84:$KV$86,1,MATCH('Calculations (values)'!JD$21,'Inputs (values)'!$H$83:'Inputs (values)'!$KV$83,0))/INDEX('Inputs (values)'!$H$84:$KV$86,1,MATCH('Inputs (values)'!$H$10,'Inputs (values)'!$H$83:$KV$83,0)))*(INDEX('Inputs (values)'!$H$62:$KV$62,1,MATCH('Inputs (values)'!$H$12,'Inputs (values)'!$H$83:$KV$83,0))/INDEX('Inputs (values)'!$H$62:$KV$62,1,MATCH('Inputs (values)'!$H$11,'Inputs (values)'!$H$83:$KV$83,0))) -> 80.91749551 | JE22: =(INDEX('Inputs (values)'!$H$84:$KV$86,1,MATCH('Calculations (values)'!JE$21,'Inputs (values)'!$H$83:'Inputs (values)'!$KV$83,0))/INDEX('Inputs (values)'!$H$84:$KV$86,1,MATCH('Inputs (values)'!$H$10,'Inputs (values)'!$H$83:$KV$83,0)))*(INDEX('Inputs (values)'!$H$62:$KV$62,1,MATCH('Inputs (values)'!$H$12,'Inputs (values)'!$H$83:$KV$83,0))/INDEX('Inputs (values)'!$H$62:$KV$62,1,MATCH('Inputs (values)'!$H$11,'Inputs (values)'!$H$83:$KV$83,0))) -> 82.11342304 | JF22: =(INDEX('Inputs (values)'!$H$84:$KV$86,1,MATCH('Calculations (values)'!JF$21,'Inputs (values)'!$H$83:'Inputs (values)'!$KV$83,0))/INDEX('Inputs (values)'!$H$84:$KV$86,1,MATCH('Inputs (values)'!$H$10,'Inputs (values)'!$H$83:$KV$83,0)))*(INDEX('Inputs (values)'!$H$62:$KV$62,1,MATCH('Inputs (values)'!$H$12,'Inputs (values)'!$H$83:$KV$83,0))/INDEX('Inputs (values)'!$H$62:$KV$62,1,MATCH('Inputs (values)'!$H$11,'Inputs (values)'!$H$83:$KV$83,0))) -> 83.3270259 | JG22: =(INDEX('Inputs (values)'!$H$84:$KV$86,1,MATCH('Calculations (values)'!JG$21,'Inputs (values)'!$H$83:'Inputs (values)'!$KV$83,0))/INDEX('Inputs (values)'!$H$84:$KV$86,1,MATCH('Inputs (values)'!$H$10,'Inputs (values)'!$H$83:$KV$83,0)))*(INDEX('Inputs (values)'!$H$62:$KV$62,1,MATCH('Inputs (values)'!$H$12,'Inputs (values)'!$H$83:$KV$83,0))/INDEX('Inputs (values)'!$H$62:$KV$62,1,MATCH('Inputs (values)'!$H$11,'Inputs (values)'!$H$83:$KV$83,0))) -> 84.5585653 | JH22: =(INDEX('Inputs (values)'!$H$84:$KV$86,1,MATCH('Calculations (values)'!JH$21,'Inputs (values)'!$H$83:'Inputs (values)'!$KV$83,0))/INDEX('Inputs (values)'!$H$84:$KV$86,1,MATCH('Inputs (values)'!$H$10,'Inputs (values)'!$H$83:$KV$83,0)))*(INDEX('Inputs (values)'!$H$62:$KV$62,1,MATCH('Inputs (values)'!$H$12,'Inputs (values)'!$H$83:$KV$83,0))/INDEX('Inputs (values)'!$H$62:$KV$62,1,MATCH('Inputs (values)'!$H$11,'Inputs (values)'!$H$83:$KV$83,0))) -> 85.80830636 | JI22: =(INDEX('Inputs (values)'!$H$84:$KV$86,1,MATCH('Calculations (values)'!JI$21,'Inputs (values)'!$H$83:'Inputs (values)'!$KV$83,0))/INDEX('Inputs (values)'!$H$84:$KV$86,1,MATCH('Inputs (values)'!$H$10,'Inputs (values)'!$H$83:$KV$83,0)))*(INDEX('Inputs (values)'!$H$62:$KV$62,1,MATCH('Inputs (values)'!$H$12,'Inputs (values)'!$H$83:$KV$83,0))/INDEX('Inputs (values)'!$H$62:$KV$62,1,MATCH('Inputs (values)'!$H$11,'Inputs (values)'!$H$83:$KV$83,0))) -> 87.07651808 | JJ22: =(INDEX('Inputs (values)'!$H$84:$KV$86,1,MATCH('Calculations (values)'!JJ$21,'Inputs (values)'!$H$83:'Inputs (values)'!$KV$83,0))/INDEX('Inputs (values)'!$H$84:$KV$86,1,MATCH('Inputs (values)'!$H$10,'Inputs (values)'!$H$83:$KV$83,0)))*(INDEX('Inputs (values)'!$H$62:$KV$62,1,MATCH('Inputs (values)'!$H$12,'Inputs (values)'!$H$83:$KV$83,0))/INDEX('Inputs (values)'!$H$62:$KV$62,1,MATCH('Inputs (values)'!$H$11,'Inputs (values)'!$H$83:$KV$83,0))) -> 88.36347345 | JK22: =(INDEX('Inputs (values)'!$H$84:$KV$86,1,MATCH('Calculations (values)'!JK$21,'Inputs (values)'!$H$83:'Inputs (values)'!$KV$83,0))/INDEX('Inputs (values)'!$H$84:$KV$86,1,MATCH('Inputs (values)'!$H$10,'Inputs (values)'!$H$83:$KV$83,0)))*(INDEX('Inputs (values)'!$H$62:$KV$62,1,MATCH('Inputs (values)'!$H$12,'Inputs (values)'!$H$83:$KV$83,0))/INDEX('Inputs (values)'!$H$62:$KV$62,1,MATCH('Inputs (values)'!$H$11,'Inputs (values)'!$H$83:$KV$83,0))) -> 89.6694495 | JL22: =(INDEX('Inputs (values)'!$H$84:$KV$86,1,MATCH('Calculations (values)'!JL$21,'Inputs (values)'!$H$83:'Inputs (values)'!$KV$83,0))/INDEX('Inputs (values)'!$H$84:$KV$86,1,MATCH('Inputs (values)'!$H$10,'Inputs (values)'!$H$83:$KV$83,0)))*(INDEX('Inputs (values)'!$H$62:$KV$62,1,MATCH('Inputs (values)'!$H$12,'Inputs (values)'!$H$83:$KV$83,0))/INDEX('Inputs (values)'!$H$62:$KV$62,1,MATCH('Inputs (values)'!$H$11,'Inputs (values)'!$H$83:$KV$83,0))) -> 90.99472734 | JM22: =(INDEX('Inputs (values)'!$H$84:$KV$86,1,MATCH('Calculations (values)'!JM$21,'Inputs (values)'!$H$83:'Inputs (values)'!$KV$83,0))/INDEX('Inputs (values)'!$H$84:$KV$86,1,MATCH('Inputs (values)'!$H$10,'Inputs (values)'!$H$83:$KV$83,0)))*(INDEX('Inputs (values)'!$H$62:$KV$62,1,MATCH('Inputs (values)'!$H$12,'Inputs (values)'!$H$83:$KV$83,0))/INDEX('Inputs (values)'!$H$62:$KV$62,1,MATCH('Inputs (values)'!$H$11,'Inputs (values)'!$H$83:$KV$83,0))) -> 92.33959224 | JN22: =(INDEX('Inputs (values)'!$H$84:$KV$86,1,MATCH('Calculations (values)'!JN$21,'Inputs (values)'!$H$83:'Inputs (values)'!$KV$83,0))/INDEX('Inputs (values)'!$H$84:$KV$86,1,MATCH('Inputs (values)'!$H$10,'Inputs (values)'!$H$83:$KV$83,0)))*(INDEX('Inputs (values)'!$H$62:$KV$62,1,MATCH('Inputs (values)'!$H$12,'Inputs (values)'!$H$83:$KV$83,0))/INDEX('Inputs (values)'!$H$62:$KV$62,1,MATCH('Inputs (values)'!$H$11,'Inputs (values)'!$H$83:$KV$83,0))) -> 93.7043337 | JO22: =(INDEX('Inputs (values)'!$H$84:$KV$86,1,MATCH('Calculations (values)'!JO$21,'Inputs (values)'!$H$83:'Inputs (values)'!$KV$83,0))/INDEX('Inputs (values)'!$H$84:$KV$86,1,MATCH('Inputs (values)'!$H$10,'Inputs (values)'!$H$83:$KV$83,0)))*(INDEX('Inputs (values)'!$H$62:$KV$62,1,MATCH('Inputs (values)'!$H$12,'Inputs (values)'!$H$83:$KV$83,0))/INDEX('Inputs (values)'!$H$62:$KV$62,1,MATCH('Inputs (values)'!$H$11,'Inputs (values)'!$H$83:$KV$83,0))) -> 95.08924548 | JP22: =(INDEX('Inputs (values)'!$H$84:$KV$86,1,MATCH('Calculations (values)'!JP$21,'Inputs (values)'!$H$83:'Inputs (values)'!$KV$83,0))/INDEX('Inputs (values)'!$H$84:$KV$86,1,MATCH('Inputs (values)'!$H$10,'Inputs (values)'!$H$83:$KV$83,0)))*(INDEX('Inputs (values)'!$H$62:$KV$62,1,MATCH('Inputs (values)'!$H$12,'Inputs (values)'!$H$83:$KV$83,0))/INDEX('Inputs (values)'!$H$62:$KV$62,1,MATCH('Inputs (values)'!$H$11,'Inputs (values)'!$H$83:$KV$83,0))) -> 96.49462569 | JQ22: =(INDEX('Inputs (values)'!$H$84:$KV$86,1,MATCH('Calculations (values)'!JQ$21,'Inputs (values)'!$H$83:'Inputs (values)'!$KV$83,0))/INDEX('Inputs (values)'!$H$84:$KV$86,1,MATCH('Inputs (values)'!$H$10,'Inputs (values)'!$H$83:$KV$83,0)))*(INDEX('Inputs (values)'!$H$62:$KV$62,1,MATCH('Inputs (values)'!$H$12,'Inputs (values)'!$H$83:$KV$83,0))/INDEX('Inputs (values)'!$H$62:$KV$62,1,MATCH('Inputs (values)'!$H$11,'Inputs (values)'!$H$83:$KV$83,0))) -> 97.92077684 | JR22: =(INDEX('Inputs (values)'!$H$84:$KV$86,1,MATCH('Calculations (values)'!JR$21,'Inputs (values)'!$H$83:'Inputs (values)'!$KV$83,0))/INDEX('Inputs (values)'!$H$84:$KV$86,1,MATCH('Inputs (values)'!$H$10,'Inputs (values)'!$H$83:$KV$83,0)))*(INDEX('Inputs (values)'!$H$62:$KV$62,1,MATCH('Inputs (values)'!$H$12,'Inputs (values)'!$H$83:$KV$83,0))/INDEX('Inputs (values)'!$H$62:$KV$62,1,MATCH('Inputs (values)'!$H$11,'Inputs (values)'!$H$83:$KV$83,0))) -> 99.36800593 | JS22: =(INDEX('Inputs (values)'!$H$84:$KV$86,1,MATCH('Calculations (values)'!JS$21,'Inputs (values)'!$H$83:'Inputs (values)'!$KV$83,0))/INDEX('Inputs (values)'!$H$84:$KV$86,1,MATCH('Inputs (values)'!$H$10,'Inputs (values)'!$H$83:$KV$83,0)))*(INDEX('Inputs (values)'!$H$62:$KV$62,1,MATCH('Inputs (values)'!$H$12,'Inputs (values)'!$H$83:$KV$83,0))/INDEX('Inputs (values)'!$H$62:$KV$62,1,MATCH('Inputs (values)'!$H$11,'Inputs (values)'!$H$83:$KV$83,0))) -> 100.8366245 | JT22: =(INDEX('Inputs (values)'!$H$84:$KV$86,1,MATCH('Calculations (values)'!JT$21,'Inputs (values)'!$H$83:'Inputs (values)'!$KV$83,0))/INDEX('Inputs (values)'!$H$84:$KV$86,1,MATCH('Inputs (values)'!$H$10,'Inputs (values)'!$H$83:$KV$83,0)))*(INDEX('Inputs (values)'!$H$62:$KV$62,1,MATCH('Inputs (values)'!$H$12,'Inputs (values)'!$H$83:$KV$83,0))/INDEX('Inputs (values)'!$H$62:$KV$62,1,MATCH('Inputs (values)'!$H$11,'Inputs (values)'!$H$83:$KV$83,0))) -> 102.3269486 | JU22: =(INDEX('Inputs (values)'!$H$84:$KV$86,1,MATCH('Calculations (values)'!JU$21,'Inputs (values)'!$H$83:'Inputs (values)'!$KV$83,0))/INDEX('Inputs (values)'!$H$84:$KV$86,1,MATCH('Inputs (values)'!$H$10,'Inputs (values)'!$H$83:$KV$83,0)))*(INDEX('Inputs (values)'!$H$62:$KV$62,1,MATCH('Inputs (values)'!$H$12,'Inputs (values)'!$H$83:$KV$83,0))/INDEX('Inputs (values)'!$H$62:$KV$62,1,MATCH('Inputs (values)'!$H$11,'Inputs (values)'!$H$83:$KV$83,0))) -> 103.8392991 | JV22: =(INDEX('Inputs (values)'!$H$84:$KV$86,1,MATCH('Calculations (values)'!JV$21,'Inputs (values)'!$H$83:'Inputs (values)'!$KV$83,0))/INDEX('Inputs (values)'!$H$84:$KV$86,1,MATCH('Inputs (values)'!$H$10,'Inputs (values)'!$H$83:$KV$83,0)))*(INDEX('Inputs (values)'!$H$62:$KV$62,1,MATCH('Inputs (values)'!$H$12,'Inputs (values)'!$H$83:$KV$83,0))/INDEX('Inputs (values)'!$H$62:$KV$62,1,MATCH('Inputs (values)'!$H$11,'Inputs (values)'!$H$83:$KV$83,0))) -> 105.3740015 | JW22: =(INDEX('Inputs (values)'!$H$84:$KV$86,1,MATCH('Calculations (values)'!JW$21,'Inputs (values)'!$H$83:'Inputs (values)'!$KV$83,0))/INDEX('Inputs (values)'!$H$84:$KV$86,1,MATCH('Inputs (values)'!$H$10,'Inputs (values)'!$H$83:$KV$83,0)))*(INDEX('Inputs (values)'!$H$62:$KV$62,1,MATCH('Inputs (values)'!$H$12,'Inputs (values)'!$H$83:$KV$83,0))/INDEX('Inputs (values)'!$H$62:$KV$62,1,MATCH('Inputs (values)'!$H$11,'Inputs (values)'!$H$83:$KV$83,0))) -> 106.9313862 | JX22: =(INDEX('Inputs (values)'!$H$84:$KV$86,1,MATCH('Calculations (values)'!JX$21,'Inputs (values)'!$H$83:'Inputs (values)'!$KV$83,0))/INDEX('Inputs (values)'!$H$84:$KV$86,1,MATCH('Inputs (values)'!$H$10,'Inputs (values)'!$H$83:$KV$83,0)))*(INDEX('Inputs (values)'!$H$62:$KV$62,1,MATCH('Inputs (values)'!$H$12,'Inputs (values)'!$H$83:$KV$83,0))/INDEX('Inputs (values)'!$H$62:$KV$62,1,MATCH('Inputs (values)'!$H$11,'Inputs (values)'!$H$83:$KV$83,0))) ->  | JY22: =(INDEX('Inputs (values)'!$H$84:$KV$86,1,MATCH('Calculations (values)'!JY$21,'Inputs (values)'!$H$83:'Inputs (values)'!$KV$83,0))/INDEX('Inputs (values)'!$H$84:$KV$86,1,MATCH('Inputs (values)'!$H$10,'Inputs (values)'!$H$83:$KV$83,0)))*(INDEX('Inputs (values)'!$H$62:$KV$62,1,MATCH('Inputs (values)'!$H$12,'Inputs (values)'!$H$83:$KV$83,0))/INDEX('Inputs (values)'!$H$62:$KV$62,1,MATCH('Inputs (values)'!$H$11,'Inputs (values)'!$H$83:$KV$83,0))) ->  | JZ22: =(INDEX('Inputs (values)'!$H$84:$KV$86,1,MATCH('Calculations (values)'!JZ$21,'Inputs (values)'!$H$83:'Inputs (values)'!$KV$83,0))/INDEX('Inputs (values)'!$H$84:$KV$86,1,MATCH('Inputs (values)'!$H$10,'Inputs (values)'!$H$83:$KV$83,0)))*(INDEX('Inputs (values)'!$H$62:$KV$62,1,MATCH('Inputs (values)'!$H$12,'Inputs (values)'!$H$83:$KV$83,0))/INDEX('Inputs (values)'!$H$62:$KV$62,1,MATCH('Inputs (values)'!$H$11,'Inputs (values)'!$H$83:$KV$83,0))) ->  | KA22: =(INDEX('Inputs (values)'!$H$84:$KV$86,1,MATCH('Calculations (values)'!KA$21,'Inputs (values)'!$H$83:'Inputs (values)'!$KV$83,0))/INDEX('Inputs (values)'!$H$84:$KV$86,1,MATCH('Inputs (values)'!$H$10,'Inputs (values)'!$H$83:$KV$83,0)))*(INDEX('Inputs (values)'!$H$62:$KV$62,1,MATCH('Inputs (values)'!$H$12,'Inputs (values)'!$H$83:$KV$83,0))/INDEX('Inputs (values)'!$H$62:$KV$62,1,MATCH('Inputs (values)'!$H$11,'Inputs (values)'!$H$83:$KV$83,0))) -> 
